Workbook

Sheet TitlePage
A1: Title page | B1: Warning: |
C6: Pond-Klear Aquatic -SubPlants - Aquatic Application :Flumioxazin Aquatic
E17: WorksheetMaker Version | F17: 6.02.20
A51: 2020-07-02

Sheet Disclaimer
A1: DISCLAIMER

Sheet General Notes
A1: General Notes
B2: Prepared by: | C2: Joseph Kunes
B3: Program Version: | C3: 6.02.20
B4: Database Used: | C4: FS WsMkr V06-02-01.mdb
B5: Template Workbook: | C5: FS WsMkr V06-02-01.mdb
B6: Base Workbook: | C6: FS WSMkr Blank V06-02-01.xlsm
A8: Color Codes in WorksheetMaker
A13: Color Codes used in Workbook for Front Matter, Data and Calculation Worksheets
B14: Green shading | C14: This is a default value or a user specified a value. You can change these values as you see fit but you should have a reason for doing so.
B15: Yellow shading | C15: This is a source for a link in other parts of the workbook. If you have good reason to change the value, you should note the change (with your reason) in the “Revisions” page.
B16: Blue shading | C16: This cell is linked to another cell in the workbook. Do not change this value. If you change any of these values, the workbook may not update correctly.
B17: Blue shading blue border | C17: This cell is linked to a Program parameter in Worksheet A01. Do not change this value. If you want the value to change, go to Worksheet A01 and change the value in that worksheet.
B18: Purple Shading | C18: Indicates (for information only) that the typical of order of Lower and Upper values is intentionally reversed. This is only used in the second (label) column.
B19: Italics, no shading | C19: The value in this cell is generated by a formula (the number that you see is the result of an equation). This cell is linked only to other cells in the worksheet. Do not change this value.
A25: Color Codes used in Workbook for Risk Characterization Worksheets
B26: HQ ≥ 2 | C26: For hazard quotient greater than 2, the number is in bold font with a red background and rounded to the nearest integer.
B27: HQ > 1 but < 2 | C27: For hazard quotient greater than 1 but less than two, the number is in bold font with a white background and rounded to one significant place after the decimal.
B28: HQ ≥ 0.1 but <1 | C28: For hazard quotient greater than 0.1 but less than one, the number is in regular font with a white background and rounded to one significant place after the decimal.
B29: HQ < 0.1 | C29: For hazard quotient less than 0.1, the number is in regular font with a white background. The number is expressed in scientific notation and rounded to one significant place -- e.g., 2E-02 rather than 0.02.
B55: Prepared by: | C55: Joseph Kunes
B56: Program Version: | C56: 6.02.20
B57: Database Used: | C57: FS WsMkr V06-02-01.mdb
B58: Template Workbook: | C58: FS WsMkr V06-02-01.mdb
B59: Base Workbook: | C59: FS WSMkr Blank V06-02-01.xlsm

Sheet Chemical Notes
A1: Chemical specific notes
A2: Risk Assessment: | D2: KTL-2020-HHERA-2020-02.1
A3: Report Date: | D3: June 17,2020
A6: The area below is an embedded MS Word Document. Add chemical-specific notes as appropriate.

Sheet Revisions
A1: Revision Histroy
A8: The area below is an embedded MS Word Document. Add revision notes as appropriate.

Sheet Contents
A1: Table of Contents | C1: Toc
A2: Work-sheet No. | B2: Worksheet Title
A3: TitlePage | B3: Title page
A4: Disclaimer | B4: DISCLAIMER
A5: General Notes | B5: General Notes
A6: Chemical Notes | B6: Chemical specific notes
A7: Revisions | B7: Revision Histroy
A8: Contents | B8: Table of Contents
A9: A01 | B9: Program Data: Applcation of liquid formulation to a body of water at a specified target concentration (application rate).
A10: A02a | B10: General reference values and exposure factors used in worksheets.
A11: A02b | B11: General reference values and exposure factors used in worksheets.
A12: A02c | B12: General reference values and exposure factors used in worksheets.
A13: A02d | B13: General reference values and exposure factors used in worksheets.
A14: A03 | B14: Food items for terrestrial animals
A15: B01 | B15: Chemical and Physical Properties for Flumioxazin Aquatic
A16: B02 | B16: Toxicity values for Flumioxazin Aquatic
A17: B03a | B17: Calculation of Zero-Order Dermal Permeability Rate (Kp) in cm/hour
A18: B03b | B18: Calculation of First-Order Dermal Absorption Rate
A19: B04a | B19: Estimates of Average Concentrations of the Pesticide in Water After Aquatic Applications
A20: B04b | B20: Pond: Concentration of pesticide (liquid formulation) in pond water after an accidental spill
A21: C01 | B21: Worker exposure estimates for workers based on the amount handled.
A22: C02a | B22: Accidental Dermal Exposure Assessment Using Zero-Order Absorption, Worker, Surface Area, Hands, for 1 minute(s)
A23: C02b | B23: Accidental Dermal Exposure Assessment Using Zero-Order Absorption, Worker, Surface Area, Hands, for 60 minute(s)
A24: C03a | B24: Accidental Dermal Exposure Assessment Using First-Order Absorption, Worker, Surface Area, Hands, for 60 minute(s)
A25: C03b | B25: Accidental Dermal Exposure Assessment Using First-Order Absorption, Worker, Surface Area, Lower legs, for 60 minute(s)
A26: D05 | B26: Consumption of contaminated water by Child, Accidental Spill
A27: D06 | B27: Consumption of contaminated water by Child, Peak Conentrations
A28: D07 | B28: Consumption of contaminated water by Adult Male, Longer-term Conentrations
A29: D08a | B29: Consumption of Contaminated Fish (Accidental Spill), Adult Male, acute exposure
A30: D08b | B30: Consumption of Contaminated Fish (Accidental Spill), Subsistence Populations, acute exposure
A31: D09a | B31: Consumption of Contaminated Fish (Longer-term), Adult Male, chronic exposure
A32: D09b | B32: Consumption of Contaminated Fish (Longer-term), Subsistence Populations, chronic exposure
A33: D09c | B33: Consumption of Contaminated Fish (Peak Exposure), Adult Male, acute exposure
A34: D09d | B34: Consumption of Contaminated Fish (Peak Exposure), Subsistence Populations, acute exposure
A35: D10 | B35: Swimming Exposure Assessment Using Zero-Order Absorption, Adult Female, Surface Area, Whole body, for 60 minute(s)
A36: E01 | B36: Summary of Worker Exposure Assessments
A37: E02 | B37: Summary of Worker Hazard Quotients (Toxicity)
A38: E03 | B38: Summary of Exposure Assessments for the General Public
A39: E04 | B39: Summary of Hazard Quotients (Toxicity) for the General Public
A40: F02a | B40: Consumption of contaminated water by Mammal, small, Accidental Spill
A41: F02b | B41: Consumption of contaminated water by Mammal, 400 g, Accidental Spill
A42: F02c | B42: Consumption of contaminated water by Mammal, carnivorous, Accidental Spill
A43: F02d | B43: Consumption of contaminated water by Mammal, large, Accidental Spill
A44: F02e | B44: Consumption of contaminated water by Bird, small, Accidental Spill
A45: F02f | B45: Consumption of contaminated water by Bird, large, Accidental Spill
A46: F03a | B46: Acute scenario for the consumption of Contaminated Fish (Accidental Spill) by Mammal, large carnivorous
A47: F03b | B47: Acute scenario for the consumption of Contaminated Fish (Accidental Spill) by Mammal, carnivorous
A48: F03c | B48: Acute scenario for the consumption of Contaminated Fish (Accidental Spill) by Bird, piscivorous
A49: F08a | B49: Consumption of contaminated water by Mammal, small, Peak Concentrations
A50: F08b | B50: Consumption of contaminated water by Mammal, 400 g, Peak Concentrations
A51: F08c | B51: Consumption of contaminated water by Mammal, carnivorous, Peak Concentrations
A52: F08d | B52: Consumption of contaminated water by Mammal, large, Peak Concentrations
A53: F08e | B53: Consumption of contaminated water by Bird, small, Peak Concentrations
A54: F08f | B54: Consumption of contaminated water by Bird, large, Peak Concentrations
A55: F11a | B55: Acute scenario for the consumption of Contaminated Fish (Peak) by Mammal, large carnivorous
A56: F11b | B56: Acute scenario for the consumption of Contaminated Fish (Peak) by Mammal, carnivorous
A57: F11c | B57: Acute scenario for the consumption of Contaminated Fish (Peak) by Bird, piscivorous
A58: F16a | B58: Consumption of contaminated water by Mammal, small, Longer-term Concentrations
A59: F16b | B59: Consumption of contaminated water by Mammal, 400 g, Longer-term Concentrations
A60: F16c | B60: Consumption of contaminated water by Mammal, carnivorous, Longer-term Concentrations
A61: F16d | B61: Consumption of contaminated water by Mammal, large, Longer-term Concentrations
A62: F16e | B62: Consumption of contaminated water by Bird, small, Longer-term Concentrations
A63: F16f | B63: Consumption of contaminated water by Bird, large, Longer-term Concentrations
A64: F17a | B64: Chronic scenario for the consumption of Contaminated Fish (Longer-term) by Mammal, large carnivorous
A65: F17b | B65: Chronic scenario for the consumption of Contaminated Fish (Longer-term) by Mammal, carnivorous
A66: F17c | B66: Chronic scenario for the consumption of Contaminated Fish (Longer-term) by Bird, piscivorous
A67: G01a | B67: Summary of Exposure Assessments for the Mammals
A68: G01b | B68: Summary of Exposure Assessments for the Birds
A69: G02a | B69: Summary of Hazard Quotients (Toxicity) for the Mammals
A70: G02b | B70: Summary of Hazard Quotients (Toxicity) for the Birds
A71: G03 | B71: Worksheet G03: Summary of Hazard Quotients for Aquatic Species
A72: G06a | B72: Potential exposure of non-target plants through the use of contaminated irrigation water based on estimates concentrations in ambient water.
A73: References | B73: References cited in workbook

Sheet A01
A1: Program Data: Applcation of liquid formulation to a body of water at a specified target concentration (application rate).
A2: Parameter/Assumption | B2: Code / Range | C2: Equation/ Value | D2: Units | E2: Reference/Equation
A3: Application Information | E3: ProgAqPpmLqu
A4: Application Rate | B4: ApRt
B5: Central | C5: 0.4 | D5: ppm (mg/L) | E5: Program Input
B6: Lower | C6: ='A01'!ApRt_C -> 0.4 | E6: Program Input
B7: Upper | C7: ='A01'!ApRt_C -> 0.4 | E7: Program Input
A8: Number of applications | B8: NAps | C8: 1 | D8: unitless | E8: Program Input
A9: Interval between applications | B9: ApIntrv | C9: 1 | D9: days | E9: Program Input
A10: Proportion of a.i. in formulation | B10: PropAI | C10: 0.44 | D10: unitless (w/w) | E10: Program Input
A11: Bulk Density of Formulation | B11: BulkDens | C11: 9.656 | D11: lbs formulation/gallon | E11: Program Input
A12: Dilution Volume | B12: DilVol
B13: Central | C13: 4 | D13: total gal per gal formulation | E13: Program Input
B14: Lower | C14: 4 | E14: Program Input
B15: Upper | C15: 4 | E15: Program Input
A16: Number of significant figures in mg/L concentration. | B16: NSig | C16: 2
A19: Volume of water treated | B19: NLit | C19: 6000000 | D19: Liters | E19: Program Input
A20: Constants
A21: Conversion Factor for lbs/gal to mg/mL | B21: CnvF1 | C21: 119.8 | D21: mg/mL/lb/gal
A22: Conversion Factor for pounds to mg | B22: CnvF2 | C22: 453592.27 | D22: mg/pound
A24: Calculated Values
A25: Concentration in field solution (lb a.i./gal) | B25: Concppg | C25: Prop * BulkDens/DilVol
B26: Central | C26: =C$10*C$11/C13 -> 1.06216 | D26: lb/gal | E26: Eq
B27: Lower | C27: =C$10*C$11/C15 -> 1.06216 | E27: Eq
B28: Upper | C28: =C$10*C$11/C14 -> 1.06216 | E28: Eq
A29: Concentration in field solution (mg/mL) | B29: FldConc | C29: Concppg * CnvF1
B30: Central | C30: =IF(C26>0, DigitRound( C26*C$21, C$16), "NA") -> 130 | D30: mg/mL | E30: Eq
B31: Lower | C31: =IF(C27>0, DigitRound( C27*C$21, C$16), "NA") -> 130 | E31: Eq
B32: Upper | C32: =IF(C28>0, DigitRound( C28*C$21, C$16), "NA") -> 130 | E32: Eq
A33: mg Applied | B33: mgAp | C33: =C19*ApRt_C -> 2400000 | D33: mg (NLit * ApRt) | E33: Eq
A34: Pounds a.i. handled (mgAp /CnvF2) | B34: lbsHandled | C34: =C33/C22 -> 5.291095459 | D34: pounds a.i. | E34: Eq
A35: Standard Values/Options for Scenarios (You can change the values below.)
A36: Surface area of pond for spill | B36: PondSA_M | C36: 1000 | D36: Sq. Meters | E36: Risk assessment.
A37: Pond depth | B37: PondDepthM | C37: 1 | D37: Meters | E37: Risk assessment.
A38: Duration for longer-term exposures | B38: SubChDays | C38: 90 | D38: Days | E38: Risk assessment.
A39: Duration for swimming scenarios | B39: SwimMin | C39: 60 | D39: Minutes | E39: Risk assessment.
A40: Protection factor for workers based on PPE. | B40: WrkProtectFact
B41: Central | C41: 0 | E41: Risk assessment.
B42: Lower | C42: 0
B43: Upper | C43: 0
A44: Toxic Equivalency Factor for formulation | B44: TEF
B45: Central | C45: 1 | E45: Risk assessment.
B46: Lower | C46: 1
B47: Upper | C47: 1
A48: Worker Exposure Rate | B48: WrkExpRate
B49: Central | C49: 0.002 | D49: Mg/kg bw per lb | E49: Risk assessment.
B50: Lower | C50: 0.0004
B51: Upper | C51: 0.01
A52: Drift used in food commody worksheets | B52: DriftToFood
B53: Central | C53: 1 | E53: Risk assessment.
B54: Lower | C54: 1
B55: Upper | C55: 1
A56: Amount spilled into ponds | B56: PondSpillVolGal
B57: Central | C57: 100 | D57: Gal | E57: Risk assessment.
B58: Lower | C58: 20
B59: Upper | C59: 200
A60: Field half-life in water body (aquatic apps in lb/acre) | B60: WatBodTD50
B61: Central | C61: 0.096 | D61: per day | E61: Risk assessment.
B62: Lower | C62: 0.013
B63: Upper | C63: 4.2

Sheet A02a
A1: General reference values and exposure factors used in worksheets.
A3: Receptor | B3: Factor | C3: Value | D3: Units | E3: Reference | F3: Reference Note
A4: Adult Female | B4: Body weight | C4: 69 | D4: kg | E4: U.S. EPA/OPP 2012 | F4: p. 2-1, Table 2-1, mean female adults
A5: Adult Female | B5: Surface Area, Feet and lower Legs | C5: 3550 | D5: cm2 | E5: U.S. EPA/ORD 2011 | F5: p. 7-45, Table 7-13, mean surface area, feet and lower legs = 0.355 m2
A6: Adult Female | B6: Surface Area, Wearing shorts and T-shirt | C6: 6810 | D6: cm2 | E6: U.S. EPA/ORD 2011 | F6: p. 7-45, Table 7-13, total for arms, hands, plus lower legs, and feet
A7: Adult Female | B7: Surface Area, Whole body | C7: 17700 | D7: cm2 | E7: U.S. EPA/OPP 2012 | F7: p. 2-3, Table 2-3, mean female adults
A8: Adult Male | B8: Body weight | C8: 86 | D8: kg | E8: U.S. EPA/OPP 2012 | F8: p. 2-1, Table 2-1, mean male adults
A9: Subsistence Populations | B9: Body weight | C9: 80 | D9: kg | E9: U.S. EPA/OPP 2012 | F9: p. 2-1, Table 2-1, mean combined adults
A10: Worker, Aerial Spray | B10: Absorbed dose rate, central estimate | C10: 2e-05 | D10: (mg/kg bw)/(lbs handled per day) | E10: SERA 2014 | F10: p. 131, Table 6, all aerial broadcast based on 2,4-D as reference chemical. Central estimate. 490 acres treated per day.
A11: Worker, Aerial Spray | B11: Absorbed dose rate, lower range | C11: 5e-07 | D11: (mg/kg bw)/(lbs handled per day) | E11: SERA 2014 | F11: p. 131, Table 6, all aerial broadcast based on 2,4-D as reference chemical. Lower prediction interval. 240 acres treated per day.
A12: Worker, Aerial Spray | B12: Absorbed dose rate, upper range | C12: 0.0008 | D12: (mg/kg bw)/(lbs handled per day) | E12: SERA 2014 | F12: p. 131, Table 6, all aerial broadcast based on 2,4-D as reference chemical. Upper prediction interval. 800 acres treated per day.
A13: Worker, Aerial Spray | B13: Hours of application per day, central estimate | C13: 7 | D13: Hours per day | E13: USDA 1989a | F13: N/A
A14: Worker, Aerial Spray | B14: Hours of application per day, lower range | C14: 6 | D14: Hours per day | E14: USDA 1989a | F14: N/A
A15: Worker, Aerial Spray | B15: Hours of application per day, upper range | C15: 8 | D15: Hours per day | E15: USDA 1989a | F15: N/A
A16: Worker, Aerial Spray | B16: Acres treated per hour, central estimate | C16: 70 | D16: acres/hour | E16: USDA 1989a | F16: Acres treated per hour
A17: Worker, Aerial Spray | B17: Acres treated per hour, lower range | C17: 40 | D17: acres/hour | E17: USDA 1989a | F17: Acres treated per hour
A18: Worker, Aerial Spray | B18: Acres treated per hour, upper range | C18: 100 | D18: acres/hour | E18: USDA 1989a | F18: Acres treated per hour
A19: Worker, Backpack | B19: Absorbed dose rate, central estimate | C19: 0.005 | D19: (mg/kg bw)/(lbs handled per day) | E19: SERA 2014 | F19: p. 131, Table 6, backpack directed foliar based on 2,4-D as reference chemical. Central estimate. 4.4 acres treated per day.
A20: Worker, Backpack | B20: Absorbed dose rate, lower range | C20: 0.001 | D20: (mg/kg bw)/(lbs handled per day) | E20: SERA 2014 | F20: p. 131, Table 6, backpack directed foliar based on 2,4-D as reference chemical. Lower prediction interval. 1.5 acres treated per day.
A21: Worker, Backpack | B21: Absorbed dose rate, upper range | C21: 0.02 | D21: (mg/kg bw)/(lbs handled per day) | E21: SERA 2014 | F21: p. 131, Table 6, backpack directed foliar based on 2,4-D as reference chemical. Upper prediction interval. 8.0 acres treated per day.
A22: Worker, Backpack | B22: Hours of application per day, central estimate | C22: 7 | D22: Hours per day | E22: USDA 1989a | F22: N/A
A23: Worker, Backpack | B23: Hours of application per day, lower range | C23: 6 | D23: Hours per day | E23: USDA 1989a | F23: N/A
A24: Worker, Backpack | B24: Hours of application per day, upper range | C24: 8 | D24: Hours per day | E24: USDA 1989a | F24: N/A
A25: Worker, Backpack | B25: Acres treated per hour, central estimate | C25: 0.625 | D25: acres/hour | E25: USDA 1989a | F25: Acres treated per hour
A26: Worker, Backpack | B26: Acres treated per hour, lower range | C26: 0.25 | D26: acres/hour | E26: USDA 1989a | F26: Acres treated per hour
A27: Worker, Backpack | B27: Acres treated per hour, upper range | C27: 1 | D27: acres/hour | E27: USDA 1989a | F27: Acres treated per hour
A28: Child | B28: Body weight | C28: 11 | D28: kg | E28: U.S. EPA/OPP 2012 | F28: p. 3-9, Table 3-3, children 1 < 2 years old
A29: Child | B29: Surface Area, Whole body | C29: 6030 | D29: cm2 | E29: U.S. EPA/ORD 1996 | F29: p. 6-15, Table 6-6, 50th percentile.
A30: Worker, Ground Spray | B30: Absorbed dose rate, central estimate | C30: 0.0001 | D30: (mg/kg bw)/(lbs handled per day) | E30: SERA 2014 | F30: p. 131, Table 6, broadcast ground foliar based on 2,4-D as reference chemical. Central estimate. 112 acres treated per day.
A31: Worker, Ground Spray | B31: Absorbed dose rate, lower range | C31: 2e-06 | D31: (mg/kg bw)/(lbs handled per day) | E31: SERA 2014 | F31: p. 131, Table 6, broadcast ground foliar based on 2,4-D as reference chemical. Lower prediction. 66 acres treated per day.
A32: Worker, Ground Spray | B32: Absorbed dose rate, upper range | C32: 0.005 | D32: (mg/kg bw)/(lbs handled per day) | E32: SERA 2014 | F32: p. 131, Table 6, broadcast ground foliar based on 2,4-D as reference chemical. Upper prediction.168 acres treated per day.
A33: Worker, Ground Spray | B33: Hours of application per day, central estimate | C33: 7 | D33: Hours per day | E33: USDA 1989a | F33: N/A
A34: Worker, Ground Spray | B34: Hours of application per day, lower range | C34: 6 | D34: Hours per day | E34: USDA 1989a | F34: N/A
A35: Worker, Ground Spray | B35: Hours of application per day, upper range | C35: 8 | D35: Hours per day | E35: USDA 1989a | F35: N/A
A36: Worker, Ground Spray | B36: Acres treated per hour, central estimate | C36: 16 | D36: acres/hour | E36: USDA 1989a | F36: Acres treated per hour
A37: Worker, Ground Spray | B37: Acres treated per hour, lower range | C37: 11 | D37: acres/hour | E37: USDA 1989a | F37: Acres treated per hour
A38: Worker, Ground Spray | B38: Acres treated per hour, upper range | C38: 21 | D38: acres/hour | E38: USDA 1989a | F38: Acres treated per hour
A39: Worker | B39: Body weight | C39: 86 | D39: kg | E39: U.S. EPA/OPP 2012 | F39: p. 2-1, Table 2-1, mean male adults
A40: Worker | B40: Surface Area, Hands | C40: 1070 | D40: cm2 | E40: U.S. EPA/ORD 2011 | F40: p. 7-44, Table 7-12, mean of surface area for hands
A41: Worker | B41: Surface Area, Lower legs | C41: 2680 | D41: cm2 | E41: U.S. EPA/ORD 2011 | F41: p. 7-44, Table 7-12, mean of surface area for lower legs

Sheet A02b
A1: General reference values and exposure factors used in worksheets.
A3: Receptor | B3: Factor | C3: Value | D3: Units | E3: Reference | F3: Reference Note
A4: Amphibian | B4: Kilocalories, alpha parameter for allometric equation | C4: 0.054 | D4: BW(g),Kcal (kcal/day) | E4: U.S. EPA/ORD 1993 | F4: p. 3-7, equation 3-14
A5: Amphibian | B5: Kilocalories, beta parameter for allometric equation | C5: 0.799 | D5: BW(g),Kcal (kcal/day) | E5: U.S. EPA/ORD 1993 | F5: p. 3-7, equation 3-14
A6: Amphibian, bull frog | B6: Food consumption, alpha parameter for allometric equation | C6: 1.09 | D6: BW(g),FC(g) | E6: SERA 2010 | F6: Figure 15
A7: Amphibian, bull frog | B7: Food consumption, beta parameter for allometric equation | C7: 0.1723 | D7: BW(g),FC(g) | E7: SERA 2010 | F7: Figure 15
A8: Bird, NOS | B8: Food consumption, alpha parameter for allometric equation | C8: 0.648 | D8: BW(g),FC(g) | E8: U.S. EPA/ORD 1993 | F8: Eq. 3-3, p. 3-4, all birds
A9: Bird, NOS | B9: Food consumption, beta parameter for allometric equation | C9: 0.651 | D9: BW(g),FC(g) | E9: U.S. EPA/ORD 1993 | F9: Eq. 3-3, p. 3-4, all birds
A10: Bird, carnivorous | B10: Body weight | C10: 0.64 | D10: kg | E10: Dunning 1993 | F10: p. 97. Female Spotted Owl (Strix occidentalis). Range of 548 to 760 g.
A11: Bird, carnivorous | B11: Kilocalories, alpha parameter for allometric equation | C11: 1.146 | D11: BW(g),KCal(kcal/day) | E11: U.S. EPA/ORD 1993 | F11: Eq. 3-37, nonpasserines
A12: Bird, carnivorous | B12: Kilocalories, beta parameter for allometric equation | C12: 0.749 | D12: BW(g),KCal(kcal/day) | E12: U.S. EPA/ORD 1993 | F12: Eq. 3-37, nonpasserines
A13: Bird, carnivorous | B13: Water consumption, alpha parameter for allometric equation | C13: 0.059 | D13: BW(kg), WC(L) | E13: U.S. EPA/ORD 1993 | F13: Eq. 3-15, p. 3-8
A14: Bird, carnivorous | B14: Water consumption, beta parameter for allometric equation | C14: 0.67 | D14: BW(kg), WC(L) | E14: U.S. EPA/ORD 1993 | F14: Eq. 3-15, p. 3-8
A15: Bird, large | B15: Body weight | C15: 4 | D15: kg | E15: Default | F15: Canada goose
A16: Bird, large | B16: Kilocalories, alpha parameter for allometric equation | C16: 1.146 | D16: BW(g),KCal(kcal/day) | E16: U.S. EPA/ORD 1993 | F16: Eq. 3-37, non-passerines
A17: Bird, large | B17: Kilocalories, beta parameter for allometric equation | C17: 0.749 | D17: BW(g),KCal(kcal/day) | E17: U.S. EPA/ORD 1993 | F17: Eq. 3-37, non-passerines
A18: Bird, large | B18: Water consumption, alpha parameter for allometric equation | C18: 0.059 | D18: BW(kg), WC(L) | E18: U.S. EPA/ORD 1993 | F18: Eq. 3-15, p. 3-8
A19: Bird, large | B19: Water consumption, beta parameter for allometric equation | C19: 0.67 | D19: BW(kg), WC(L) | E19: U.S. EPA/ORD 1993 | F19: Eq. 3-15, p. 3-8
A20: Bird, non-Passerine | B20: Food consumption, alpha parameter for allometric equation | C20: 0.301 | D20: BW(g),FC(g) | E20: U.S. EPA/ORD 1993 | F20: Eq. 3-5, p. 3-5, non-passerines
A21: Bird, non-Passerine | B21: Food consumption, beta parameter for allometric equation | C21: 0.751 | D21: BW(g),FC(g) | E21: U.S. EPA/ORD 1993 | F21: Eq. 3-5, p. 3-5, non-passerines
A22: Bird, Passerine | B22: Food consumption, alpha parameter for allometric equation | C22: 0.398 | D22: BW(g),FC(g) | E22: U.S. EPA/ORD 1993 | F22: Eq. 3-4, p. 3-4, passerines
A23: Bird, Passerine | B23: Food consumption, beta parameter for allometric equation | C23: 0.85 | D23: BW(g),FC(g) | E23: U.S. EPA/ORD 1993 | F23: Eq. 3-4, p. 3-4, passerines
A24: Bird, piscivorous | B24: Body weight | C24: 2.4 | D24: kg | E24: Sibley 2000 | F24: p. 60. Great Blue Heron
A25: Bird, piscivorous | B25: Food consumption, alpha parameter for allometric equation | C25: 0.495 | D25: BW(g), FC(g) | E25: U.S. EPA/ORD 1993 | F25: Eq. 3-6, p. 3-5, seabird
A26: Bird, piscivorous | B26: Food consumption, beta parameter for allometric equation | C26: 0.704 | D26: BW(g), FC(g) | E26: U.S. EPA/ORD 1993 | F26: Eq. 3-6, p. 3-5, seabird
A27: Bird, piscivorous | B27: Kilocalories, alpha parameter for allometric equation | C27: 1.916 | D27: BW(g),KCal(kcal/day) | E27: U.S. EPA/ORD 1993 | F27: Eq. 3-38, p. 3-23, seabird
A28: Bird, piscivorous | B28: Kilocalories, beta parameter for allometric equation | C28: 0.704 | D28: BW(g),KCal(kcal/day) | E28: U.S. EPA/ORD 1993 | F28: Eq. 3-38, p. 3-23, seabird
A29: Bird, piscivorous | B29: Water consumption, alpha parameter for allometric equation | C29: 0.059 | D29: BW(kg), WC(L) | E29: U.S. EPA/ORD 1993 | F29: Eq. 3-15, p. 3-8
A30: Bird, piscivorous | B30: Water consumption, beta parameter for allometric equation | C30: 0.67 | D30: BW(kg), WC(L) | E30: U.S. EPA/ORD 1993 | F30: Eq. 3-15, p. 3-8
A31: Bird, small | B31: Body weight | C31: 0.01 | D31: kg | E31: Default | F31: N/A
A32: Bird, small | B32: Kilocalories, alpha parameter for allometric equation | C32: 3.12 | D32: BW(g),KCal(kcal/day) | E32: U.S. EPA/ORD 1993 | F32: Equation 3-36, passerines
A33: Bird, small | B33: Kilocalories, beta parameter for allometric equation | C33: 0.605 | D33: BW(g),KCal(kcal/day) | E33: U.S. EPA/ORD 1993 | F33: Equation 3-36, passerines
A34: Bird, small | B34: Water consumption, alpha parameter for allometric equation | C34: 0.059 | D34: BW(kg), WC(L) | E34: U.S. EPA/ORD 1993 | F34: Eq. 3-15, p. 3-8
A35: Bird, small | B35: Water consumption, beta parameter for allometric equation | C35: 0.67 | D35: BW(kg), WC(L) | E35: U.S. EPA/ORD 1993 | F35: Eq. 3-15, p. 3-8
A36: Honeybee | B36: Body weight | C36: 0.000116 | D36: kg | E36: Winston 1987 | F36: p. 54. Arithmetic average of range: 81 to 151 mg/bee.
A37: Honeybee | B37: Surface Area, Whole body | C37: 1.42 | D37: cm2 | E37: Humphery and Dykes 2008 | F37: Based on a bee with a body length of 1.44 cm.
A38: Mammal, Nos | B38: Food consumption, alpha parameter for allometric equation | C38: 0.235 | D38: BW(g),FC(g) | E38: U.S. EPA/ORD 1993 | F38: Eq. 3-7 ,p. 3-6, all mammals
A39: Mammal, Nos | B39: Food consumption, beta parameter for allometric equation | C39: 0.822 | D39: BW(g),FC(g) | E39: U.S. EPA/ORD 1993 | F39: Eq. 3-7 ,p. 3-6, all mammals
A40: Mammal, 400 g | B40: Body weight | C40: 0.4 | D40: kg | E40: Default | F40: N/A
A41: Mammal, 400 g | B41: Food consumption, alpha parameter for allometric equation | C41: 0.621 | D41: BW(g),FC(g) | E41: U.S. EPA/ORD 1993 | F41: Eq. 3-8, p. 3-6, equation for rodents
A42: Mammal, 400 g | B42: Food consumption, beta parameter for allometric equation | C42: 0.564 | D42: BW(g),FC(g) | E42: U.S. EPA/ORD 1993 | F42: Eq. 3-8, p. 3-6, equation for rodents
A43: Mammal, 400 g | B43: Kilocalories, alpha parameter for allometric equation | C43: 2.514 | D43: BW(g),KCal(kcal/day) | E43: U.S. EPA/ORD 1993 | F43: Equation 3-48, rodent
A44: Mammal, 400 g | B44: Kilocalories, beta parameter for allometric equation | C44: 0.507 | D44: BW(g),KCal(kcal/day) | E44: U.S. EPA/ORD 1993 | F44: Equation 3-48, rodent
A45: Mammal, 400 g | B45: Water consumption, alpha parameter for allometric equation | C45: 0.099 | D45: BW(kg),WC(L) | E45: U.S. EPA/ORD 1993 | F45: Eq. 3-17, p. 3-10, all mammals
A46: Mammal, 400 g | B46: Water consumption, beta parameter for allometric equation | C46: 0.9 | D46: BW(kg),WC(L) | E46: U.S. EPA/ORD 1993 | F46: Eq. 3-17, p. 3-10, all mammals
A47: Mammal, carnivorous | B47: Body weight | C47: 5 | D47: kg | E47: U.S. EPA/ORD 1993 | F47: p. 2-221. Central value for red fox with a range of 3 to 7 kg.
A48: Mammal, carnivorous | B48: Kilocalories, alpha parameter for allometric equation | C48: 0.6167 | D48: BW(g),KCal(kcal/day) | E48: U.S. EPA/ORD 1993 | F48: Equation 3-47, non-herbivore
A49: Mammal, carnivorous | B49: Kilocalories, beta parameter for allometric equation | C49: 0.862 | D49: BW(g),KCal(kcal/day) | E49: U.S. EPA/ORD 1993 | F49: Equation 3-47, non-herbivore
A50: Mammal, carnivorous | B50: Water consumption, alpha parameter for allometric equation | C50: 0.099 | D50: BW(kg),WC(L) | E50: U.S. EPA/ORD 1993 | F50: Eq. 3-17, p. 3-10, all mammals
A51: Mammal, carnivorous | B51: Water consumption, beta parameter for allometric equation | C51: 0.9 | D51: BW(kg), WC(L) | E51: U.S. EPA/ORD 1993 | F51: Eq. 3-17, p. 3-10, all mammals
A52: Mammal, large carnivorous | B52: Body weight | C52: 70 | D52: kg | E52: Reid 2006 | F52: pp. 451-453. Black bear or small grizzly.
A53: Mammal, large carnivorous | B53: Kilocalories, alpha parameter for allometric equation | C53: 0.6167 | D53: BW(g),KCal(kcal/day) | E53: U.S. EPA/ORD 1993 | F53: Equation 3-47, non-herbivore
A54: Mammal, large carnivorous | B54: Kilocalories, beta parameter for allometric equation | C54: 0.862 | D54: BW(g),KCal(kcal/day) | E54: U.S. EPA/ORD 1993 | F54: Equation 3-47, non-herbivore
A55: Mammal, large carnivorous | B55: Water consumption, alpha parameter for allometric equation | C55: 0.099 | D55: BW(kg),WC(L) | E55: U.S. EPA/ORD 1993 | F55: Eq. 3-17, p. 3-10, all mammals
A56: Mammal, large carnivorous | B56: Water consumption, beta parameter for allometric equation | C56: 0.9 | D56: BW(kg), WC(L) | E56: U.S. EPA/ORD 1993 | F56: Eq. 3-17, p. 3-10, all mammals
A57: Mammal, herbivorous | B57: Food consumption, alpha parameter for allometric equation | C57: 0.577 | D57: BW(g),FC(g) | E57: U.S. EPA/ORD 1993 | F57: Eq. 3-9, p. 3-6, equation for herbivores
A58: Mammal, herbivorous | B58: Food consumption, beta parameter for allometric equation | C58: 0.727 | D58: BW(g),FC(g) | E58: U.S. EPA/ORD 1993 | F58: Eq. 3-9, p. 3-6, equation for herbivores
A59: Mammal, herbivorous | B59: Kilocalories, alpha parameter for allometric equation | C59: 1.518 | D59: BW(g),KCal(kcal/day) | E59: U.S. EPA/ORD 1993 | F59: Equation 3-46, herbivores
A60: Mammal, herbivorous | B60: Kilocalories, beta parameter for allometric equation | C60: 0.73 | D60: BW(g),KCal(kcal/day) | E60: U.S. EPA/ORD 1993 | F60: Equation 3-46, herbivores
A61: Mammal, large | B61: Body weight | C61: 70 | D61: kg | E61: Default | F61: N/A
A62: Mammal, large | B62: Kilocalories, alpha parameter for allometric equation | C62: 1.518 | D62: BW(g),KCal(kcal/day) | E62: U.S. EPA/ORD 1993 | F62: p. 3-6, Eq. 3-10, herbivores
A63: Mammal, large | B63: Kilocalories, beta parameter for allometric equation | C63: 0.73 | D63: BW(g),KCal(kcal/day) | E63: U.S. EPA/ORD 1993 | F63: p. 3-6, Eq. 3-10, herbivores
A64: Mammal, large | B64: Water consumption, alpha parameter for allometric equation | C64: 0.099 | D64: BW(kg),WC(L) | E64: U.S. EPA/ORD 1993 | F64: Eq. 3-17, p. 3-10, all mammals
A65: Mammal, large | B65: Water consumption, beta parameter for allometric equation | C65: 0.9 | D65: BW(kg), WC(L) | E65: U.S. EPA/ORD 1993 | F65: Eq. 3-17, p. 3-10, all mammals
A66: Mammal, rabbit | B66: Body weight | C66: 1.3 | D66: kg | E66: Default | F66: N/A
A67: Mammal, rabbit | B67: Surface Area, alpha parameter for allometric equation | C67: 0.11 | D67: BW(kg),SA(m2) | E67: U.S. EPA/ORD 1993 | F67: p. 3-14, Eq. 3-22, for all mammals
A68: Mammal, rabbit | B68: Surface Area, beta parameter for allometric equation | C68: 0.65 | D68: BW(kg),SA(m2) | E68: U.S. EPA/ORD 1993 | F68: p. 3-14, Eq. 3-22, for all mammals
A69: Mammal, rodent | B69: Food consumption, alpha parameter for allometric equation | C69: 0.621 | D69: BW(g),FC(g) | E69: U.S. EPA/ORD 1993 | F69: Eq. 3-8, p. 3-6, equation for rodents
A70: Mammal, rodent | B70: Food consumption, beta parameter for allometric equation | C70: 0.584 | D70: BW(g),FC(g) | E70: U.S. EPA/ORD 1993 | F70: Eq. 3-8,p. 3-6, equation for rodents
A71: Mammal, small | B71: Body weight | C71: 0.02 | D71: kg | E71: Default | F71: N/A
A72: Mammal, small | B72: Caloric content (wet weight) | C72: 1.7 | D72: kcal/g (wet weight) | E72: U.S. EPA/ORD 1993 | F72: Table 4-1, p. 4-13. Value for small mammals. Wet weight.
A73: Mammal, small | B73: Food consumption, alpha parameter for allometric equation | C73: 0.621 | D73: BW(g),FC(g) | E73: U.S. EPA/ORD 1993 | F73: Eq. 3-8, p. 3-6, equation for rodents
A74: Mammal, small | B74: Food consumption, beta parameter for allometric equation | C74: 0.564 | D74: BW(g),FC(g) | E74: U.S. EPA/ORD 1993 | F74: Eq. 3-8, p. 3-6, equation for rodents
A75: Mammal, small | B75: Kilocalories, alpha parameter for allometric equation | C75: 2.514 | D75: BW(g),KCal(kcal/day) | E75: U.S. EPA/ORD 1993 | F75: Equation 3-48, rodent
A76: Mammal, small | B76: Kilocalories, beta parameter for allometric equation | C76: 0.507 | D76: BW(g),KCal(kcal/day) | E76: U.S. EPA/ORD 1993 | F76: Equation 3-48, rodent
A77: Mammal, small | B77: Surface Area, alpha parameter for allometric equation | C77: 0.11 | D77: BW(kg),SA(m2) | E77: U.S. EPA/ORD 1993 | F77: p. 3-14, Eq. 3-22, for all mammals
A78: Mammal, small | B78: Surface Area, beta parameter for allometric equation | C78: 0.65 | D78: BW(kg),SA(m2) | E78: U.S. EPA/ORD 1993 | F78: p. 3-14, Eq. 3-22, for all mammals
A79: Mammal, small | B79: Water consumption, alpha parameter for allometric equation | C79: 0.099 | D79: BW(kg),WC(L) | E79: U.S. EPA/ORD 1993 | F79: Eq. 3-17, p. 3-10, all mammals
A80: Mammal, small | B80: Water consumption, beta parameter for allometric equation | C80: 0.9 | D80: BW(kg),WC(L) | E80: U.S. EPA/ORD 1993 | F80: Eq. 3-17, p. 3-10, all mammals

Sheet A02c
A1: General reference values and exposure factors used in worksheets.
A3: Receptor | B3: Factor | C3: Value | D3: Units | E3: Reference | F3: Reference Note
A4: Small Insects | B4: Caloric content (wet weight) | C4: 1.5 | D4: kcal/g (wet weight) | E4: U.S. EPA/ORD 1993 | F4: Table 4-1, p. 4-13. Value for beetles. Wet weight
A5: Fish | B5: Caloric content (wet weight) | C5: 1.2 | D5: kcal/g (wet weight) | E5: U.S. EPA/ORD 1993 | F5: Table 4-1, p. 4-13. Value for bony fish. Wet weight
A6: Vegetation | B6: Caloric content (dry weight) | C6: 2.26 | D6: kcal/g | E6: U.S. EPA/ORD 1993 | F6: p. 3-5, Table 3-1
A7: Vegetation | B7: Water content (proportion) | C7: 0.85 | D7: unitless | E7: U.S. EPA/ORD 1993 | F7: p. 4-14
A8: VegRR | B8: Broadleaf/forage plants and small insects, central estimate | C8: 45 | D8: mg chem/kg veg | E8: Fletcher et al. 1994 | F8: Broadleaf/forage plants and small insects
A9: VegRR | B9: Broadleaf/forage plants and small insects, upper range | C9: 135 | D9: mg chem/kg veg | E9: Fletcher et al. 1994 | F9: Broadleaf/forage plants and small insects
A10: VegRR | B10: Fruits, pods, seeds, and large insects, central estimate | C10: 7 | D10: mg chem/kg veg | E10: Fletcher et al. 1994 | F10: Fruits, pods, seeds, and large insects
A11: VegRR | B11: Fruits, pods, seeds, and large insects, upper range | C11: 15 | D11: mg chem/kg veg | E11: Fletcher et al. 1994 | F11: Fruits, pods, seeds, and large insects
A12: VegRR | B12: Broadleaf plants and small insects, granular applications, central estimate | C12: 1.8 | D12: mg chem/kg veg | E12: SERA 2005 | F12: Broadleaf forage plants and contaminated insects after granular application
A13: VegRR | B13: Broadleaf plants and small insects, granular applications, upper range | C13: 5.4 | D13: mg chem/kg veg | E13: SERA 2005 | F13: Broadleaf forage plants and contaminated insects after granular application
A14: VegRR | B14: Fruits, granular applications, central estimate | C14: 0.28 | D14: mg chem/kg veg | E14: SERA 2005 | F14: Fruit after granular application
A15: VegRR | B15: Fruits, granular applications, upper range | C15: 0.6 | D15: mg chem/kg veg | E15: SERA 2005 | F15: Fruit after granular application
A16: VegRR | B16: Short grass, granular applications, lower range | C16: 1.2 | D16: mg chem/kg veg | E16: SERA 2005 | F16: Short grass after granular application
A17: VegRR | B17: Short grass, granular applications, upper range | C17: 9.6 | D17: mg chem/kg veg | E17: SERA 2005 | F17: Short grass after granular application
A18: VegRR | B18: Tall grass, granular applications, central estimate | C18: 1.44 | D18: mg chem/kg veg | E18: SERA 2005 | F18: Tall grass after granular application
A19: VegRR | B19: Tall grass, granular applications, upper range | C19: 4.4 | D19: mg chem/kg veg | E19: SERA 2005 | F19: Tall grass after granular application
A20: VegRR | B20: Short grass, central estimate | C20: 85 | D20: mg chem/kg veg | E20: Fletcher et al. 1994 | F20: Short grass
A21: VegRR | B21: Short grass, lower range | C21: 30 | D21: mg chem/kg veg | E21: SERA 2007 | F21: Short grass
A22: VegRR | B22: Short grass, upper range | C22: 240 | D22: mg chem/kg veg | E22: Fletcher et al. 1994 | F22: Short grass
A23: VegRR | B23: Tall grass, central estimate | C23: 36 | D23: mg chem/kg veg | E23: Fletcher et al. 1994 | F23: Tall grass
A24: VegRR | B24: Tall grass, upper range | C24: 110 | D24: mg chem/kg veg | E24: Fletcher et al. 1994 | F24: Tall grass

Sheet A02d
A1: General reference values and exposure factors used in worksheets.
A3: Receptor | B3: Factor | C3: Value | D3: Units | E3: Reference | F3: Reference Note
A4: Conversion Factors | B4: acrefoot2gal | C4: 325900 | D4: gal/acre-foot | E4: Budavari 1989 | F4: N/A
A5: Conversion Factors | B5: liters per gal | C5: 3.785 | D5: L/gal | E5: Budavari 1989 | F5: N/A
A6: Conversion Factors | B6: pound per milligram | C6: 453600 | D6: mg/lb | E6: Budavari 1989 | F6: N/A
A7: Conversion Factors | B7: lbac2mgcm2 | C7: 0.01121 | D7: mg/cm2 per lb/acre | E7: Budavari 1989 | F7: N/A
A8: Conversion Factors | B8: lbac2ugcm2 | C8: 11.21 | D8: ug/cm2 per lb/acre | E8: Budavari 1989 | F8: N/A
A9: Conversion Factors | B9: conversion for milligrams to pounds | C9: 2.204e-06 | D9: lb/mg | E9: Budavari 1989 | F9: N/A
A10: Conversion Factors | B10: conversion for milliliters to gallons | C10: 3785 | D10: ml/gal | E10: Budavari 1989 | F10: N/A
A11: Misc | B11: Liquid adhering to skin | C11: 0.008 | D11: mL/cm2 | E11: Mason and Johnson 1987 | F11: Weight of liquid adhering to surface of skin after a spill
A12: Misc | B12: Dislodgeable residue as proportion | C12: 0.1 | D12: none | E12: Harris and Solomon 1992 | F12: Estimate of dislodgeable residue as a proportion of application rate shortly after application based on 2,4-D.
A13: Standard Pond | B13: Depth | C13: 1 | D13: m | E13: Default | F13: Depth of pond
A14: Standard Pond | B14: Surface Area | C14: 1000 | D14: m^2 | E14: Default | F14: Surface Area
A15: Standard Pond | B15: Volume of Spill | C15: 200 | D15: gallons | E15: Default | F15: Volume of spill
A16: VegRR | B16: Broadleaf/forage plants and small insects, lower range | C16: 15 | D16: mg chem/kg veg | E16: SERA 2007 | F16: Broadleaf/forage plants and small insects
A17: VegRR | B17: Fruits, pods, seeds, and large insects, lower range | C17: 3.2 | D17: mg chem/kg veg | E17: SERA 2007 | F17: Fruits, pods, seeds, and large insects
A18: VegRR | B18: Broadleaf plants and small insects, granular applications, lower range | C18: 0.6 | D18: mg chem/kg veg | E18: SERA 2007 | F18: Broadleaf/forage plants after granular application
A19: VegRR | B19: Fruits, granular applications, lower range | C19: 0.13 | D19: mg chem/kg veg | E19: SERA 2007 | F19: Fruit after granular application
A20: VegRR | B20: Short grass, granular applications, central estimate | C20: 3.4 | D20: mg chem/kg veg | E20: SERA 2005 | F20: Short grass after granular application
A21: VegRR | B21: Short grass, granular applications, lower range | C21: 1.2 | D21: mg chem/kg veg | E21: SERA 2007 | F21: Short grass after granular application
A22: VegRR | B22: Tall grass, granular applications, lower range | C22: 0.48 | D22: mg chem/kg veg | E22: SERA 2007 | F22: Tall grass after granular application
A23: VegRR | B23: Short grass, lower range | C23: 30 | D23: mg chem/kg veg | E23: Fletcher et al. 1994 | F23: Short grass
A24: VegRR | B24: Tall grass, lower range | C24: 12 | D24: mg chem/kg veg | E24: SERA 2007 | F24: Tall grass

Sheet A03
A1: Food items for terrestrial animals
A3: Receptor | B3: Consumer | C3: Qualifier | D3: Modifier | E3: Value | F3: Units | G3: Reference | H3: Reference Note
A4: Adult Female | B4: Fish | C4: Amount | D4: central estimate | E4: 0.01 | F4: kg/day | G4: U.S. EPA/ORD 1996 | H4: p. 10-51, average of means from four studies rounded to one significant place.
A5: Adult Female | B5: Fish | C5: Amount | D5: upper range | E5: 0.158 | F5: kg/day | G5: Ruffle et al. 1994 | H5: N/A
A6: Adult Female | B6: Fruit | C6: Proportion of body weight | D6: central estimate | E6: 0.00168 | F6: kg fruit/kg bw/day | G6: U.S. EPA/ORD 1996 | H6: Table 9-3, p. 9-11, mean value.
A7: Adult Female | B7: Fruit | C7: Proportion of body weight | D7: lower range | E7: 0.00168 | F7: kg fruit/kg bw/day | G7: U.S. EPA/ORD 1996 | H7: Table 9-3, p. 9-11. The 5th percentile is given as zero. For these worksheets, the central estimate is used for the lower bound.
A8: Adult Female | B8: Fruit | C8: Proportion of body weight | D8: upper range | E8: 0.01244 | F8: kg fruit/kg bw/day | G8: U.S. EPA/ORD 1996 | H8: Table 9-3, p. 9-11, 95th percentile value.
A9: Adult Female | B9: Vegetation, home grown | C9: Proportion of body weight | D9: central estimate | E9: 0.00076 | F9: kg veg/kg bw/day | G9: U.S. EPA/ORD 1996 | H9: Table 12-15, p. 9-14, mean for individuals between 20 and 39 years old.
A10: Adult Female | B10: Vegetation, home grown | C10: Proportion of body weight | D10: lower range | E10: 8e-05 | F10: kg veg/kg bw/day | G10: U.S. EPA/ORD 1996 | H10: Table 12-15, p. 9-14, 5th percentile for individuals between 20 and 39 years old.
A11: Adult Female | B11: Vegetation, home grown | C11: Proportion of body weight | D11: upper range | E11: 0.00492 | F11: kg veg/kg bw/day | G11: U.S. EPA/ORD 1996 | H11: Table 12-15, p. 9-14, 95th percentile for individuals between 20 and 39 years old.
A12: Adult Female | B12: Vegetation | C12: Amount | D12: Extreme | E12: 0.454 | F12: kg food | G12: U.S. EPA/ORD 1996 | H12: 1 lb. The approximate mid range of the above typical and upper limits based on the 64 kg body weight.
A13: Adult Female | B13: Vegetation | C13: Proportion of body weight | D13: central estimate | E13: 0.0036 | F13: kg veg/kg bw/day | G13: U.S. EPA/ORD 1996 | H13: Table 9-12, p. 9-12, mean.
A14: Adult Female | B14: Vegetation | C14: Proportion of body weight | D14: lower range | E14: 0.00075 | F14: kg veg/kg bw/day | G14: U.S. EPA/ORD 1996 | H14: Table 9-12, p. 9-12, 5th percentile.
A15: Adult Female | B15: Vegetation | C15: Proportion of body weight | D15: upper range | E15: 0.01 | F15: kg veg/kg bw/day | G15: U.S. EPA/ORD 1996 | H15: Table 9-12, p. 9-12, 95th percentile.
A16: Adult Female | B16: Water | C16: Amount | D16: central estimate | E16: 2 | F16: L/day | G16: U.S. EPA/ORD 1996 | H16: p. 3-28, Table 3-30, midpoint of mean (1.4 L/day) and 90th percentile (2.4 L/day) rounded to one significant place.
A17: Adult Female | B17: Water | C17: Amount | D17: lower range | E17: 1.4 | F17: L/day | G17: U.S. EPA/ORD 1996 | H17: p. 3-28, Table 3-30, mean
A18: Adult Female | B18: Water | C18: Amount | D18: upper range | E18: 2.4 | F18: L/day | G18: U.S. EPA/ORD 1996 | H18: p. 3-28, Table 3-30, 90th percentile
A19: Adult Male | B19: Fish | C19: Amount | D19: central estimate | E19: 0.01 | F19: kg/day | G19: U.S. EPA/ORD 1996 | H19: p. 10-51, average of means from four studies rounded to one significant place.
A20: Adult Male | B20: Fish | C20: Amount | D20: upper range | E20: 0.158 | F20: kg/day | G20: Ruffle et al. 1994 | H20: N/A
A21: Adult Male | B21: Fruit | C21: Proportion of body weight | D21: central estimate | E21: 0.00168 | F21: unitless | G21: U.S. EPA/ORD 1996 | H21: Table 9-3, p. 9-11, mean value.
A22: Adult Male | B22: Fruit | C22: Proportion of body weight | D22: lower range | E22: 0.00168 | F22: unitless | G22: U.S. EPA/ORD 1996 | H22: Table 9-3, p. 9-11. The 5th percentile is given as zero. For these worksheets, the central estimate is used for the lower bound.
A23: Adult Male | B23: Fruit | C23: Proportion of body weight | D23: upper range | E23: 0.01244 | F23: unitless | G23: U.S. EPA/ORD 1996 | H23: Table 9-3, p. 9-11, 95th percentile value.
A24: Adult Male | B24: Vegetation, home grown | C24: Proportion of body weight | D24: central estimate | E24: 0.00076 | F24: unitless | G24: U.S. EPA/ORD 1996 | H24: Table 12-15, p. 9-14, mean for individuals between 20 and 39 years old.
A25: Adult Male | B25: Vegetation, home grown | C25: Proportion of body weight | D25: lower range | E25: 8e-05 | F25: unitless | G25: U.S. EPA/ORD 1996 | H25: Table 12-15, p. 9-14, 5th percentile for individuals between 20 and 39 years old.
A26: Adult Male | B26: Vegetation, home grown | C26: Proportion of body weight | D26: upper range | E26: 0.00492 | F26: unitless | G26: U.S. EPA/ORD 1996 | H26: Table 12-15, p. 9-14, 95th percentile for individuals between 20 and 39 years old.
A27: Adult Male | B27: Vegetation | C27: Amount | D27: Extreme | E27: 0.454 | F27: kg/day | G27: U.S. EPA/ORD 1996 | H27: 1 lb. The approximate mid range of the above typical and upper limits based on the 64 kg body weight.
A28: Adult Male | B28: Vegetation | C28: Proportion of body weight | D28: central estimate | E28: 0.0036 | F28: unitless | G28: U.S. EPA/ORD 1996 | H28: Table 9-12, p. 9-12, mean.
A29: Adult Male | B29: Vegetation | C29: Proportion of body weight | D29: lower range | E29: 0.00075 | F29: unitless | G29: U.S. EPA/ORD 1996 | H29: Table 9-12, p. 9-12, 5th percentile.
A30: Adult Male | B30: Vegetation | C30: Proportion of body weight | D30: upper range | E30: 0.01 | F30: unitless | G30: U.S. EPA/ORD 1996 | H30: Table 9-12, p. 9-12, 95th percentile.
A31: Adult Male | B31: Water | C31: Amount | D31: central estimate | E31: 2 | F31: L/day | G31: U.S. EPA/ORD 1996 | H31: p. 3-28, Table 3-30, midpoint of mean (1.4 L/day) and 90th percentile (2.4 L/day) rounded to one significant place.
A32: Adult Male | B32: Water | C32: Amount | D32: lower range | E32: 1.4 | F32: L/day | G32: U.S. EPA/ORD 1996 | H32: p. 3-28, Table 3-30, mean
A33: Adult Male | B33: Water | C33: Amount | D33: upper range | E33: 2.4 | F33: L/day | G33: U.S. EPA/ORD 1996 | H33: p. 3-28, Table 3-30, 90th percentile
A34: Subsistence Populations | B34: Fish | C34: Amount | D34: central estimate | E34: 0.081 | F34: kg/day | G34: U.S. EPA/ORD 1996 | H34: p. 10-51, median value of 94 individuals
A35: Subsistence Populations | B35: Fish | C35: Amount | D35: upper range | E35: 0.77 | F35: kg/day | G35: U.S. EPA/ORD 1993 | H35: p. 10-51, highest value of 94 individuals
A36: Bird, NOS | B36: Fish | C36: Kilocalories | D36: FoodVal | E36: 3.87 | F36: Kcal/gram (dw) | G36: U.S. EPA/ORD 1993 | H36: Table 3-1, p. 3-5
A37: Bird, NOS | B37: Fish | C37: Wat | D37: FoodVal | E37: 0.7 | F37: Unitless | G37: Ali et al. 2005 | H37: N/A
A38: Bird, NOS | B38: Fruit | C38: Kilocalories | D38: FoodVal | E38: 1.1 | F38: Kcal/gram (dw) | G38: U.S. EPA/ORD 1993 | H38: Gross caloric value of 2.2 kcal/g dw (U.S. EPA/ORD 1993, Table 4-2) with assim fact of 0.51
A39: Bird, NOS | B39: Fruit | C39: Wat | D39: FoodVal | E39: 0.77 | F39: Unitless | G39: U.S. EPA/ORD 1993 | H39: Table 4-2, p. 4-14
A40: Bird, NOS | B40: Insect | C40: Kilocalories | D40: FoodVal | E40: 4.3 | F40: Kcal/gram (dw) | G40: U.S. EPA/ORD 1993 | H40: Table 4-2, p. 4-14
A41: Bird, NOS | B41: Insect | C41: Wat | D41: FoodVal | E41: 0.7 | F41: Unitless | G41: Chapman 1998 | H41: Typrical range 60-80%
A42: Bird, NOS | B42: Vegetation | C42: Kilocalories | D42: FoodVal | E42: 2 | F42: Kcal/gram (dw) | G42: U.S. EPA/ORD 1993 | H42: gross caloric value of 4.2 kcal/g dw for dicot leaves (U.S. EPA/ORD 1993, Table 4-2) with assim fact of 0.47
A43: Bird, NOS | B43: Vegetation | C43: Wat | D43: FoodVal | E43: 0.85 | F43: Unitless | G43: U.S. EPA/ORD 1993 | H43: Table 4-2, p. 4-14
A44: Child | B44: Water | C44: Amount | D44: central estimate | E44: 1 | F44: L/day | G44: U.S. EPA/ORD 1996 | H44: p. 3-28, Table 3-30, midpoint of mean (0.61L/day) and 90th percentile (1.5 L/day) rounded to one significant place.
A45: Child | B45: Water | C45: Amount | D45: lower range | E45: 0.61 | F45: L/day | G45: U.S. EPA/ORD 1996 | H45: p. 3-28, Table 3-30, mean
A46: Child | B46: Water | C46: Amount | D46: upper range | E46: 1.5 | F46: L/day | G46: U.S. EPA/ORD 1996 | H46: p. 3-28, Table 3-30, 90th percentile
A47: Herbivorous Insect | B47: Broadleaf/Small Insects | C47: Proportion of body weight | D47: central estimate | E47: 1.3 | F47: kg food/kg bw/day | G47: Waldbauer 1968 | H47: N/A
A48: Herbivorous Insect | B48: Broadleaf/Small Insects | C48: Proportion of body weight | D48: lower range | E48: 0.6 | F48: kg food/kg bw/day | G48: Reichle et al. 1973 | H48: N/A
A49: Herbivorous Insect | B49: Broadleaf/Small Insects | C49: Proportion of body weight | D49: upper range | E49: 2.2 | F49: kg food/kg bw/day | G49: Waldbauer 1968 | H49: N/A
A50: Herbivorous Insect | B50: Fruit | C50: Proportion of body weight | D50: central estimate | E50: 1.3 | F50: kg food/kg bw/day | G50: Waldbauer 1968 | H50: N/A
A51: Herbivorous Insect | B51: Fruit | C51: Proportion of body weight | D51: lower range | E51: 0.6 | F51: kg food/kg bw/day | G51: Reichle et al. 1973 | H51: N/A
A52: Herbivorous Insect | B52: Fruit | C52: Proportion of body weight | D52: upper range | E52: 2.2 | F52: kg food/kg bw/day | G52: Waldbauer 1968 | H52: N/A
A53: Herbivorous Insect | B53: Short grass | C53: Proportion of body weight | D53: central estimate | E53: 1.3 | F53: kg food/kg bw/day | G53: Waldbauer 1968 | H53: N/A
A54: Herbivorous Insect | B54: Short grass | C54: Proportion of body weight | D54: lower range | E54: 0.6 | F54: kg food/kg bw/day | G54: Reichle et al. 1973 | H54: N/A
A55: Herbivorous Insect | B55: Short grass | C55: Proportion of body weight | D55: upper range | E55: 2.2 | F55: kg food/kg bw/day | G55: Waldbauer 1968 | H55: N/A
A56: Herbivorous Insect | B56: Tall Grass | C56: Proportion of body weight | D56: central estimate | E56: 1.3 | F56: kg food/kg bw/day | G56: Waldbauer 1968 | H56: N/A
A57: Herbivorous Insect | B57: Tall Grass | C57: Proportion of body weight | D57: lower range | E57: 0.6 | F57: kg food/kg bw/day | G57: Reichle et al. 1973 | H57: N/A
A58: Herbivorous Insect | B58: Tall Grass | C58: Proportion of body weight | D58: upper range | E58: 2.2 | F58: kg food/kg bw/day | G58: Waldbauer 1968 | H58: N/A
A59: Mammal, Nos | B59: Fish | C59: Kilocalories | D59: FoodVal | E59: 4.47 | F59: Kcal/gram (dw) | G59: U.S. EPA/ORD 1993 | H59: Table 3-1, p. 3-5
A60: Mammal, Nos | B60: Fish | C60: Wat | D60: FoodVal | E60: 0.7 | F60: Unitless | G60: Ali et al. 2005 | H60: N/A
A61: Mammal, Nos | B61: Fruit | C61: Kilocalories | D61: FoodVal | E61: 1.1 | F61: Kcal/gram (dw) | G61: U.S. EPA/ORD 1993 | H61: Gross caloric value of 2.2 kcal/g dw (U.S. EPA/ORD 1993, Table 4-2) with assim fact of 0.51
A62: Mammal, Nos | B62: Fruit | C62: Wat | D62: FoodVal | E62: 0.77 | F62: Unitless | G62: U.S. EPA/ORD 1993 | H62: Table 4-2, p. 4-14
A63: Mammal, Nos | B63: Insect | C63: Kilocalories | D63: FoodVal | E63: 4.47 | F63: Kcal/gram (dw) | G63: U.S. EPA/ORD 1993 | H63: Table 4-2, p. 4-14
A64: Mammal, Nos | B64: Insect | C64: Wat | D64: FoodVal | E64: 0.7 | F64: Unitless | G64: Chapman 1998 | H64: Typrical range 60-80%
A65: Mammal, Nos | B65: Vegetation | C65: Kilocalories | D65: FoodVal | E65: 2.26 | F65: Kcal/gram (dw) | G65: U.S. EPA/ORD 1993 | H65: Table 3-1, p. 3-5
A66: Mammal, Nos | B66: Vegetation | C66: Wat | D66: FoodVal | E66: 0.85 | F66: Unitless | G66: U.S. EPA/ORD 1993 | H66: Table 4-2, p. 4-14

Sheet B01
A1: Chemical and Physical Properties for Flumioxazin Aquatic
A3: Property | B3: Receptor | C3: Value | D3: Units | E3: Document Reference
A4: Bioconcentration Factor (BCF), edible, acute | B4: N/A | C4: 22.4 | D4: L/kg fish | E4: EPA 2012
A5: Bioconcentration Factor (BCF), edible, chronic | B5: N/A | C5: 22.4 | D5: L/kg fish | E5: EPA 2012
A6: Bioconcentration Factor (BCF), whole fish, acute | B6: N/A | C6: 22.4 | D6: L/kg fish | E6: EPA 2012
A7: Bioconcentration Factor (BCF), whole fish, chronic | B7: N/A | C7: 22.4 | D7: L/kg fish | E7: EPA 2012
A8: Kow (Octanol-water partition coefficient) | B8: N/A | C8: 355 | D8: unitless | E8: U.S. EPA/OPP 2012
A9: Molecular weight | B9: N/A | C9: 354.34 | D9: grams/mole | E9: U.S. EPA/OPP 2012
A10: Water Solubility | B10: N/A | C10: 1.8 | D10: mg/L | E10: U.S. EPA/OPP 2012
A11: First order dermal absorption rate (ka), central estimate | B11: N/A | C11: 0.00124 | D11: per hour | E11: Calculated using “Adding Pesticides Attachment 1…”
A12: First order dermal absorption rate (ka), lower range | B12: N/A | C12: 0.000526 | D12: per hour | E12: Calculated using “Adding Pesticides Attachment 1…”
A13: First order dermal absorption rate (ka), upper range | B13: N/A | C13: 0.00294 | D13: per hour | E13: Calculated using “Adding Pesticides Attachment 1…”
A14: Dermal permeability (Kp), central estimate | B14: N/A | C14: 0.000789 | D14: cm/hour | E14: Calculated using “Adding Pesticides Attachment 1…”
A15: Dermal permeability (Kp), lower range | B15: N/A | C15: 0.000499 | D15: cm/hour | E15: Calculated using “Adding Pesticides Attachment 1…”
A16: Dermal permeability (Kp), upper range | B16: N/A | C16: 0.00125 | D16: cm/hour | E16: Calculated using “Adding Pesticides Attachment 1…”
A17: Halftime, central estimate | B17: Fruit | C17: 5.8 | D17: days | E17: Juraske et al. (2008)
A18: Halftime, lower range | B18: Fruit | C18: 5.8 | D18: days | E18: Juraske et al. (2008)
A19: Halftime, upper range | B19: Fruit | C19: 5.8 | D19: days | E19: Juraske et al. (2008)
A20: Halftime, central estimate | B20: Vegetation | C20: 5.8 | D20: days | E20: Juraske et al. (2008)
A21: Halftime, lower range | B21: Vegetation | C21: 5.8 | D21: days | E21: Juraske et al. (2008)
A22: Halftime, upper range | B22: Vegetation | C22: 5.8 | D22: days | E22: Juraske et al. (2008)

Sheet B02
A1: Toxicity values for Flumioxazin Aquatic
A3: Receptor | B3: Receptor | C3: Qualifier | D3: Endpoint | E3: Value | F3: Units | G3: Document Reference
A4: Human | B4: acute | C4: N/A | D4: Reference Dose (RfD) | E4: 0.063 | F4: mg/kg bw | G4: N/A
A5: Human | B5: chronic | C5: N/A | D5: Reference Dose (RfD) | E5: 0.02 | F5: mg/kg bw/day | G5: EPA 2012 (Table 4.5.1, page 19) MRID 44295028
A6: Adult Female | B6: acute | C6: N/A | D6: Reference Dose (RfD) | E6: 0.03 | F6: mg/kg bw/day | G6: EPA 2012 (Table 4.5.1, page 19) MRID 42684925
A7: Mammal, Nos | B7: acute | C7: N/A | D7: NOAEL | E7: 3 | F7: mg/kg bw | G7: MRID 42684925
A8: Mammal, Nos | B8: chronic | C8: N/A | D8: NOAEL | E8: 1.8 | F8: mg/kg bw/day | G8: MRID 44295028
A9: Bird, NOS | B9: acute | C9: N/A | D9: NOAEL | E9: 1728 | F9: mg/kg bw | G9: MRID 42684946
A10: Bird, NOS | B10: chronic | C10: N/A | D10: NOAEL | E10: 32.8 | F10: mg/kg bw/day | G10: MRID 44295005
A11: Honeybee | B11: acute | C11: N/A | D11: NOAEL | E11: 905 | F11: mg/kg bw | G11: MRID 42684951
A12: Terrestrial plant | B12: Vegetative vigor | C12: sensitive species | D12: NOAEL | E12: 5e-05 | F12: lb/acre | G12: MRID 44295030
A13: Terrestrial plant | B13: Vegetative vigor | C13: tolerant species | D13: NOAEL | E13: 0.006 | F13: lb/acre | G13: MRID 44295030
A14: Terrestrial plant | B14: Seedling Emergence | C14: sensitive species | D14: NOAEL | E14: 0.0004 | F14: lb/acre | G14: MRID 44295029
A15: Terrestrial plant | B15: Seedling Emergence | C15: tolerant species | D15: NOAEL | E15: 0.096 | F15: lb/acre | G15: MRID 44295029
A16: Aquatic invertebrate | B16: acute | C16: sensitive species | D16: NOAEC | E16: 0.01 | F16: mg/L | G16: MRID 44295009
A17: Aquatic invertebrate | B17: acute | C17: tolerant species | D17: NOAEC | E17: 0.27 | F17: mg/L | G17: MRID 42684950
A18: Aquatic invertebrate | B18: chronic | C18: sensitive species | D18: NOAEC | E18: 0.015 | F18: mg/L | G18: MRID 44295013
A19: Aquatic invertebrate | B19: chronic | C19: tolerant species | D19: NOAEC | E19: 0.028 | F19: mg/L | G19: MRID 44295011
A20: Fish | B20: acute | C20: sensitive species | D20: NOAEC | E20: 0.92 | F20: mg/L | G20: MRID 42684948
A21: Fish | B21: acute | C21: tolerant species | D21: NOAEC | E21: 4.7 | F21: mg/L | G21: MRID 44295010
A22: Fish | B22: chronic | C22: sensitive species | D22: NOAEC | E22: 0.00051 | F22: mg/L | G22: MRID 49733408
A23: Fish | B23: chronic | C23: tolerant species | D23: NOAEC | E23: 0.0077 | F23: mg/L | G23: MRID 44295012
A24: Algae | B24: N/A | C24: sensitive species | D24: NOAEC | E24: 2.2e-05 | F24: mg/L | G24: MRID 44295034
A25: Algae | B25: N/A | C25: tolerant species | D25: NOAEC | E25: 0.0019 | F25: mg/L | G25: MRID 44295033
A26: Macrophyte, aquatic | B26: N/A | C26: sensitive species | D26: NOAEC | E26: 0.00022 | F26: mg/L | G26: MRID 44295035

Sheet B03a
A1: Calculation of Zero-Order Dermal Permeability Rate (Kp) in cm/hour
A2: Short Title | B2: Calculation of Kp | E2: ChemDrmKp
A3: Parameter/Assumption | B3: Code / Range | C3: Equation/ Value | D3: Units | E3: Reference/Designation
A4: Molecular weight | B4: MW | C4: ='B01'!$C$9 -> 354.34 | D4: g/mole | E4: U.S. EPA/OPP 2012
A5: Ko/w | B5: Kow | C5: ='B01'!$C$8 -> 355 | D5: unitless | E5: U.S. EPA/OPP 2012
A6: Vector a[] | B6: a[1] | C6: 1
B7: a[2] | C7: =C4 -> 354.34
B8: a[3] | C8: =LOG10(C5) -> 2.550228353
A9: Transpose of a[] (a') | B9: =$C$6 -> 1 | C9: =$C$7 -> 354.34 | D9: =$C$8 -> 2.550228353
A10: X'X Cross Product Matrix | B10: X'X
B11: 0.055931 | C11: -9.41546e-05 | D11: -0.0103443
B12: -9.41546e-05 | C12: 5.978e-07 | D12: -2.22508e-05
B13: -0.0103443 | C13: -2.22508e-05 | D13: 0.00740677
A14: a'X'X a | B14: a'X'X a | C14: =MMULT(B9:D9,MMULT(B11:D13, C6:C8)) -> 0.01946011029
A15: Coefficients for model
A16: Intercept | B16: K0 | C16: -2.72576
A17: Coeff for MW | B17: K1 | C17: -0.006151
A18: Coeff for Log10(Kow) | B18: K2 | C18: 0.706648
A19: Standard deviation of model | B19: s | C19: 0.727129
A20: Critical value at 0.025 with 87 d.f. | B20: t0.025 | C20: 1.96
A21: Log10 of Estimated dermal permeability rate (Kp) | B21: Log(Kp) = | C21: K0 + K1 MW + K2 Log10(Kow)
B22: Central | C22: =$C$16 + ($C$17*$C$4) + ($C$18*LOG10($C$5)) -> -3.103191575 | E22: Eq
B23: Lower 95% CI | C23: =$C$22 - ($C$20 * $C$19 * ($C$14^0.5)) -> -3.302002472 | E23: Eq
B24: Upper 95% CI | C24: =$C$22 + ($C$20 * $C$19 * ($C$14^0.5)) -> -2.904380677 | E24: Eq
A25: Estimated dermal permeability rate (Kp) | B25: Kp = | C25: 10Log(Kp)
B26: Central | C26: =10^C22 -> 0.0007885122146 | D26: cm/hour | E26: Eq
B27: Lower 95% CI | C27: =10^C23 -> 0.0004988816475 | E27: Eq
B28: Upper 95% CI | C28: =10^C24 -> 0.00124629061 | E28: Eq

Sheet B03b
A1: Calculation of First-Order Dermal Absorption Rate
A2: Short Title | B2: Calculation of ka | E2: ChemDrmKa
A3: Parameter/Assumption | B3: Code / Range | C3: Equation/ Value | D3: Units | E3: Reference/Designation
A4: Molecular weight | B4: MW | C4: ='B01'!$C$9 -> 354.34 | D4: g/mole | E4: U.S. EPA/OPP 2012
A5: Ko/w | B5: Kow | C5: ='B01'!$C$8 -> 355 | D5: unitless | E5: U.S. EPA/OPP 2012
A6: Vector a[] | B6: a[1] | C6: 1
B7: a[2] | C7: =C4 -> 354.34
B8: a[3] | C8: =LOG10(C5) -> 2.550228353
A9: Transpose of a[] (a') | B9: =$C$6 -> 1 | C9: =$C$7 -> 354.34 | D9: =$C$8 -> 2.550228353
A10: X'X Cross Product Matrix | B10: X'X
B11: 0.307537 | C11: -0.00103089 | D11: 0.00822769
B12: -0.00103089 | C12: 4.377e-06 | D12: -9.44359e-05
B13: 0.00822769 | C13: -9.44359e-05 | D13: 0.0085286
A14: a'X'X a | B14: a'X'X a | C14: =MMULT(B9:D9,MMULT(B11:D13, C6:C8)) -> 0.05328666701
A15: Coefficients for model
A16: Intercept | B16: K0 | C16: -1.49615
A17: Coeff for MW | B17: K1 | C17: -0.005657
A18: Coeff for Log10(Kow) | B18: K2 | C18: 0.233255
A19: Standard deviation of model | B19: s | C19: 0.787218
A20: Critical value at 0.025 with 26 d.f. | B20: t0.025 | C20: 2.056
A21: Log10 of Estimated first-order absorption rate | B21: Log(ka) = | C21: K0 + K1 MW + K2 Log10(Kow)
B22: Central | C22: =$C$16 + ($C$17*$C$4) + ($C$18*LOG10($C$5)) -> -2.905797866 | E22: Eq
B23: Lower 95% CI | C23: =$C$22 - ($C$20 * $C$19 * ($C$14^0.5)) -> -3.279415533 | E23: Eq
B24: Upper 95% CI | C24: =$C$22 + ($C$20 * $C$19 * ($C$14^0.5)) -> -2.532180198 | E24: Eq
A25: Estimated first-order absorption rate | B25: ka = | C25: 10Log(ka)
B26: Central | C26: =10^C22 -> 0.001242230347 | D26: hour-1 | E26: Eq
B27: Lower 95% CI | C27: =10^C23 -> 0.000525514214 | E27: Eq
B28: Upper 95% CI | C28: =10^C24 -> 0.00293643101 | E28: Eq

Sheet B04a
A1: Estimates of Average Concentrations of the Pesticide in Water After Aquatic Applications
A2: Parameter/Assumption | B2: Code / Range | C2: Equation/ Value | D2: Units | E2: EECAqPpmV6
A3: Application
A4: Target Concentration | B4: C0 | E4: EECAqPpmV6
B5: Central | C5: ='A01'!ApRt_C -> 0.4 | D5: ppm (mg/L) | E5: Worksheet A01
B6: Lower | C6: ='A01'!ApRt_C -> 0.4 | E6: Worksheet A01
B7: Upper | C7: ='A01'!ApRt_C -> 0.4 | E7: Worksheet A01
A8: Toxic Equivalency Factor for formulation: (See risk assessment if this has a value other than 1.) | B8: TEF
B9: Central | C9: ='A01'!C$45 -> 1 | D9: Unitless | E9: Worksheet A01
B10: Lower | C10: ='A01'!C$46 -> 1 | E10: Worksheet A01
B11: Upper | C11: ='A01'!C$47 -> 1 | E11: Worksheet A01
A12: Number of applications | B12: n | C12: ='A01'!C$8 -> 1 | D12: unitless | E12: Worksheet A01
A13: Interval between applications | B13: intv | C13: ='A01'!C$9 -> 1 | D13: days | E13: Worksheet A01
A14: Calculation of Peak Concentrations | C14: 20
A15: Field Dissipation Half-life in Water Body | B15: Halflife
B16: Central | C16: ='A01'!C$61 -> 0.096 | D16: Days | E16: Worksheet A01
B17: Lower | C17: ='A01'!C$62 -> 0.013 | E17: Worksheet A01
B18: Upper | C18: ='A01'!C$63 -> 4.2 | E18: Worksheet A01
A19: Decay Coefficient | B19: k | C19: Ln(2)/Halflife
B20: Central | C20: =LN(2)/C16 -> 7.220283131 | D20: Days-1 | E20: Eq
B21: Upper | C21: =LN(2)/C17 -> 53.31901389 | E21: Eq
B22: Lower | C22: =LN(2)/C18 -> 0.165035043 | E22: Eq
A23: Proportion remaining at end of each application interval | B23: p | C23: exp( -k × intv)
B24: Central | C24: =EXP(-C20*C$13) -> 0.0007315952524 | D24: proportion | E24: Eq
B25: Lower | C25: =EXP(-C21*C$13) -> 6.979856394e-24 | E25: Eq
B26: Upper | C26: =EXP(-C22*C$13) -> 0.8478639919 | E26: Eq
A27: Peak Concentrations | B27: CN | C27: = C0 × TEF × (1- pn) ÷ (1- p)
B28: Central | C28: =C5*C9*(1-C24^C$12)/(1-C24) -> 0.4 | D28: mg/L
B29: Lower | C29: =C6*C10*(1-C25^C$12)/(1-C25) -> 0.4
B30: Upper | C30: 0.4
A31: Calculation of Longer-Term Concentrations
A32: Exposure Period | B32: T | C32: ='A01'!C$38 -> 90 | D32: days | E32: Worksheet A01
A33: Concentration water at time, T. | B33: ConcT | C33: C0 × e-kT
B34: Central | C34: =C28*EXP(-C20*C$32) -> 2.434664125e-283 | D34: mg/L | E34: Eq
B35: Lower | C35: =C29*EXP(-C21*C$32) -> 0 | E35: Eq
B36: Upper | C36: 1.417154588e-07 | E36: Eq
A37: Average Concentrations | B37: ConcTWA | C37: Cn × (1-e-kT) ÷ (k T)
B38: Central | C38: =C28*(1-EXP(-C20*C$32))/(C20*C$32) -> 0.0006155498841 | D38: mg/L
B39: Lower | C39: =C29*(1-EXP(-C21*C$32))/(C21*C$32) -> 8.335571347e-05
B40: Upper | C40: 0.02693029789

Sheet B04b
A1: Pond: Concentration of pesticide (liquid formulation) in pond water after an accidental spill
A2: Short Title | B2: Pond Spill | E2: PondSpillLiqV6
A3: Receptor | B3: Pond
A4: Duration | B4: Acute
A5: Parameter/Assumption | B5: Code / Range | C5: Equation/ Value | D5: Units | E5: Reference/Designation
A6: Surface Area of Pond | B6: SA | C6: ='A01'!C$36 -> 1000 | D6: m2 | E6: Worksheet A01
A7: Depth of Pond | B7: Depth | C7: ='A01'!C$37 -> 1 | D7: meter | E7: Worksheet A01
A8: Volume of Pond | B8: VPM | C8: =C6*C7 -> 1000 | D8: m3 | E8: Eq
B9: VPL | C9: =1000*C8 -> 1000000 | D9: liters | E9: Eq
A10: Concentration in solution | B10: Conc
B11: Central | C11: ='A01'!FldConc_C -> 130 | D11: mg/mL | E11: Worksheet A01
B12: Lower | C12: ='A01'!FldConc_L -> 130 | E12: Worksheet A01
B13: Upper | C13: ='A01'!FldConc_U -> 130 | E13: Worksheet A01
A14: Volume of Spill (gallons) | B14: VSGal
B15: Central | C15: ='A01'!C$57 -> 100 | D15: gallons | E15: Worksheet A01
B16: Lower | C16: ='A01'!C$58 -> 20 | E16: Worksheet A01
B17: Upper | C17: ='A01'!C$59 -> 200 | E17: Worksheet A01
A18: Conversion factor for gallons to liters | B18: Conv | C18: 3.785 | D18: liters/gal
A19: Volume of Spill (liters) | B19: VSLit | C19: VSGal x Conv
B20: Central | C20: =C15*C$18 -> 378.5 | D20: liters | E20: Eq
B21: Lower | C21: =C16*C$18 -> 75.7 | D21: liters | E21: Eq
B22: Upper | C22: =C17*C$18 -> 757 | D22: liters | E22: Eq
A23: Concentration in pond water at various times after as spill | B23: ConcWat | C23: Conc × 1000 mL/L × VSL ÷ VPL
A24: Time | B24: Central | C24: Lower | D24: Upper
A25: 0 | B25: =C11*1000*C20/C$9 -> 49.205 | C25: =C12*1000*C21/C$9 -> 9.841 | D25: =C13*1000*C22/C$9 -> 98.41 | E25: mg/L

Sheet C01
A1: Worker exposure estimates for workers based on the amount handled.
A2: Short Title | B2: Direct Application to Water | E2: WkHandled
A3: Receptor | B3: Worker
A4: Duration | B4: Chronic
A5: Parameter/Assumption | B5: Code / Range | C5: Equation/ Value | D5: Units | E5: Reference/Equation
A6: Amount handled per day: | B6: AmntH | C6: ='A01'!lbsHandled -> 5.291095459 | D6: lb/day | E6: Program Parameter
A7: Absorbed dose rate: | B7: ADR
B8: Central | C8: ='A01'!C$49 -> 0.002 | D8: (mg agent/kg bw) ÷ (lbs agent handled per day) | E8: Worksheet A01
B9: Lower | C9: ='A01'!C$50 -> 0.0004 | E9: Worksheet A01
B10: Upper | C10: ='A01'!C$51 -> 0.01 | E10: Worksheet A01
A11: Toxic Equivalency Factor for formulation: (See risk assessment if this has a value other than 1.) | B11: TEF
B12: Central | C12: ='A01'!C$45 -> 1 | D12: Unitless | E12: Worksheet A01
B13: Lower | C13: ='A01'!C$46 -> 1 | E13: Worksheet A01
B14: Upper | C14: ='A01'!C$47 -> 1 | E14: Worksheet A01
A15: Clothing Protection Factor | B15: Prot
B16: Central | C16: ='A01'!C$41 -> 0 | D16: Unitless (value between 0 [no protection] and 1 [complete protection]) | E16: Worksheet A01
B17: Upper | C17: ='A01'!C$43 -> 0 | E17: Worksheet A01
B18: Lower | C18: ='A01'!C$42 -> 0 | E18: Worksheet A01
A19: Absorbed dose | B19: Dose | C19: AmntH × ADR × TEF × (1-Prot)
B20: Central | C20: =C$6*C8*C12*(1-C16) -> 0.01058219092 | D20: mg/kg bw/day | E20: Eq
B21: Lower | C21: =C$6*C9*C13*(1-C17) -> 0.002116438184 | E21: Eq
B22: Upper | C22: =C$6*C10*C14*(1-C18) -> 0.05291095459 | E22: Eq

Sheet C02a
A1: Accidental Dermal Exposure Assessment Using Zero-Order Absorption, Worker, Surface Area, Hands, for 1 minute(s)
A2: Short Title | B2: Contaminated Gloves, 1 minute | E2: DrmZr
A3: Receptor | B3: Worker
A4: Duration | B4: Acute
A5: Surface Contaminated | B5: Surface Area, Hands
A6: Parameter/Assumption | B6: Code / Range | C6: Equation/ Value | D6: Units | E6: Reference/Designation
A7: Surface Area | B7: SA | C7: =A02a!$C$40 -> 1070 | D7: cm2 | E7: U.S. EPA/ORD 2011
A8: Duration of Exposure | B8: T_min | C8: 1 | D8: minutes | E8: Scenario parameter
B9: T_hr | C9: =C8/60 -> 0.01666666667 | D9: hours | E9: Eq
A10: Body weight | B10: BW | C10: =A02a!$C$39 -> 86 | D10: kg | E10: U.S. EPA/OPP 2012
A11: Concentration in solution (mg/mL) | B11: Conc
B12: Central | C12: ='A01'!FldConc_C -> 130 | D12: mg/mL | E12: Worksheet A01
B13: Lower | C13: ='A01'!FldConc_L -> 130 | E13: Worksheet A01
B14: Upper | C14: ='A01'!FldConc_U -> 130 | E14: Worksheet A01
A15: Toxic Equivalency Factor for formulation: (See risk assessment if this has a value other than 1.) | B15: TEF
B16: Central | C16: ='A01'!C$45 -> 1 | D16: Unitless | E16: Worksheet A01
B17: Lower | C17: ='A01'!C$46 -> 1 | E17: Worksheet A01
B18: Upper | C18: ='A01'!C$47 -> 1 | E18: Worksheet A01
A19: Dermal permeability | B19: Kp
B20: Central | C20: ='B01'!$C$14 -> 0.000789 | D20: cm/hour | E20: Calculated using “Adding Pesticides Attachment 1…”
B21: Lower | C21: ='B01'!$C$15 -> 0.000499 | E21: Calculated using “Adding Pesticides Attachment 1…”
B22: Upper | C22: ='B01'!$C$16 -> 0.00125 | E22: Calculated using “Adding Pesticides Attachment 1…”
A23: Absorbed Dose | B23: Dose | C23: Kp × Conc × T_hr × SA x TEF ÷ BW
B24: Central | C24: =C20*C12*C$9*C$7*C16/C$10 -> 0.02126936047 | D24: mg/kg | E24: Eq
B25: Lower | C25: =C21*C13*C$9*C$7*C17/C$10 -> 0.01345172481 | D25: mg/kg | E25: Eq
B26: Upper | C26: =C22*C14*C$9*C$7*C18/C$10 -> 0.03369670543 | D26: mg/kg | E26: Eq

Sheet C02b
A1: Accidental Dermal Exposure Assessment Using Zero-Order Absorption, Worker, Surface Area, Hands, for 60 minute(s)
A2: Short Title | B2: Contaminated Gloves, 1 Hour | E2: DrmZr
A3: Receptor | B3: Worker
A4: Duration | B4: Acute
A5: Surface Contaminated | B5: Surface Area, Hands
A6: Parameter/Assumption | B6: Code / Range | C6: Equation/ Value | D6: Units | E6: Reference/Designation
A7: Surface Area | B7: SA | C7: =A02a!$C$40 -> 1070 | D7: cm2 | E7: U.S. EPA/ORD 2011
A8: Duration of Exposure | B8: T_min | C8: 60 | D8: minutes | E8: Scenario parameter
B9: T_hr | C9: =C8/60 -> 1 | D9: hours | E9: Eq
A10: Body weight | B10: BW | C10: =A02a!$C$39 -> 86 | D10: kg | E10: U.S. EPA/OPP 2012
A11: Concentration in solution (mg/mL) | B11: Conc
B12: Central | C12: ='A01'!FldConc_C -> 130 | D12: mg/mL | E12: Worksheet A01
B13: Lower | C13: ='A01'!FldConc_L -> 130 | E13: Worksheet A01
B14: Upper | C14: ='A01'!FldConc_U -> 130 | E14: Worksheet A01
A15: Toxic Equivalency Factor for formulation: (See risk assessment if this has a value other than 1.) | B15: TEF
B16: Central | C16: ='A01'!C$45 -> 1 | D16: Unitless | E16: Worksheet A01
B17: Lower | C17: ='A01'!C$46 -> 1 | E17: Worksheet A01
B18: Upper | C18: ='A01'!C$47 -> 1 | E18: Worksheet A01
A19: Dermal permeability | B19: Kp
B20: Central | C20: ='B01'!$C$14 -> 0.000789 | D20: cm/hour | E20: Calculated using “Adding Pesticides Attachment 1…”
B21: Lower | C21: ='B01'!$C$15 -> 0.000499 | E21: Calculated using “Adding Pesticides Attachment 1…”
B22: Upper | C22: ='B01'!$C$16 -> 0.00125 | E22: Calculated using “Adding Pesticides Attachment 1…”
A23: Absorbed Dose | B23: Dose | C23: Kp × Conc × T_hr × SA x TEF ÷ BW
B24: Central | C24: =C20*C12*C$9*C$7*C16/C$10 -> 1.276161628 | D24: mg/kg | E24: Eq
B25: Lower | C25: =C21*C13*C$9*C$7*C17/C$10 -> 0.8071034884 | D25: mg/kg | E25: Eq
B26: Upper | C26: =C22*C14*C$9*C$7*C18/C$10 -> 2.021802326 | D26: mg/kg | E26: Eq

Sheet C03a
A1: Accidental Dermal Exposure Assessment Using First-Order Absorption, Worker, Surface Area, Hands, for 60 minute(s)
A2: Short Title | B2: Spill on hands, 1 hour | E2: DrmFOA
A3: Receptor | B3: Worker
A4: Duration | B4: Acute
A5: Surface Contaminated | B5: Surface Area, Hands
A6: Parameter/Assumption | B6: Code / Range | C6: Equation/ Value | D6: Units | E6: Reference/Designation
A7: Surface Area | B7: SA | C7: =A02a!$C$40 -> 1070 | D7: cm2 | E7: U.S. EPA/ORD 2011
A8: Duration of Exposure | C8: 60 | D8: minutes | E8: Scenario parameter
B9: T | C9: =C8/60 -> 1 | D9: hours | E9: Eq
A10: Body weight | B10: BW | C10: =A02a!$C$39 -> 86 | D10: kg | E10: U.S. EPA/OPP 2012
A11: Liquid adhering to skin | B11: L | C11: =A02d!$C$11 -> 0.008 | D11: mL/cm2 | E11: Mason and Johnson 1987
A12: Concentration in solution | B12: Conc
B13: Central | C13: ='A01'!FldConc_C -> 130 | D13: mg/mL | E13: Worksheet A01
B14: Lower | C14: ='A01'!FldConc_L -> 130 | E14: Worksheet A01
B15: Upper | C15: ='A01'!FldConc_U -> 130 | E15: Worksheet A01
A16: First-order dermal absorption rates | B16: ka
B17: Central | C17: ='B01'!$C$11 -> 0.00124 | D17: hour-1 | E17: Calculated using “Adding Pesticides Attachment 1…”
B18: Lower | C18: ='B01'!$C$12 -> 0.000526 | E18: Calculated using “Adding Pesticides Attachment 1…”
B19: Upper | C19: ='B01'!$C$13 -> 0.00294 | E19: Calculated using “Adding Pesticides Attachment 1…”
A20: Toxic Equivalency Factor for formulation: (See risk assessment if this has a value other than 1.) | B20: TEF
B21: Central | C21: ='A01'!C$45 -> 1 | D21: Unitless | E21: Worksheet A01
B22: Lower | C22: ='A01'!C$46 -> 1 | E22: Worksheet A01
B23: Upper | C23: ='A01'!C$47 -> 1 | E23: Worksheet A01
A24: Amount Deposited on Skin | B24: Amnt | C24: L × SA × Conc x TEF
B25: Central | C25: =$C$11*$C$7*C13*C21 -> 1112.8 | D25: mg | E25: Eq
B26: Lower | C26: =$C$11*$C$7*C14*C22 -> 1112.8 | E26: Eq
B27: Upper | C27: =$C$11*$C$7*C15*C23 -> 1112.8 | E27: Eq
A28: Skin Loading | B28: Loading
B29: Central | C29: =C25/C$7 -> 1.04 | D29: mg/cm2 | E29: Eq
B30: Lower | C30: =C26/C$7 -> 1.04 | E30: Eq
B31: Upper | C31: =C27/C$7 -> 1.04 | E31: Eq
A32: Proportion absorbed over period T | B32: Prop | C32: 1-exp(-ka T)
B33: Central | C33: =1-EXP(-C17 *$C$9) -> 0.001239231518 | D33: hour-1 | E33: Eq
B34: Lower | C34: =1-EXP(-C18 *$C$9) -> 0.0005258616863 | E34: Eq
B35: Upper | C35: =1-EXP(-C19 *$C$9) -> 0.002935682432 | E35: Eq
A36: Absorbed Dose | B36: Dose | C36: Amnt × Prop ÷ BW
B37: Central | C37: =C25*C33/$C$10 -> 0.01603507945 | D37: mg/kg bw | E37: Eq
B38: Lower | C38: =C26*C34/$C$10 -> 0.006804405633 | E38: Eq
B39: Upper | C39: =C27*C35/$C$10 -> 0.03798636524 | E39: Eq

Sheet C03b
A1: Accidental Dermal Exposure Assessment Using First-Order Absorption, Worker, Surface Area, Lower legs, for 60 minute(s)
A2: Short Title | B2: Spill on lower legs, 1 hour | E2: DrmFOA
A3: Receptor | B3: Worker
A4: Duration | B4: Acute
A5: Surface Contaminated | B5: Surface Area, Lower legs
A6: Parameter/Assumption | B6: Code / Range | C6: Equation/ Value | D6: Units | E6: Reference/Designation
A7: Surface Area | B7: SA | C7: =A02a!$C$41 -> 2680 | D7: cm2 | E7: U.S. EPA/ORD 2011
A8: Duration of Exposure | C8: 60 | D8: minutes | E8: Scenario parameter
B9: T | C9: =C8/60 -> 1 | D9: hours | E9: Eq
A10: Body weight | B10: BW | C10: =A02a!$C$39 -> 86 | D10: kg | E10: U.S. EPA/OPP 2012
A11: Liquid adhering to skin | B11: L | C11: =A02d!$C$11 -> 0.008 | D11: mL/cm2 | E11: Mason and Johnson 1987
A12: Concentration in solution | B12: Conc
B13: Central | C13: ='A01'!FldConc_C -> 130 | D13: mg/mL | E13: Worksheet A01
B14: Lower | C14: ='A01'!FldConc_L -> 130 | E14: Worksheet A01
B15: Upper | C15: ='A01'!FldConc_U -> 130 | E15: Worksheet A01
A16: First-order dermal absorption rates | B16: ka
B17: Central | C17: ='B01'!$C$11 -> 0.00124 | D17: hour-1 | E17: Calculated using “Adding Pesticides Attachment 1…”
B18: Lower | C18: ='B01'!$C$12 -> 0.000526 | E18: Calculated using “Adding Pesticides Attachment 1…”
B19: Upper | C19: ='B01'!$C$13 -> 0.00294 | E19: Calculated using “Adding Pesticides Attachment 1…”
A20: Toxic Equivalency Factor for formulation: (See risk assessment if this has a value other than 1.) | B20: TEF
B21: Central | C21: ='A01'!C$45 -> 1 | D21: Unitless | E21: Worksheet A01
B22: Lower | C22: ='A01'!C$46 -> 1 | E22: Worksheet A01
B23: Upper | C23: ='A01'!C$47 -> 1 | E23: Worksheet A01
A24: Amount Deposited on Skin | B24: Amnt | C24: L × SA × Conc x TEF
B25: Central | C25: =$C$11*$C$7*C13*C21 -> 2787.2 | D25: mg | E25: Eq
B26: Lower | C26: =$C$11*$C$7*C14*C22 -> 2787.2 | E26: Eq
B27: Upper | C27: =$C$11*$C$7*C15*C23 -> 2787.2 | E27: Eq
A28: Skin Loading | B28: Loading
B29: Central | C29: =C25/C$7 -> 1.04 | D29: mg/cm2 | E29: Eq
B30: Lower | C30: =C26/C$7 -> 1.04 | E30: Eq
B31: Upper | C31: =C27/C$7 -> 1.04 | E31: Eq
A32: Proportion absorbed over period T | B32: Prop | C32: 1-exp(-ka T)
B33: Central | C33: =1-EXP(-C17 *$C$9) -> 0.001239231518 | D33: hour-1 | E33: Eq
B34: Lower | C34: =1-EXP(-C18 *$C$9) -> 0.0005258616863 | E34: Eq
B35: Upper | C35: =1-EXP(-C19 *$C$9) -> 0.002935682432 | E35: Eq
A36: Absorbed Dose | B36: Dose | C36: Amnt × Prop ÷ BW
B37: Central | C37: =C25*C33/$C$10 -> 0.04016262891 | D37: mg/kg bw | E37: Eq
B38: Lower | C38: =C26*C34/$C$10 -> 0.01704281037 | E38: Eq
B39: Upper | C39: =C27*C35/$C$10 -> 0.09514341948 | E39: Eq

Sheet D05
A1: Consumption of contaminated water by Child, Accidental Spill
A2: Short Title | B2: Accidental Spill | E2: WatAmntV6
A3: Receptor | B3: Child
A4: Duration | B4: Acute | E4: Scenario parameter
A5: Parameter/Assumption | B5: Code / Range | C5: Equation/ Value | D5: Units | E5: Reference/Designation
A6: Concentration in water | B6: ConcWat
B7: Central | C7: =B04b!Acute_C -> 49.205 | D7: mg/L | E7: ='B04b'!Acute_C
B8: Lower | C8: =B04b!Acute_L -> 9.841 | E8: ='B04b'!Acute_L
B9: Upper | C9: =B04b!Acute_U -> 98.41 | E9: ='B04b'!Acute_U
A10: Receptor
A11: Amount of water consumed in one day | B11: Amnt
B12: Central | C12: ='A03'!$E$44 -> 1 | D12: liters/day | E12: U.S. EPA/ORD 1996
B13: Lower | C13: ='A03'!$E$45 -> 0.61 | E13: U.S. EPA/ORD 1996
B14: Upper | C14: ='A03'!$E$46 -> 1.5 | E14: U.S. EPA/ORD 1996
A15: Body weight | B15: BW | C15: =A02a!$C$28 -> 11 | D15: kg | E15: U.S. EPA/OPP 2012
A16: Dose | B16: Dose | C16: ConcWat × Amnt ÷ BW
B17: Central | C17: =C7*C12/C$15 -> 4.473181818 | D17: mg/kg | E17: Eq
B18: Lower | C18: =C8*C13/C$15 -> 0.5457281818 | D18: mg/kg | E18: Eq
B19: Upper | C19: =C9*C14/C$15 -> 13.41954545 | D19: mg/kg | E19: Eq

Sheet D06
A1: Consumption of contaminated water by Child, Peak Conentrations
A2: Short Title | B2: Peak Conentrations | E2: WatAmntV6
A3: Receptor | B3: Child
A4: Duration | B4: Acute | E4: Scenario parameter
A5: Parameter/Assumption | B5: Code / Range | C5: Equation/ Value | D5: Units | E5: Reference/Designation
A6: Concentration in water | B6: ConcWat
B7: Central | C7: =B04a!Acute_C -> 0.4 | D7: mg/L | E7: ='B04a'!Acute_C
B8: Lower | C8: =B04a!Acute_L -> 0.4 | E8: ='B04a'!Acute_L
B9: Upper | C9: =B04a!Acute_U -> 0.4 | E9: ='B04a'!Acute_U
A10: Receptor
A11: Amount of water consumed in one day | B11: Amnt
B12: Central | C12: ='A03'!$E$44 -> 1 | D12: liters/day | E12: U.S. EPA/ORD 1996
B13: Lower | C13: ='A03'!$E$45 -> 0.61 | E13: U.S. EPA/ORD 1996
B14: Upper | C14: ='A03'!$E$46 -> 1.5 | E14: U.S. EPA/ORD 1996
A15: Body weight | B15: BW | C15: =A02a!$C$28 -> 11 | D15: kg | E15: U.S. EPA/OPP 2012
A16: Dose | B16: Dose | C16: ConcWat × Amnt ÷ BW
B17: Central | C17: =C7*C12/C$15 -> 0.03636363636 | D17: mg/kg | E17: Eq
B18: Lower | C18: =C8*C13/C$15 -> 0.02218181818 | D18: mg/kg | E18: Eq
B19: Upper | C19: =C9*C14/C$15 -> 0.05454545455 | D19: mg/kg | E19: Eq

Sheet D07
A1: Consumption of contaminated water by Adult Male, Longer-term Conentrations
A2: Short Title | B2: Longer-term Conentrations | E2: WatAmntV6
A3: Receptor | B3: Adult Male
A4: Duration | B4: Chronic | E4: Scenario parameter
A5: Parameter/Assumption | B5: Code / Range | C5: Equation/ Value | D5: Units | E5: Reference/Designation
A6: Concentration in water | B6: ConcWat
B7: Central | C7: =B04a!Chronic_C -> 0.0006155498841 | D7: mg/L | E7: ='B04a'!Chronic_C
B8: Lower | C8: =B04a!Chronic_L -> 8.335571347e-05 | E8: ='B04a'!Chronic_L
B9: Upper | C9: =B04a!Chronic_U -> 0.02693029789 | E9: ='B04a'!Chronic_U
A10: Receptor
A11: Amount of water consumed in one day | B11: Amnt
B12: Central | C12: ='A03'!$E$31 -> 2 | D12: liters/day | E12: U.S. EPA/ORD 1996
B13: Lower | C13: ='A03'!$E$32 -> 1.4 | E13: U.S. EPA/ORD 1996
B14: Upper | C14: ='A03'!$E$33 -> 2.4 | E14: U.S. EPA/ORD 1996
A15: Body weight | B15: BW | C15: =A02a!$C$8 -> 86 | D15: kg | E15: U.S. EPA/OPP 2012
A16: Dose | B16: Dose | C16: ConcWat × Amnt ÷ BW
B17: Central | C17: =C7*C12/C$15 -> 1.431511358e-05 | D17: mg/kg | E17: Eq
B18: Lower | C18: =C8*C13/C$15 -> 1.356953475e-06 | D18: mg/kg | E18: Eq
B19: Upper | C19: =C9*C14/C$15 -> 0.0007515431969 | D19: mg/kg | E19: Eq

Sheet D08a
A1: Consumption of Contaminated Fish (Accidental Spill), Adult Male, acute exposure
A2: Short Title | B2: Fish consumption | E2: FishAmntV6
A3: Receptor | B3: Adult Male
A4: Duration | B4: acute
A5: Parameter/Assumption | B5: Code / Range | C5: Equation/ Value | D5: Units | E5: Reference/Designation
A6: Water
A7: Concentration in water | B7: ConcWat | C7: ApR × WCR
B8: Central | C8: =B04b!Acute_C -> 49.205 | D8: mg/L | E8: ='B04b'!Acute_C
B9: Lower | C9: =B04b!Acute_L -> 9.841 | E9: ='B04b'!Acute_L
B10: Upper | C10: =B04b!Acute_U -> 98.41 | E10: ='B04b'!Acute_U
A11: Fish
A12: Bioconcentration factor | B12: BCF
B13: Central | C13: ='B01'!$C$4 -> 22.4 | D13: L/kg | E13: EPA 2012
B14: Lower | C14: ='B01'!$C$4 -> 22.4 | E14: EPA 2012
B15: Upper | C15: ='B01'!$C$4 -> 22.4 | E15: EPA 2012
A16: Concentration in fish | B16: ConcFish | C16: ConcWat × BCF
B17: Central | C17: =C8*C13 -> 1102.192 | D17: mg/kg | E17: Eq
B18: Lower | C18: =C9*C14 -> 220.4384 | E18: Eq
B19: Upper | C19: =C10*C15 -> 2204.384 | E19: Eq
A20: Receptor
A21: Amount of fish consumed | B21: Amnt
B22: Central | C22: ='A03'!$E$20 -> 0.158 | D22: kg/day | E22: Ruffle et al. 1994
B23: Lower | C23: ='A03'!$E$20 -> 0.158 | E23: Ruffle et al. 1994
B24: Upper | C24: ='A03'!$E$20 -> 0.158 | E24: Ruffle et al. 1994
A25: Toxic Equivalency Factor for formulation: (See risk assessment if this has a value other than 1.) | B25: TEF
B26: Central | C26: ='A01'!C$45 -> 1 | D26: Unitless | E26: Worksheet A01
B27: Lower | C27: ='A01'!C$46 -> 1 | E27: Worksheet A01
B28: Upper | C28: ='A01'!C$47 -> 1 | E28: Worksheet A01
A29: Body weight | B29: BW | C29: =A02a!$C$8 -> 86 | D29: kg | E29: U.S. EPA/OPP 2012
A30: Dose | B30: Dose | C30: ConcFish× Amnt x TEF ÷ BW
B31: Central | C31: =C17*C22*C26/C$29 -> 2.024957395 | D31: mg/kg | E31: Eq
B32: Lower | C32: =C18*C23*C27/C$29 -> 0.4049914791 | D32: mg/kg | E32: Eq
B33: Upper | C33: =C19*C24*C28/C$29 -> 4.049914791 | D33: mg/kg | E33: Eq
E34: FishAmntV6

Sheet D08b
A1: Consumption of Contaminated Fish (Accidental Spill), Subsistence Populations, acute exposure
A2: Short Title | B2: Fish consumption | E2: FishAmntV6
A3: Receptor | B3: Subsistence Populations
A4: Duration | B4: acute
A5: Parameter/Assumption | B5: Code / Range | C5: Equation/ Value | D5: Units | E5: Reference/Designation
A6: Water
A7: Concentration in water | B7: ConcWat | C7: ApR × WCR
B8: Central | C8: =B04b!Acute_C -> 49.205 | D8: mg/L | E8: ='B04b'!Acute_C
B9: Lower | C9: =B04b!Acute_L -> 9.841 | E9: ='B04b'!Acute_L
B10: Upper | C10: =B04b!Acute_U -> 98.41 | E10: ='B04b'!Acute_U
A11: Fish
A12: Bioconcentration factor | B12: BCF
B13: Central | C13: ='B01'!$C$4 -> 22.4 | D13: L/kg | E13: EPA 2012
B14: Lower | C14: ='B01'!$C$4 -> 22.4 | E14: EPA 2012
B15: Upper | C15: ='B01'!$C$4 -> 22.4 | E15: EPA 2012
A16: Concentration in fish | B16: ConcFish | C16: ConcWat × BCF
B17: Central | C17: =C8*C13 -> 1102.192 | D17: mg/kg | E17: Eq
B18: Lower | C18: =C9*C14 -> 220.4384 | E18: Eq
B19: Upper | C19: =C10*C15 -> 2204.384 | E19: Eq
A20: Receptor
A21: Amount of fish consumed | B21: Amnt
B22: Central | C22: ='A03'!$E$35 -> 0.77 | D22: kg/day | E22: U.S. EPA/ORD 1993
B23: Lower | C23: ='A03'!$E$35 -> 0.77 | E23: U.S. EPA/ORD 1993
B24: Upper | C24: ='A03'!$E$35 -> 0.77 | E24: U.S. EPA/ORD 1993
A25: Toxic Equivalency Factor for formulation: (See risk assessment if this has a value other than 1.) | B25: TEF
B26: Central | C26: ='A01'!C$45 -> 1 | D26: Unitless | E26: Worksheet A01
B27: Lower | C27: ='A01'!C$46 -> 1 | E27: Worksheet A01
B28: Upper | C28: ='A01'!C$47 -> 1 | E28: Worksheet A01
A29: Body weight | B29: BW | C29: =A02a!$C$9 -> 80 | D29: kg | E29: U.S. EPA/OPP 2012
A30: Dose | B30: Dose | C30: ConcFish× Amnt x TEF ÷ BW
B31: Central | C31: =C17*C22*C26/C$29 -> 10.608598 | D31: mg/kg | E31: Eq
B32: Lower | C32: =C18*C23*C27/C$29 -> 2.1217196 | D32: mg/kg | E32: Eq
B33: Upper | C33: =C19*C24*C28/C$29 -> 21.217196 | D33: mg/kg | E33: Eq
E34: FishAmntV6

Sheet D09a
A1: Consumption of Contaminated Fish (Longer-term), Adult Male, chronic exposure
A2: Short Title | B2: Fish consumption | E2: FishAmntV6
A3: Receptor | B3: Adult Male
A4: Duration | B4: chronic
A5: Parameter/Assumption | B5: Code / Range | C5: Equation/ Value | D5: Units | E5: Reference/Designation
A6: Water
A7: Concentration in water | B7: ConcWat | C7: ApR × WCR
B8: Central | C8: =B04a!Chronic_C -> 0.0006155498841 | D8: mg/L | E8: ='B04a'!Chronic_C
B9: Lower | C9: =B04a!Chronic_L -> 8.335571347e-05 | E9: ='B04a'!Chronic_L
B10: Upper | C10: =B04a!Chronic_U -> 0.02693029789 | E10: ='B04a'!Chronic_U
A11: Fish
A12: Bioconcentration factor | B12: BCF
B13: Central | C13: ='B01'!$C$5 -> 22.4 | D13: L/kg | E13: EPA 2012
B14: Lower | C14: ='B01'!$C$5 -> 22.4 | E14: EPA 2012
B15: Upper | C15: ='B01'!$C$5 -> 22.4 | E15: EPA 2012
A16: Concentration in fish | B16: ConcFish | C16: ConcWat × BCF
B17: Central | C17: =C8*C13 -> 0.0137883174 | D17: mg/kg | E17: Eq
B18: Lower | C18: =C9*C14 -> 0.001867167982 | E18: Eq
B19: Upper | C19: =C10*C15 -> 0.6032386727 | E19: Eq
A20: Receptor
A21: Amount of fish consumed | B21: Amnt
B22: Central | C22: ='A03'!$E$19 -> 0.01 | D22: kg/day | E22: U.S. EPA/ORD 1996
B23: Lower | C23: ='A03'!$E$19 -> 0.01 | E23: U.S. EPA/ORD 1996
B24: Upper | C24: ='A03'!$E$19 -> 0.01 | E24: U.S. EPA/ORD 1996
A25: Toxic Equivalency Factor for formulation: (See risk assessment if this has a value other than 1.) | B25: TEF
B26: Central | C26: ='A01'!C$45 -> 1 | D26: Unitless | E26: Worksheet A01
B27: Lower | C27: ='A01'!C$46 -> 1 | E27: Worksheet A01
B28: Upper | C28: ='A01'!C$47 -> 1 | E28: Worksheet A01
A29: Body weight | B29: BW | C29: =A02a!$C$8 -> 86 | D29: kg | E29: U.S. EPA/OPP 2012
A30: Dose | B30: Dose | C30: ConcFish× Amnt x TEF ÷ BW
B31: Central | C31: =C17*C22*C26/C$29 -> 1.603292721e-06 | D31: mg/kg | E31: Eq
B32: Lower | C32: =C18*C23*C27/C$29 -> 2.17112556e-07 | D32: mg/kg | E32: Eq
B33: Upper | C33: =C19*C24*C28/C$29 -> 7.014403171e-05 | D33: mg/kg | E33: Eq
E34: FishAmntV6

Sheet D09b
A1: Consumption of Contaminated Fish (Longer-term), Subsistence Populations, chronic exposure
A2: Short Title | B2: Fish consumption | E2: FishAmntV6
A3: Receptor | B3: Subsistence Populations
A4: Duration | B4: chronic
A5: Parameter/Assumption | B5: Code / Range | C5: Equation/ Value | D5: Units | E5: Reference/Designation
A6: Water
A7: Concentration in water | B7: ConcWat | C7: ApR × WCR
B8: Central | C8: =B04a!Chronic_C -> 0.0006155498841 | D8: mg/L | E8: ='B04a'!Chronic_C
B9: Lower | C9: =B04a!Chronic_L -> 8.335571347e-05 | E9: ='B04a'!Chronic_L
B10: Upper | C10: =B04a!Chronic_U -> 0.02693029789 | E10: ='B04a'!Chronic_U
A11: Fish
A12: Bioconcentration factor | B12: BCF
B13: Central | C13: ='B01'!$C$5 -> 22.4 | D13: L/kg | E13: EPA 2012
B14: Lower | C14: ='B01'!$C$5 -> 22.4 | E14: EPA 2012
B15: Upper | C15: ='B01'!$C$5 -> 22.4 | E15: EPA 2012
A16: Concentration in fish | B16: ConcFish | C16: ConcWat × BCF
B17: Central | C17: =C8*C13 -> 0.0137883174 | D17: mg/kg | E17: Eq
B18: Lower | C18: =C9*C14 -> 0.001867167982 | E18: Eq
B19: Upper | C19: =C10*C15 -> 0.6032386727 | E19: Eq
A20: Receptor
A21: Amount of fish consumed | B21: Amnt
B22: Central | C22: ='A03'!$E$34 -> 0.081 | D22: kg/day | E22: U.S. EPA/ORD 1996
B23: Lower | C23: ='A03'!$E$34 -> 0.081 | E23: U.S. EPA/ORD 1996
B24: Upper | C24: ='A03'!$E$34 -> 0.081 | E24: U.S. EPA/ORD 1996
A25: Toxic Equivalency Factor for formulation: (See risk assessment if this has a value other than 1.) | B25: TEF
B26: Central | C26: ='A01'!C$45 -> 1 | D26: Unitless | E26: Worksheet A01
B27: Lower | C27: ='A01'!C$46 -> 1 | E27: Worksheet A01
B28: Upper | C28: ='A01'!C$47 -> 1 | E28: Worksheet A01
A29: Body weight | B29: BW | C29: =A02a!$C$9 -> 80 | D29: kg | E29: U.S. EPA/OPP 2012
A30: Dose | B30: Dose | C30: ConcFish× Amnt x TEF ÷ BW
B31: Central | C31: =C17*C22*C26/C$29 -> 1.396067137e-05 | D31: mg/kg | E31: Eq
B32: Lower | C32: =C18*C23*C27/C$29 -> 1.890507582e-06 | D32: mg/kg | E32: Eq
B33: Upper | C33: =C19*C24*C28/C$29 -> 0.0006107791561 | D33: mg/kg | E33: Eq
E34: FishAmntV6

Sheet D09c
A1: Consumption of Contaminated Fish (Peak Exposure), Adult Male, acute exposure
A2: Short Title | B2: Fish consumption | E2: FishAmntV6
A3: Receptor | B3: Adult Male
A4: Duration | B4: acute
A5: Parameter/Assumption | B5: Code / Range | C5: Equation/ Value | D5: Units | E5: Reference/Designation
A6: Water
A7: Concentration in water | B7: ConcWat | C7: ApR × WCR
B8: Central | C8: =B04a!Acute_C -> 0.4 | D8: mg/L | E8: ='B04a'!Acute_C
B9: Lower | C9: =B04a!Acute_L -> 0.4 | E9: ='B04a'!Acute_L
B10: Upper | C10: =B04a!Acute_U -> 0.4 | E10: ='B04a'!Acute_U
A11: Fish
A12: Bioconcentration factor | B12: BCF
B13: Central | C13: ='B01'!$C$4 -> 22.4 | D13: L/kg | E13: EPA 2012
B14: Lower | C14: ='B01'!$C$4 -> 22.4 | E14: EPA 2012
B15: Upper | C15: ='B01'!$C$4 -> 22.4 | E15: EPA 2012
A16: Concentration in fish | B16: ConcFish | C16: ConcWat × BCF
B17: Central | C17: =C8*C13 -> 8.96 | D17: mg/kg | E17: Eq
B18: Lower | C18: =C9*C14 -> 8.96 | E18: Eq
B19: Upper | C19: =C10*C15 -> 8.96 | E19: Eq
A20: Receptor
A21: Amount of fish consumed | B21: Amnt
B22: Central | C22: ='A03'!$E$20 -> 0.158 | D22: kg/day | E22: Ruffle et al. 1994
B23: Lower | C23: ='A03'!$E$20 -> 0.158 | E23: Ruffle et al. 1994
B24: Upper | C24: ='A03'!$E$20 -> 0.158 | E24: Ruffle et al. 1994
A25: Toxic Equivalency Factor for formulation: (See risk assessment if this has a value other than 1.) | B25: TEF
B26: Central | C26: ='A01'!C$45 -> 1 | D26: Unitless | E26: Worksheet A01
B27: Lower | C27: ='A01'!C$46 -> 1 | E27: Worksheet A01
B28: Upper | C28: ='A01'!C$47 -> 1 | E28: Worksheet A01
A29: Body weight | B29: BW | C29: =A02a!$C$8 -> 86 | D29: kg | E29: U.S. EPA/OPP 2012
A30: Dose | B30: Dose | C30: ConcFish× Amnt x TEF ÷ BW
B31: Central | C31: =C17*C22*C26/C$29 -> 0.01646139535 | D31: mg/kg | E31: Eq
B32: Lower | C32: =C18*C23*C27/C$29 -> 0.01646139535 | D32: mg/kg | E32: Eq
B33: Upper | C33: =C19*C24*C28/C$29 -> 0.01646139535 | D33: mg/kg | E33: Eq
E34: FishAmntV6

Sheet D09d
A1: Consumption of Contaminated Fish (Peak Exposure), Subsistence Populations, acute exposure
A2: Short Title | B2: Fish consumption | E2: FishAmntV6
A3: Receptor | B3: Subsistence Populations
A4: Duration | B4: acute
A5: Parameter/Assumption | B5: Code / Range | C5: Equation/ Value | D5: Units | E5: Reference/Designation
A6: Water
A7: Concentration in water | B7: ConcWat | C7: ApR × WCR
B8: Central | C8: =B04a!Acute_C -> 0.4 | D8: mg/L | E8: ='B04a'!Acute_C
B9: Lower | C9: =B04a!Acute_L -> 0.4 | E9: ='B04a'!Acute_L
B10: Upper | C10: =B04a!Acute_U -> 0.4 | E10: ='B04a'!Acute_U
A11: Fish
A12: Bioconcentration factor | B12: BCF
B13: Central | C13: ='B01'!$C$4 -> 22.4 | D13: L/kg | E13: EPA 2012
B14: Lower | C14: ='B01'!$C$4 -> 22.4 | E14: EPA 2012
B15: Upper | C15: ='B01'!$C$4 -> 22.4 | E15: EPA 2012
A16: Concentration in fish | B16: ConcFish | C16: ConcWat × BCF
B17: Central | C17: =C8*C13 -> 8.96 | D17: mg/kg | E17: Eq
B18: Lower | C18: =C9*C14 -> 8.96 | E18: Eq
B19: Upper | C19: =C10*C15 -> 8.96 | E19: Eq
A20: Receptor
A21: Amount of fish consumed | B21: Amnt
B22: Central | C22: ='A03'!$E$35 -> 0.77 | D22: kg/day | E22: U.S. EPA/ORD 1993
B23: Lower | C23: ='A03'!$E$35 -> 0.77 | E23: U.S. EPA/ORD 1993
B24: Upper | C24: ='A03'!$E$35 -> 0.77 | E24: U.S. EPA/ORD 1993
A25: Toxic Equivalency Factor for formulation: (See risk assessment if this has a value other than 1.) | B25: TEF
B26: Central | C26: ='A01'!C$45 -> 1 | D26: Unitless | E26: Worksheet A01
B27: Lower | C27: ='A01'!C$46 -> 1 | E27: Worksheet A01
B28: Upper | C28: ='A01'!C$47 -> 1 | E28: Worksheet A01
A29: Body weight | B29: BW | C29: =A02a!$C$9 -> 80 | D29: kg | E29: U.S. EPA/OPP 2012
A30: Dose | B30: Dose | C30: ConcFish× Amnt x TEF ÷ BW
B31: Central | C31: =C17*C22*C26/C$29 -> 0.08624 | D31: mg/kg | E31: Eq
B32: Lower | C32: =C18*C23*C27/C$29 -> 0.08624 | D32: mg/kg | E32: Eq
B33: Upper | C33: =C19*C24*C28/C$29 -> 0.08624 | D33: mg/kg | E33: Eq
E34: FishAmntV6

Sheet D10
A1: Swimming Exposure Assessment Using Zero-Order Absorption, Adult Female, Surface Area, Whole body, for 60 minute(s)
A2: Short Title | B2: Swimming | E2: DrmZrSwm
A3: Receptor | B3: Adult Female
A4: Duration | B4: Acute
A5: Surface Contaminated | B5: Surface Area, Whole body
A6: Parameter/Assumption | B6: Code / Range | C6: Equation/ Value | D6: Units | E6: Reference/Designation
A7: Application Rate | B7: ApRt | C7: ='A01'!ApRt_C -> 0.4 | D7: lb/acre | E7: Worksheet A01
A8: Surface Area | B8: SA | C8: =A02a!$C$7 -> 17700 | D8: cm2 | E8: U.S. EPA/OPP 2012
A9: Duration of Exposure | B9: T_min | C9: ='A01'!C$39 -> 60 | D9: minutes | E9: Worksheet A01
B10: T_hr | C10: =C9/60 -> 1 | D10: hours | E10: Eq
A11: Body weight | B11: BW | C11: =A02a!$C$4 -> 69 | D11: kg | E11: U.S. EPA/OPP 2012
A12: Water contamination rate | B12: WCR
B13: Central | C13: =B04a!Acute_C -> 0.4 | D13: mg/L per lb/acre | E13: Worksheet B04a
B14: Lower | C14: =B04a!Acute_L -> 0.4 | E14: Worksheet B04a
B15: Upper | C15: =B04a!Acute_U -> 0.4 | E15: Worksheet B04a
A16: Concentration in water in mg/mL | B16: ConcWat | C16: ApR × WCR / 1000
B17: Central | C17: =C$7*C13/1000 -> 0.00016 | D17: mg/mL | E17: Eq
B18: Lower | C18: =C$7*C14/1000 -> 0.00016 | E18: Eq
B19: Upper | C19: =C$7*C15/1000 -> 0.00016 | E19: Eq
A20: Toxic Equivalency Factor for formulation: (See risk assessment if this has a value other than 1.) | B20: TEF
B21: Central | C21: ='A01'!C$45 -> 1 | D21: Unitless | E21: Worksheet A01
B22: Lower | C22: ='A01'!C$46 -> 1 | E22: Worksheet A01
B23: Upper | C23: ='A01'!C$47 -> 1 | E23: Worksheet A01
A24: Dermal permeability | B24: Kp
B25: Central | C25: ='B01'!$C$14 -> 0.000789 | D25: cm/hour | E25: Calculated using “Adding Pesticides Attachment 1…”
B26: Lower | C26: ='B01'!$C$15 -> 0.000499 | E26: Calculated using “Adding Pesticides Attachment 1…”
B27: Upper | C27: ='B01'!$C$16 -> 0.00125 | E27: Calculated using “Adding Pesticides Attachment 1…”
A28: Absorbed Dose | B28: Dose | C28: Kp × Conc × T_hr × SA × TEF ÷ BW
B29: Central | C29: =C25*C17*C$10*C$8*C21/C$11 -> 3.238330435e-05 | D29: mg/kg
B30: Lower | C30: =C26*C18*C$10*C$8*C22/C$11 -> 2.048069565e-05 | D30: mg/kg
B31: Upper | C31: =C27*C19*C$10*C$8*C23/C$11 -> 5.130434783e-05 | D31: mg/kg

Sheet E01
A1: Summary of Worker Exposure Assessments
A2: Application Rate: | B2: ='A01'!ApRt_C -> 0.4 | C2: ppm | F2: E01aV5-1Wrkr
A3: Scenario | B3: Receptor | C3: mg/kg/day or mg/kg/event | F3: Detail Worksheet
C4: Central | D4: Lower | E4: Upper
A5: Accidental/Incidental Exposures
A6: Contaminated Gloves, 1 min. | B6: Worker | C6: ='C02a'!Dose_C -> 0.02126936047 | D6: ='C02a'!Dose_L -> 0.01345172481 | E6: ='C02a'!Dose_U -> 0.03369670543 | F6: C02a
A7: Contaminated Gloves, 1 hour | B7: Worker | C7: ='C02b'!Dose_C -> 1.276161628 | D7: ='C02b'!Dose_L -> 0.8071034884 | E7: ='C02b'!Dose_U -> 2.021802326 | F7: C02b
A8: Spill on Hands, 1 hour | B8: Worker | C8: ='C03a'!Dose_C -> 0.01603507945 | D8: ='C03a'!Dose_L -> 0.006804405633 | E8: ='C03a'!Dose_U -> 0.03798636524 | F8: C03a
A9: Spill on lower legs, 1 hour | B9: Worker | C9: ='C03b'!Dose_C -> 0.04016262891 | D9: ='C03b'!Dose_L -> 0.01704281037 | E9: ='C03b'!Dose_U -> 0.09514341948 | F9: C03b
A10: General Exposures
B11: Worker | C11: ='C01'!Dose_C -> 0.01058219092 | D11: ='C01'!Dose_L -> 0.002116438184 | E11: ='C01'!Dose_U -> 0.05291095459 | F11: C01

Sheet E02
A1: Summary of Worker Hazard Quotients (Toxicity)
A2: Application Rate: | B2: ='A01'!ApRt_C -> 0.4 | C2: ppm | F2: E01aV5-1Wrkr
A3: Scenario | B3: Receptor | C3: Hazard Quotients | F3: Toxicity Value
C4: Central | D4: Lower | E4: Upper
A5: Accidental/Incidental Exposures
A6: Contaminated Gloves, 1 min. | B6: Worker | C6: ='C02a'!$C$24/$F$6 -> 0.3376088963 | D6: ='C02a'!$C$25/$F$6 -> 0.2135194414 | E6: ='C02a'!$C$26/$F$6 -> 0.5348683401 | F6: ='B02'!$E$4 -> 0.063
A7: Contaminated Gloves, 1 hour | B7: Worker | C7: ='C02b'!$C$24/$F$7 -> 20.25653378 | D7: ='C02b'!$C$25/$F$7 -> 12.81116648 | E7: ='C02b'!$C$26/$F$7 -> 32.09210041 | F7: ='B02'!$E$4 -> 0.063
A8: Spill on Hands, 1 hour | B8: Worker | C8: ='C03a'!$C$37/$F$8 -> 0.2545250707 | D8: ='C03a'!$C$38/$F$8 -> 0.1080064386 | E8: ='C03a'!$C$39/$F$8 -> 0.6029581784 | F8: ='B02'!$E$4 -> 0.063
A9: Spill on lower legs, 1 hour | B9: Worker | C9: ='C03b'!$C$37/$F$9 -> 0.6375020462 | D9: ='C03b'!$C$38/$F$9 -> 0.2705207995 | E9: ='C03b'!$C$39/$F$9 -> 1.510213008 | F9: ='B02'!$E$4 -> 0.063
A10: General Exposures
B11: Worker | C11: ='C01'!$C$20/$F$11 -> 0.5291095459 | D11: ='C01'!$C$21/$F$11 -> 0.1058219092 | E11: ='C01'!$C$22/$F$11 -> 2.645547729 | F11: ='B02'!$E$5 -> 0.02

Sheet E03
A1: Summary of Exposure Assessments for the General Public
A2: Application Rate: | B2: ='A01'!ApRt_C -> 0.4 | C2: ppm | F2: E03aV6
A3: Scenario | B3: Receptor | C3: mg/kg/day or mg/kg/event | F3: Detail Worksheet
C4: Central | D4: Lower | E4: Upper | K4: Lower | L4: Central | M4: Upper | N4: Check
A5: Accidental Acute Exposures (dose in mg/kg/event)
A6: Direct Spray of Child, whole body | B6: Child | C6: No Exposure Assessment | J6: Spray: Child | K6: =IF(D6>0, D6, "") ->  | L6: =IF(ISERROR(C6-K6), "", C6-K6) ->  | M6: =IF(ISERROR(E6-C6), "", E6-C6) ->  | N6: =E6-SUM(K6:M6) -> 0
A7: Direct Spray of Woman, feet and lower legs | B7: Adult Female | C7: No Exposure Assessment | J7: Spray: Woman | K7: =IF(D7>0, D7, "") ->  | L7: =IF(ISERROR(C7-K7), "", C7-K7) ->  | M7: =IF(ISERROR(E7-C7), "", E7-C7) ->  | N7: =E7-SUM(K7:M7) -> 0
A8: Water consumption (spill) | B8: Child | C8: ='D05'!Dose_C -> 4.473181818 | D8: ='D05'!Dose_L -> 0.5457281818 | E8: ='D05'!Dose_U -> 13.41954545 | F8: D05 | J8: Water: Child | K8: 0.5457281818 | L8: 3.927453636 | M8: 8.946363636 | N8: 0
A9: Fish consumption (spill) | B9: Adult Male | C9: =D08a!Dose_C -> 2.024957395 | D9: =D08a!Dose_L -> 0.4049914791 | E9: =D08a!Dose_U -> 4.049914791 | F9: D08a | J9: Fish: General | K9: 0.4049914791 | L9: 1.619965916 | M9: 2.024957395 | N9: 0
A10: Fish consumption (spill) | B10: Subsistence Populations | C10: =D08b!Dose_C -> 10.608598 | D10: =D08b!Dose_L -> 2.1217196 | E10: =D08b!Dose_U -> 21.217196 | F10: D08b | J10: Fish: Subsist | K10: 2.1217196 | L10: 8.4868784 | M10: 10.608598 | N10: 0
A11: Non-Accidental Acute Exposures (dose in mg/kg/event)
A12: Vegetation Contact, shorts and T-shirt | B12: Adult Female | C12: No Exposure Assessment | J12: Contact: Female | K12: =IF(D12>0, D12, "") ->  | L12: =IF(ISERROR(C12-K12), "", C12-K12) ->  | M12: =IF(ISERROR(E12-C12), "", E12-C12) ->  | N12: =E12-SUM(K12:M12) -> 0
A13: Contaminated Fruit | B13: Adult Female | C13: No Exposure Assessment | J13: Fruit: Female | N13: 0
A14: Contaminated Vegetation | B14: Adult Female | C14: No Exposure Assessment | J14: Veg: Female | N14: 0
A15: Swimming, one hour | B15: Adult Female | C15: ='D10'!Dose_C -> 3.238330435e-05 | D15: ='D10'!Dose_L -> 2.048069565e-05 | E15: ='D10'!Dose_U -> 5.130434783e-05 | F15: D10 | J15: Swim: Female | K15: 2.048069565e-05 | L15: 1.19026087e-05 | M15: 1.892104348e-05 | N15: 0
A16: Water consumption | B16: Child | C16: ='D06'!Dose_C -> 0.03636363636 | D16: ='D06'!Dose_L -> 0.02218181818 | E16: ='D06'!Dose_U -> 0.05454545455 | F16: D06 | J16: Water: Child | K16: 0.02218181818 | L16: 0.01418181818 | M16: 0.01818181818 | N16: 0
A17: Fish consumption | B17: Adult Male | C17: =D09c!Dose_C -> 0.01646139535 | D17: =D09c!Dose_L -> 0.01646139535 | E17: =D09c!Dose_U -> 0.01646139535 | F17: D09c | J17: Fish: Male | K17: 0.01646139535 | L17: 0 | M17: 0 | N17: 0
A18: Fish consumption | B18: Subsistence Populations | C18: =D09d!Dose_C -> 0.08624 | D18: =D09d!Dose_L -> 0.08624 | E18: =D09d!Dose_U -> 0.08624 | F18: D09d | J18: Fish: Subsist | K18: 0.08624 | L18: 0 | M18: 0 | N18: 0
A19: Chronic/Longer Term Exposures (dose in mg/kg/day)
A20: Contaminated Fruit | B20: Adult Female | C20: No Exposure Assessment | J20: Fruit: Female | K20: =IF(D20>0, D20, "") ->  | L20: =IF(ISERROR(C20-K20), "", C20-K20) ->  | M20: =IF(ISERROR(E20-C20), "", E20-C20) ->  | N20: =E20-SUM(K20:M20) -> 0
A21: Contaminated Vegetation | B21: Adult Female | C21: No Exposure Assessment | J21: Veg: Female | N21: 0
A22: Water consumption | B22: Adult Male | C22: ='D07'!Dose_C -> 1.431511358e-05 | D22: ='D07'!Dose_L -> 1.356953475e-06 | E22: ='D07'!Dose_U -> 0.0007515431969 | F22: D07 | J22: Water: Male | K22: 1.356953475e-06 | L22: 1.295816011e-05 | M22: 0.0007372280833 | N22: 0
A23: Fish consumption | B23: Adult Male | C23: =D09a!Dose_C -> 1.603292721e-06 | D23: =D09a!Dose_L -> 2.17112556e-07 | E23: =D09a!Dose_U -> 7.014403171e-05 | F23: D09a | J23: Fish: Male | K23: 2.17112556e-07 | L23: 1.386180165e-06 | M23: 6.854073899e-05 | N23: 0
A24: Fish consumption | B24: Subsistence Populations | C24: =D09b!Dose_C -> 1.396067137e-05 | D24: =D09b!Dose_L -> 1.890507582e-06 | E24: =D09b!Dose_U -> 0.0006107791561 | F24: D09b | J24: Fish: Subsist | K24: 1.890507582e-06 | L24: 1.207016379e-05 | M24: 0.0005968184847 | N24: 0

Sheet E04
A1: Summary of Hazard Quotients (Toxicity) for the General Public
A2: Application Rate: | B2: ='A01'!ApRt_C -> 0.4 | C2: ppm | F2: E03aV6
A3: Scenario | B3: Receptor | C3: Hazard Quotients | F3: Toxicity Value
C4: Central | D4: Lower | E4: Upper | K4: Lower | L4: Central | M4: Upper | N4: Check
A5: Accidental Acute Exposures (dose in mg/kg/event)
A6: Direct Spray of Child, whole body | B6: Child | C6: No exposure assessment. | J6: Spray: Child | K6: =IF(D6>0, D6, "") ->  | L6: =IF(ISERROR(C6-K6), "", C6-K6) ->  | M6: =IF(ISERROR(E6-C6), "", E6-C6) ->  | N6: =E6-SUM(K6:M6) -> 0
A7: Direct Spray of Woman, feet and lower legs | B7: Adult Female | C7: No exposure assessment. | J7: Spray: Woman | K7: =IF(D7>0, D7, "") ->  | L7: =IF(ISERROR(C7-K7), "", C7-K7) ->  | M7: =IF(ISERROR(E7-C7), "", E7-C7) ->  | N7: =E7-SUM(K7:M7) -> 0
A8: Water consumption (spill) | B8: Child | C8: ='D05'!$C$17/$F$8 -> 71.002886 | D8: ='D05'!$C$18/$F$8 -> 8.662352092 | E8: ='D05'!$C$19/$F$8 -> 213.008658 | F8: ='B02'!$E$4 -> 0.063 | J8: Water: Child | K8: 8.662352092 | L8: 62.34053391 | M8: 142.005772 | N8: 0
A9: Fish consumption (spill) | B9: Adult Male | C9: =D08a!$C$31/$F$9 -> 32.14218088 | D9: =D08a!$C$32/$F$9 -> 6.428436176 | E9: =D08a!$C$33/$F$9 -> 64.28436176 | F9: ='B02'!$E$4 -> 0.063 | J9: Fish: General | K9: 6.428436176 | L9: 25.7137447 | M9: 32.14218088 | N9: 0
A10: Fish consumption (spill) | B10: Subsistence Populations | C10: =D08b!$C$31/$F$10 -> 168.3904444 | D10: =D08b!$C$32/$F$10 -> 33.67808889 | E10: =D08b!$C$33/$F$10 -> 336.7808889 | F10: ='B02'!$E$4 -> 0.063 | J10: Fish: Subsist | K10: 33.67808889 | L10: 134.7123556 | M10: 168.3904444 | N10: 0
A11: Non-Accidental Acute Exposures (dose in mg/kg/event)
A12: Vegetation Contact, shorts and T-shirt | B12: Adult Female | C12: No exposure assessment. | J12: Contact: Female | K12: =IF(D12>0, D12, "") ->  | L12: =IF(ISERROR(C12-K12), "", C12-K12) ->  | M12: =IF(ISERROR(E12-C12), "", E12-C12) ->  | N12: =E12-SUM(K12:M12) -> 0
A13: Contaminated Fruit | B13: Adult Female | C13: No exposure assessment. | J13: Fruit: Female | N13: 0
A14: Contaminated Vegetation | B14: Adult Female | C14: No exposure assessment. | J14: Veg: Female | N14: 0
A15: Swimming, one hour | B15: Adult Female | C15: ='D10'!$C$29/$F$15 -> 0.001079443478 | D15: ='D10'!$C$30/$F$15 -> 0.0006826898551 | E15: ='D10'!$C$31/$F$15 -> 0.001710144928 | F15: ='B02'!$E$6 -> 0.03 | J15: Swim: Female | K15: 0.0006826898551 | L15: 0.0003967536232 | M15: 0.0006307014493 | N15: 0
A16: Water consumption | B16: Child | C16: ='D06'!$C$17/$F$16 -> 0.5772005772 | D16: ='D06'!$C$18/$F$16 -> 0.3520923521 | E16: ='D06'!$C$19/$F$16 -> 0.8658008658 | F16: ='B02'!$E$4 -> 0.063 | J16: Water: Child | K16: 0.3520923521 | L16: 0.2251082251 | M16: 0.2886002886 | N16: 0
A17: Fish consumption | B17: Adult Male | C17: =D09c!$C$31/$F$17 -> 0.2612919897 | D17: =D09c!$C$32/$F$17 -> 0.2612919897 | E17: =D09c!$C$33/$F$17 -> 0.2612919897 | F17: ='B02'!$E$4 -> 0.063 | J17: Fish: Male | K17: 0.2612919897 | L17: 0 | M17: 0 | N17: 0
A18: Fish consumption | B18: Subsistence Populations | C18: =D09d!$C$31/$F$18 -> 1.368888889 | D18: =D09d!$C$32/$F$18 -> 1.368888889 | E18: =D09d!$C$33/$F$18 -> 1.368888889 | F18: ='B02'!$E$4 -> 0.063 | J18: Fish: Subsist | K18: 1.368888889 | L18: 0 | M18: 0 | N18: 0
A19: Chronic/Longer Term Exposures (dose in mg/kg/day)
A20: Contaminated Fruit | B20: Adult Female | C20: No exposure assessment. | J20: Fruit: Female | K20: =IF(D20>0, D20, "") ->  | L20: =IF(ISERROR(C20-K20), "", C20-K20) ->  | M20: =IF(ISERROR(E20-C20), "", E20-C20) ->  | N20: =E20-SUM(K20:M20) -> 0
A21: Contaminated Vegetation | B21: Adult Female | C21: No exposure assessment. | J21: Veg: Female | N21: 0
A22: Water consumption | B22: Adult Male | C22: ='D07'!$C$17/$F$22 -> 0.0007157556792 | D22: ='D07'!$C$18/$F$22 -> 6.784767376e-05 | E22: ='D07'!$C$19/$F$22 -> 0.03757715984 | F22: ='B02'!$E$5 -> 0.02 | J22: Water: Male | K22: 6.784767376e-05 | L22: 0.0006479080054 | M22: 0.03686140417 | N22: 0
A23: Fish consumption | B23: Adult Male | C23: =D09a!$C$31/$F$23 -> 8.016463607e-05 | D23: =D09a!$C$32/$F$23 -> 1.08556278e-05 | E23: =D09a!$C$33/$F$23 -> 0.003507201586 | F23: ='B02'!$E$5 -> 0.02 | J23: Fish: Male | K23: 1.08556278e-05 | L23: 6.930900827e-05 | M23: 0.003427036949 | N23: 0
A24: Fish consumption | B24: Subsistence Populations | C24: =D09b!$C$31/$F$24 -> 0.0006980335686 | D24: =D09b!$C$32/$F$24 -> 9.452537908e-05 | E24: =D09b!$C$33/$F$24 -> 0.03053895781 | F24: ='B02'!$E$5 -> 0.02 | J24: Fish: Subsist | K24: 9.452537908e-05 | L24: 0.0006035081895 | M24: 0.02984092424 | N24: 0

Sheet F02a
A1: Consumption of contaminated water by Mammal, small, Accidental Spill
A2: Short Title | B2: Accidental Spill | E2: WatAlloV6
A3: Receptor | B3: Mammal, small
A4: Duration | B4: Acute | E4: Scenario parameter
A5: Parameter/Assumption | B5: Code / Range | C5: Equation/ Value | D5: Units | E5: Reference/Designation
A6: Concentration in water | B6: ConcWat
B7: Central | C7: =B04b!Acute_C -> 49.205 | D7: mg/L | E7: ='B04b'!Acute_C
B8: Lower | C8: =B04b!Acute_L -> 9.841 | E8: ='B04b'!Acute_L
B9: Upper | C9: =B04b!Acute_U -> 98.41 | E9: ='B04b'!Acute_U
A10: Receptor
A11: Body weight | B11: BW | C11: =A02b!$C$71 -> 0.02 | D11: kg | E11: Default
A12: Allometric coefficients forwater consumption per day in liters and BW in kilograms
B13: alpha | C13: =A02b!$C$79 -> 0.099 | E13: U.S. EPA/ORD 1993
B14: beta | C14: =A02b!$C$80 -> 0.9 | E14: U.S. EPA/ORD 1993
A15: Amount of water consumed per day | C15: Amnt = alpha BW beta
B16: Amnt | C16: =C13*(C11^C14) -> 0.002927940121 | D16: liters | E16: Eq
A17: Absorbed Dose | B17: Dose | C17: ConcWat × Amnt ÷ BW
B18: Central | C18: =C7*C$16/C$11 -> 7.203464682 | D18: mg/kg | E18: Eq
B19: Lower | C19: =C8*C$16/C$11 -> 1.440692936 | D19: mg/kg | E19: Eq
B20: Upper | C20: =C9*C$16/C$11 -> 14.40692936 | D20: mg/kg | E20: Eq

Sheet F02b
A1: Consumption of contaminated water by Mammal, 400 g, Accidental Spill
A2: Short Title | B2: Accidental Spill | E2: WatAlloV6
A3: Receptor | B3: Mammal, 400 g
A4: Duration | B4: Acute | E4: Scenario parameter
A5: Parameter/Assumption | B5: Code / Range | C5: Equation/ Value | D5: Units | E5: Reference/Designation
A6: Concentration in water | B6: ConcWat
B7: Central | C7: =B04b!Acute_C -> 49.205 | D7: mg/L | E7: ='B04b'!Acute_C
B8: Lower | C8: =B04b!Acute_L -> 9.841 | E8: ='B04b'!Acute_L
B9: Upper | C9: =B04b!Acute_U -> 98.41 | E9: ='B04b'!Acute_U
A10: Receptor
A11: Body weight | B11: BW | C11: =A02b!$C$40 -> 0.4 | D11: kg | E11: Default
A12: Allometric coefficients forwater consumption per day in liters and BW in kilograms
B13: alpha | C13: =A02b!$C$45 -> 0.099 | E13: U.S. EPA/ORD 1993
B14: beta | C14: =A02b!$C$46 -> 0.9 | E14: U.S. EPA/ORD 1993
A15: Amount of water consumed per day | C15: Amnt = alpha BW beta
B16: Amnt | C16: =C13*(C11^C14) -> 0.04339994576 | D16: liters | E16: Eq
A17: Absorbed Dose | B17: Dose | C17: ConcWat × Amnt ÷ BW
B18: Central | C18: =C7*C$16/C$11 -> 5.338735828 | D18: mg/kg | E18: Eq
B19: Lower | C19: =C8*C$16/C$11 -> 1.067747166 | D19: mg/kg | E19: Eq
B20: Upper | C20: =C9*C$16/C$11 -> 10.67747166 | D20: mg/kg | E20: Eq

Sheet F02c
A1: Consumption of contaminated water by Mammal, carnivorous, Accidental Spill
A2: Short Title | B2: Accidental Spill | E2: WatAlloV6
A3: Receptor | B3: Mammal, carnivorous
A4: Duration | B4: Acute | E4: Scenario parameter
A5: Parameter/Assumption | B5: Code / Range | C5: Equation/ Value | D5: Units | E5: Reference/Designation
A6: Concentration in water | B6: ConcWat
B7: Central | C7: =B04b!Acute_C -> 49.205 | D7: mg/L | E7: ='B04b'!Acute_C
B8: Lower | C8: =B04b!Acute_L -> 9.841 | E8: ='B04b'!Acute_L
B9: Upper | C9: =B04b!Acute_U -> 98.41 | E9: ='B04b'!Acute_U
A10: Receptor
A11: Body weight | B11: BW | C11: =A02b!$C$47 -> 5 | D11: kg | E11: U.S. EPA/ORD 1993
A12: Allometric coefficients forwater consumption per day in liters and BW in kilograms
B13: alpha | C13: =A02b!$C$50 -> 0.099 | E13: U.S. EPA/ORD 1993
B14: beta | C14: =A02b!$C$51 -> 0.9 | E14: U.S. EPA/ORD 1993
A15: Amount of water consumed per day | C15: Amnt = alpha BW beta
B16: Amnt | C16: =C13*(C11^C14) -> 0.4214132616 | D16: liters | E16: Eq
A17: Absorbed Dose | B17: Dose | C17: ConcWat × Amnt ÷ BW
B18: Central | C18: =C7*C$16/C$11 -> 4.147127908 | D18: mg/kg | E18: Eq
B19: Lower | C19: =C8*C$16/C$11 -> 0.8294255816 | D19: mg/kg | E19: Eq
B20: Upper | C20: =C9*C$16/C$11 -> 8.294255816 | D20: mg/kg | E20: Eq

Sheet F02d
A1: Consumption of contaminated water by Mammal, large, Accidental Spill
A2: Short Title | B2: Accidental Spill | E2: WatAlloV6
A3: Receptor | B3: Mammal, large
A4: Duration | B4: Acute | E4: Scenario parameter
A5: Parameter/Assumption | B5: Code / Range | C5: Equation/ Value | D5: Units | E5: Reference/Designation
A6: Concentration in water | B6: ConcWat
B7: Central | C7: =B04b!Acute_C -> 49.205 | D7: mg/L | E7: ='B04b'!Acute_C
B8: Lower | C8: =B04b!Acute_L -> 9.841 | E8: ='B04b'!Acute_L
B9: Upper | C9: =B04b!Acute_U -> 98.41 | E9: ='B04b'!Acute_U
A10: Receptor
A11: Body weight | B11: BW | C11: =A02b!$C$61 -> 70 | D11: kg | E11: Default
A12: Allometric coefficients forwater consumption per day in liters and BW in kilograms
B13: alpha | C13: =A02b!$C$64 -> 0.099 | E13: U.S. EPA/ORD 1993
B14: beta | C14: =A02b!$C$65 -> 0.9 | E14: U.S. EPA/ORD 1993
A15: Amount of water consumed per day | C15: Amnt = alpha BW beta
B16: Amnt | C16: =C13*(C11^C14) -> 4.531306412 | D16: liters | E16: Eq
A17: Absorbed Dose | B17: Dose | C17: ConcWat × Amnt ÷ BW
B18: Central | C18: =C7*C$16/C$11 -> 3.185184743 | D18: mg/kg | E18: Eq
B19: Lower | C19: =C8*C$16/C$11 -> 0.6370369485 | D19: mg/kg | E19: Eq
B20: Upper | C20: =C9*C$16/C$11 -> 6.370369485 | D20: mg/kg | E20: Eq

Sheet F02e
A1: Consumption of contaminated water by Bird, small, Accidental Spill
A2: Short Title | B2: Accidental Spill | E2: WatAlloV6
A3: Receptor | B3: Bird, small
A4: Duration | B4: Acute | E4: Scenario parameter
A5: Parameter/Assumption | B5: Code / Range | C5: Equation/ Value | D5: Units | E5: Reference/Designation
A6: Concentration in water | B6: ConcWat
B7: Central | C7: =B04b!Acute_C -> 49.205 | D7: mg/L | E7: ='B04b'!Acute_C
B8: Lower | C8: =B04b!Acute_L -> 9.841 | E8: ='B04b'!Acute_L
B9: Upper | C9: =B04b!Acute_U -> 98.41 | E9: ='B04b'!Acute_U
A10: Receptor
A11: Body weight | B11: BW | C11: =A02b!$C$31 -> 0.01 | D11: kg | E11: Default
A12: Allometric coefficients forwater consumption per day in liters and BW in kilograms
B13: alpha | C13: =A02b!$C$34 -> 0.059 | E13: U.S. EPA/ORD 1993
B14: beta | C14: =A02b!$C$35 -> 0.67 | E14: U.S. EPA/ORD 1993
A15: Amount of water consumed per day | C15: Amnt = alpha BW beta
B16: Amnt | C16: =C13*(C11^C14) -> 0.002696820319 | D16: liters | E16: Eq
A17: Absorbed Dose | B17: Dose | C17: ConcWat × Amnt ÷ BW
B18: Central | C18: =C7*C$16/C$11 -> 13.26970438 | D18: mg/kg | E18: Eq
B19: Lower | C19: =C8*C$16/C$11 -> 2.653940876 | D19: mg/kg | E19: Eq
B20: Upper | C20: =C9*C$16/C$11 -> 26.53940876 | D20: mg/kg | E20: Eq

Sheet F02f
A1: Consumption of contaminated water by Bird, large, Accidental Spill
A2: Short Title | B2: Accidental Spill | E2: WatAlloV6
A3: Receptor | B3: Bird, large
A4: Duration | B4: Acute | E4: Scenario parameter
A5: Parameter/Assumption | B5: Code / Range | C5: Equation/ Value | D5: Units | E5: Reference/Designation
A6: Concentration in water | B6: ConcWat
B7: Central | C7: =B04b!Acute_C -> 49.205 | D7: mg/L | E7: ='B04b'!Acute_C
B8: Lower | C8: =B04b!Acute_L -> 9.841 | E8: ='B04b'!Acute_L
B9: Upper | C9: =B04b!Acute_U -> 98.41 | E9: ='B04b'!Acute_U
A10: Receptor
A11: Body weight | B11: BW | C11: =A02b!$C$15 -> 4 | D11: kg | E11: Default
A12: Allometric coefficients forwater consumption per day in liters and BW in kilograms
B13: alpha | C13: =A02b!$C$18 -> 0.059 | E13: U.S. EPA/ORD 1993
B14: beta | C14: =A02b!$C$19 -> 0.67 | E14: U.S. EPA/ORD 1993
A15: Amount of water consumed per day | C15: Amnt = alpha BW beta
B16: Amnt | C16: =C13*(C11^C14) -> 0.1493592781 | D16: liters | E16: Eq
A17: Absorbed Dose | B17: Dose | C17: ConcWat × Amnt ÷ BW
B18: Central | C18: =C7*C$16/C$11 -> 1.83730582 | D18: mg/kg | E18: Eq
B19: Lower | C19: =C8*C$16/C$11 -> 0.3674611639 | D19: mg/kg | E19: Eq
B20: Upper | C20: =C9*C$16/C$11 -> 3.674611639 | D20: mg/kg | E20: Eq

Sheet F03a
A1: Acute scenario for the consumption of Contaminated Fish (Accidental Spill) by Mammal, large carnivorous
A2: Short Title | B2: Fish consumption, accidental spill | E2: FishKcalV6
A3: Predator | B3: Mammal, large carnivorous
A4: Food Item (Prey) | B4: Fish
A5: Duration | B5: Acute | E5: Scenario parameter
A6: Parameter/Assumption | B6: Code / Range | C6: Equation/ Value | D6: Units | E6: Reference/Designation
A7: Water
A8: Concentration in water | B8: ConcWat
B9: Central | C9: =B04b!Acute_C -> 49.205 | D9: mg/L | E9: ='B04b'!Acute_C
B10: Lower | C10: =B04b!Acute_L -> 9.841 | E10: ='B04b'!Acute_L
B11: Upper | C11: =B04b!Acute_U -> 98.41 | E11: ='B04b'!Acute_U
A12: Fish
A13: Bioconcentration factor | B13: BCF
B14: Central | C14: ='B01'!$C$6 -> 22.4 | D14: L/kg | E14: EPA 2012
B15: Lower | C15: ='B01'!$C$6 -> 22.4 | E15: EPA 2012
B16: Upper | C16: ='B01'!$C$6 -> 22.4 | E16: EPA 2012
A17: Concentration in fish | B17: ConcFish | C17: ConcWat × BCF
B18: Central | C18: =C9*C14 -> 1102.192 | D18: mg/kg | E18: Eq
B19: Lower | C19: =C10*C15 -> 220.4384 | E19: Eq
B20: Upper | C20: =C11*C16 -> 2204.384 | E20: Eq
A21: Receptor
A22: Body weight | B22: BW | C22: =A02b!$C$52 -> 70 | D22: kg | E22: Reid 2006
A23: Allometric coefficients for caloric requirement per day in kilocalories and BW in grams
B24: alpha | C24: =A02b!$C$53 -> 0.6167 | E24: U.S. EPA/ORD 1993
B25: beta | C25: =A02b!$C$54 -> 0.862 | E25: U.S. EPA/ORD 1993
A26: Caloric requirement per day | B26: KR | C26: =C24*(C22*1000)^C25 -> 9258.666883 | D26: kcal/day | E26: Eq
A27: Caloric content of commodity (dry weight) | B27: KCD | C27: ='A03'!$E$59 -> 4.47 | D27: kcal/gdw [Note 1] | E27: U.S. EPA/ORD 1993
A28: Food consumed per day (dry weight) | B28: AmntDry | C28: = KR ÷ KCD
C29: =C26/C27 -> 2071.29013 | D29: gdry/day | E29: Eq
A30: Water content of vegetation as a proportion | B30: PropWater | C30: ='A03'!$E$60 -> 0.7 | D30: gwater/gfood | E30: Ali et al. 2005
A31: Dry weight content of vegetation as a proportion | B31: PropDry | C31: = 1-PropWater
C32: =1-C30 -> 0.3 | D32: gdry/gfood | E32: Eq
A33: Amount of fish consumed per day, wet weight | B33: AmntFish | C33: = (AmntDry ÷ PropDry) ÷ (1000g/kg)
B34: Central | C34: =(C29/C32)/1000 -> 6.904300435 | D34: kgfood/day | E34: Eq
B35: Lower | C35: =C34*0.3 -> 2.07129013 | D35: Note 1 | E35: Eq
B36: Upper | C36: =C34*1.7 -> 11.73731074 | D36: Note 1 | E36: Eq
A37: Proportion of diet that is contaminated | B37: Prop
B38: Central | C38: 0.3 | D38: Unitless | E38: Scenario parameter
B39: Lower | C39: 0.1 | E39: Scenario parameter
B40: Upper | C40: 1 | E40: Scenario parameter
A41: Dose
A42: Toxic Equivalency Factor for formulation: (See risk assessment if this has a value other than 1.) | B42: TEF
B43: Central | C43: ='A01'!C$45 -> 1 | D43: Unitless | E43: Worksheet A01
B44: Lower | C44: ='A01'!C$46 -> 1 | D44: Note 2 | E44: Worksheet A01
B45: Upper | C45: ='A01'!C$47 -> 1 | D45: Note 2 | E45: Worksheet A01
A46: Dose | B46: Dose | C46: = ConcFish × AmntFish × Prop ÷ BW
B47: Central | C47: =C18*C34*C38/C$22 -> 32.61370588 | D47: mg/kg | E47: Eq
B48: Lower | C48: =C19*C35*C39/C$22 -> 0.6522741175 | D48: mg/kg | E48: Eq
B49: Upper | C49: 369.6219999 | D49: mg/kg | E49: Eq
E50: FishKcalV6

Sheet F03b
A1: Acute scenario for the consumption of Contaminated Fish (Accidental Spill) by Mammal, carnivorous
A2: Short Title | B2: Fish consumption, accidental spill | E2: FishKcalV6
A3: Predator | B3: Mammal, carnivorous
A4: Food Item (Prey) | B4: Fish
A5: Duration | B5: Acute | E5: Scenario parameter
A6: Parameter/Assumption | B6: Code / Range | C6: Equation/ Value | D6: Units | E6: Reference/Designation
A7: Water
A8: Concentration in water | B8: ConcWat
B9: Central | C9: =B04b!Acute_C -> 49.205 | D9: mg/L | E9: ='B04b'!Acute_C
B10: Lower | C10: =B04b!Acute_L -> 9.841 | E10: ='B04b'!Acute_L
B11: Upper | C11: =B04b!Acute_U -> 98.41 | E11: ='B04b'!Acute_U
A12: Fish
A13: Bioconcentration factor | B13: BCF
B14: Central | C14: ='B01'!$C$6 -> 22.4 | D14: L/kg | E14: EPA 2012
B15: Lower | C15: ='B01'!$C$6 -> 22.4 | E15: EPA 2012
B16: Upper | C16: ='B01'!$C$6 -> 22.4 | E16: EPA 2012
A17: Concentration in fish | B17: ConcFish | C17: ConcWat × BCF
B18: Central | C18: =C9*C14 -> 1102.192 | D18: mg/kg | E18: Eq
B19: Lower | C19: =C10*C15 -> 220.4384 | E19: Eq
B20: Upper | C20: =C11*C16 -> 2204.384 | E20: Eq
A21: Receptor
A22: Body weight | B22: BW | C22: =A02b!$C$47 -> 5 | D22: kg | E22: U.S. EPA/ORD 1993
A23: Allometric coefficients for caloric requirement per day in kilocalories and BW in grams
B24: alpha | C24: =A02b!$C$48 -> 0.6167 | E24: U.S. EPA/ORD 1993
B25: beta | C25: =A02b!$C$49 -> 0.862 | E25: U.S. EPA/ORD 1993
A26: Caloric requirement per day | B26: KR | C26: =C24*(C22*1000)^C25 -> 951.8885266 | D26: kcal/day | E26: Eq
A27: Caloric content of commodity (dry weight) | B27: KCD | C27: ='A03'!$E$59 -> 4.47 | D27: kcal/gdw [Note 1] | E27: U.S. EPA/ORD 1993
A28: Food consumed per day (dry weight) | B28: AmntDry | C28: = KR ÷ KCD
C29: =C26/C27 -> 212.9504534 | D29: gdry/day | E29: Eq
A30: Water content of vegetation as a proportion | B30: PropWater | C30: ='A03'!$E$60 -> 0.7 | D30: gwater/gfood | E30: Ali et al. 2005
A31: Dry weight content of vegetation as a proportion | B31: PropDry | C31: = 1-PropWater
C32: =1-C30 -> 0.3 | D32: gdry/gfood | E32: Eq
A33: Amount of fish consumed per day, wet weight | B33: AmntFish | C33: = (AmntDry ÷ PropDry) ÷ (1000g/kg)
B34: Central | C34: =(C29/C32)/1000 -> 0.7098348446 | D34: kgfood/day | E34: Eq
B35: Lower | C35: =C34*0.3 -> 0.2129504534 | D35: Note 1 | E35: Eq
B36: Upper | C36: =C34*1.7 -> 1.206719236 | D36: Note 1 | E36: Eq
A37: Proportion of diet that is contaminated | B37: Prop
B38: Central | C38: 0.3 | D38: Unitless | E38: Scenario parameter
B39: Lower | C39: 0.1 | E39: Scenario parameter
B40: Upper | C40: 1 | E40: Scenario parameter
A41: Dose
A42: Toxic Equivalency Factor for formulation: (See risk assessment if this has a value other than 1.) | B42: TEF
B43: Central | C43: ='A01'!C$45 -> 1 | D43: Unitless | E43: Worksheet A01
B44: Lower | C44: ='A01'!C$46 -> 1 | D44: Note 2 | E44: Worksheet A01
B45: Upper | C45: ='A01'!C$47 -> 1 | D45: Note 2 | E45: Worksheet A01
A46: Dose | B46: Dose | C46: = ConcFish × AmntFish × Prop ÷ BW
B47: Central | C47: =C18*C34*C38/C$22 -> 46.94245722 | D47: mg/kg | E47: Eq
B48: Lower | C48: =C19*C35*C39/C$22 -> 0.9388491444 | D48: mg/kg | E48: Eq
B49: Upper | C49: 532.0145152 | D49: mg/kg | E49: Eq
E50: FishKcalV6

Sheet F03c
A1: Acute scenario for the consumption of Contaminated Fish (Accidental Spill) by Bird, piscivorous
A2: Short Title | B2: Fish consumption, accidental spill | E2: FishKcalV6
A3: Predator | B3: Bird, piscivorous
A4: Food Item (Prey) | B4: Fish
A5: Duration | B5: Acute | E5: Scenario parameter
A6: Parameter/Assumption | B6: Code / Range | C6: Equation/ Value | D6: Units | E6: Reference/Designation
A7: Water
A8: Concentration in water | B8: ConcWat
B9: Central | C9: =B04b!Acute_C -> 49.205 | D9: mg/L | E9: ='B04b'!Acute_C
B10: Lower | C10: =B04b!Acute_L -> 9.841 | E10: ='B04b'!Acute_L
B11: Upper | C11: =B04b!Acute_U -> 98.41 | E11: ='B04b'!Acute_U
A12: Fish
A13: Bioconcentration factor | B13: BCF
B14: Central | C14: ='B01'!$C$6 -> 22.4 | D14: L/kg | E14: EPA 2012
B15: Lower | C15: ='B01'!$C$6 -> 22.4 | E15: EPA 2012
B16: Upper | C16: ='B01'!$C$6 -> 22.4 | E16: EPA 2012
A17: Concentration in fish | B17: ConcFish | C17: ConcWat × BCF
B18: Central | C18: =C9*C14 -> 1102.192 | D18: mg/kg | E18: Eq
B19: Lower | C19: =C10*C15 -> 220.4384 | E19: Eq
B20: Upper | C20: =C11*C16 -> 2204.384 | E20: Eq
A21: Receptor
A22: Body weight | B22: BW | C22: =A02b!$C$24 -> 2.4 | D22: kg | E22: Sibley 2000
A23: Allometric coefficients for caloric requirement per day in kilocalories and BW in grams
B24: alpha | C24: =A02b!$C$27 -> 1.916 | E24: U.S. EPA/ORD 1993
B25: beta | C25: =A02b!$C$28 -> 0.704 | E25: U.S. EPA/ORD 1993
A26: Caloric requirement per day | B26: KR | C26: =C24*(C22*1000)^C25 -> 459.2659192 | D26: kcal/day | E26: Eq
A27: Caloric content of commodity (dry weight) | B27: KCD | C27: ='A03'!$E$36 -> 3.87 | D27: kcal/gdw [Note 1] | E27: U.S. EPA/ORD 1993
A28: Food consumed per day (dry weight) | B28: AmntDry | C28: = KR ÷ KCD
C29: =C26/C27 -> 118.6733641 | D29: gdry/day | E29: Eq
A30: Water content of vegetation as a proportion | B30: PropWater | C30: ='A03'!$E$37 -> 0.7 | D30: gwater/gfood | E30: Ali et al. 2005
A31: Dry weight content of vegetation as a proportion | B31: PropDry | C31: = 1-PropWater
C32: =1-C30 -> 0.3 | D32: gdry/gfood | E32: Eq
A33: Amount of fish consumed per day, wet weight | B33: AmntFish | C33: = (AmntDry ÷ PropDry) ÷ (1000g/kg)
B34: Central | C34: =(C29/C32)/1000 -> 0.3955778805 | D34: kgfood/day | E34: Eq
B35: Lower | C35: =C34*0.3 -> 0.1186733641 | D35: Note 1 | E35: Eq
B36: Upper | C36: =C34*1.7 -> 0.6724823968 | D36: Note 1 | E36: Eq
A37: Proportion of diet that is contaminated | B37: Prop
B38: Central | C38: 0.3 | D38: Unitless | E38: Scenario parameter
B39: Lower | C39: 0.1 | E39: Scenario parameter
B40: Upper | C40: 1 | E40: Scenario parameter
A41: Dose
A42: Toxic Equivalency Factor for formulation: (See risk assessment if this has a value other than 1.) | B42: TEF
B43: Central | C43: ='A01'!C$45 -> 1 | D43: Unitless | E43: Worksheet A01
B44: Lower | C44: ='A01'!C$46 -> 1 | D44: Note 2 | E44: Worksheet A01
B45: Upper | C45: ='A01'!C$47 -> 1 | D45: Note 2 | E45: Worksheet A01
A46: Dose | B46: Dose | C46: = ConcFish × AmntFish × Prop ÷ BW
B47: Central | C47: =C18*C34*C38/C$22 -> 54.50034691 | D47: mg/kg | E47: Eq
B48: Lower | C48: =C19*C35*C39/C$22 -> 1.090006938 | D48: mg/kg | E48: Eq
B49: Upper | C49: 617.6705983 | D49: mg/kg | E49: Eq
E50: FishKcalV6

Sheet F08a
A1: Consumption of contaminated water by Mammal, small, Peak Concentrations
A2: Short Title | B2: Peak Concentrations | E2: WatAlloV6
A3: Receptor | B3: Mammal, small
A4: Duration | B4: Acute | E4: Scenario parameter
A5: Parameter/Assumption | B5: Code / Range | C5: Equation/ Value | D5: Units | E5: Reference/Designation
A6: Concentration in water | B6: ConcWat
B7: Central | C7: =B04a!Acute_C -> 0.4 | D7: mg/L | E7: ='B04a'!Acute_C
B8: Lower | C8: =B04a!Acute_L -> 0.4 | E8: ='B04a'!Acute_L
B9: Upper | C9: =B04a!Acute_U -> 0.4 | E9: ='B04a'!Acute_U
A10: Receptor
A11: Body weight | B11: BW | C11: =A02b!$C$71 -> 0.02 | D11: kg | E11: Default
A12: Allometric coefficients forwater consumption per day in liters and BW in kilograms
B13: alpha | C13: =A02b!$C$79 -> 0.099 | E13: U.S. EPA/ORD 1993
B14: beta | C14: =A02b!$C$80 -> 0.9 | E14: U.S. EPA/ORD 1993
A15: Amount of water consumed per day | C15: Amnt = alpha BW beta
B16: Amnt | C16: =C13*(C11^C14) -> 0.002927940121 | D16: liters | E16: Eq
A17: Absorbed Dose | B17: Dose | C17: ConcWat × Amnt ÷ BW
B18: Central | C18: =C7*C$16/C$11 -> 0.05855880241 | D18: mg/kg | E18: Eq
B19: Lower | C19: =C8*C$16/C$11 -> 0.05855880241 | D19: mg/kg | E19: Eq
B20: Upper | C20: =C9*C$16/C$11 -> 0.05855880241 | D20: mg/kg | E20: Eq

Sheet F08b
A1: Consumption of contaminated water by Mammal, 400 g, Peak Concentrations
A2: Short Title | B2: Peak Concentrations | E2: WatAlloV6
A3: Receptor | B3: Mammal, 400 g
A4: Duration | B4: Acute | E4: Scenario parameter
A5: Parameter/Assumption | B5: Code / Range | C5: Equation/ Value | D5: Units | E5: Reference/Designation
A6: Concentration in water | B6: ConcWat
B7: Central | C7: =B04a!Acute_C -> 0.4 | D7: mg/L | E7: ='B04a'!Acute_C
B8: Lower | C8: =B04a!Acute_L -> 0.4 | E8: ='B04a'!Acute_L
B9: Upper | C9: =B04a!Acute_U -> 0.4 | E9: ='B04a'!Acute_U
A10: Receptor
A11: Body weight | B11: BW | C11: =A02b!$C$40 -> 0.4 | D11: kg | E11: Default
A12: Allometric coefficients forwater consumption per day in liters and BW in kilograms
B13: alpha | C13: =A02b!$C$45 -> 0.099 | E13: U.S. EPA/ORD 1993
B14: beta | C14: =A02b!$C$46 -> 0.9 | E14: U.S. EPA/ORD 1993
A15: Amount of water consumed per day | C15: Amnt = alpha BW beta
B16: Amnt | C16: =C13*(C11^C14) -> 0.04339994576 | D16: liters | E16: Eq
A17: Absorbed Dose | B17: Dose | C17: ConcWat × Amnt ÷ BW
B18: Central | C18: =C7*C$16/C$11 -> 0.04339994576 | D18: mg/kg | E18: Eq
B19: Lower | C19: =C8*C$16/C$11 -> 0.04339994576 | D19: mg/kg | E19: Eq
B20: Upper | C20: =C9*C$16/C$11 -> 0.04339994576 | D20: mg/kg | E20: Eq

Sheet F08c
A1: Consumption of contaminated water by Mammal, carnivorous, Peak Concentrations
A2: Short Title | B2: Peak Concentrations | E2: WatAlloV6
A3: Receptor | B3: Mammal, carnivorous
A4: Duration | B4: Acute | E4: Scenario parameter
A5: Parameter/Assumption | B5: Code / Range | C5: Equation/ Value | D5: Units | E5: Reference/Designation
A6: Concentration in water | B6: ConcWat
B7: Central | C7: =B04a!Acute_C -> 0.4 | D7: mg/L | E7: ='B04a'!Acute_C
B8: Lower | C8: =B04a!Acute_L -> 0.4 | E8: ='B04a'!Acute_L
B9: Upper | C9: =B04a!Acute_U -> 0.4 | E9: ='B04a'!Acute_U
A10: Receptor
A11: Body weight | B11: BW | C11: =A02b!$C$47 -> 5 | D11: kg | E11: U.S. EPA/ORD 1993
A12: Allometric coefficients forwater consumption per day in liters and BW in kilograms
B13: alpha | C13: =A02b!$C$50 -> 0.099 | E13: U.S. EPA/ORD 1993
B14: beta | C14: =A02b!$C$51 -> 0.9 | E14: U.S. EPA/ORD 1993
A15: Amount of water consumed per day | C15: Amnt = alpha BW beta
B16: Amnt | C16: =C13*(C11^C14) -> 0.4214132616 | D16: liters | E16: Eq
A17: Absorbed Dose | B17: Dose | C17: ConcWat × Amnt ÷ BW
B18: Central | C18: =C7*C$16/C$11 -> 0.03371306093 | D18: mg/kg | E18: Eq
B19: Lower | C19: =C8*C$16/C$11 -> 0.03371306093 | D19: mg/kg | E19: Eq
B20: Upper | C20: =C9*C$16/C$11 -> 0.03371306093 | D20: mg/kg | E20: Eq

Sheet F08d
A1: Consumption of contaminated water by Mammal, large, Peak Concentrations
A2: Short Title | B2: Peak Concentrations | E2: WatAlloV6
A3: Receptor | B3: Mammal, large
A4: Duration | B4: Acute | E4: Scenario parameter
A5: Parameter/Assumption | B5: Code / Range | C5: Equation/ Value | D5: Units | E5: Reference/Designation
A6: Concentration in water | B6: ConcWat
B7: Central | C7: =B04a!Acute_C -> 0.4 | D7: mg/L | E7: ='B04a'!Acute_C
B8: Lower | C8: =B04a!Acute_L -> 0.4 | E8: ='B04a'!Acute_L
B9: Upper | C9: =B04a!Acute_U -> 0.4 | E9: ='B04a'!Acute_U
A10: Receptor
A11: Body weight | B11: BW | C11: =A02b!$C$61 -> 70 | D11: kg | E11: Default
A12: Allometric coefficients forwater consumption per day in liters and BW in kilograms
B13: alpha | C13: =A02b!$C$64 -> 0.099 | E13: U.S. EPA/ORD 1993
B14: beta | C14: =A02b!$C$65 -> 0.9 | E14: U.S. EPA/ORD 1993
A15: Amount of water consumed per day | C15: Amnt = alpha BW beta
B16: Amnt | C16: =C13*(C11^C14) -> 4.531306412 | D16: liters | E16: Eq
A17: Absorbed Dose | B17: Dose | C17: ConcWat × Amnt ÷ BW
B18: Central | C18: =C7*C$16/C$11 -> 0.02589317949 | D18: mg/kg | E18: Eq
B19: Lower | C19: =C8*C$16/C$11 -> 0.02589317949 | D19: mg/kg | E19: Eq
B20: Upper | C20: =C9*C$16/C$11 -> 0.02589317949 | D20: mg/kg | E20: Eq

Sheet F08e
A1: Consumption of contaminated water by Bird, small, Peak Concentrations
A2: Short Title | B2: Peak Concentrations | E2: WatAlloV6
A3: Receptor | B3: Bird, small
A4: Duration | B4: Acute | E4: Scenario parameter
A5: Parameter/Assumption | B5: Code / Range | C5: Equation/ Value | D5: Units | E5: Reference/Designation
A6: Concentration in water | B6: ConcWat
B7: Central | C7: =B04a!Acute_C -> 0.4 | D7: mg/L | E7: ='B04a'!Acute_C
B8: Lower | C8: =B04a!Acute_L -> 0.4 | E8: ='B04a'!Acute_L
B9: Upper | C9: =B04a!Acute_U -> 0.4 | E9: ='B04a'!Acute_U
A10: Receptor
A11: Body weight | B11: BW | C11: =A02b!$C$31 -> 0.01 | D11: kg | E11: Default
A12: Allometric coefficients forwater consumption per day in liters and BW in kilograms
B13: alpha | C13: =A02b!$C$34 -> 0.059 | E13: U.S. EPA/ORD 1993
B14: beta | C14: =A02b!$C$35 -> 0.67 | E14: U.S. EPA/ORD 1993
A15: Amount of water consumed per day | C15: Amnt = alpha BW beta
B16: Amnt | C16: =C13*(C11^C14) -> 0.002696820319 | D16: liters | E16: Eq
A17: Absorbed Dose | B17: Dose | C17: ConcWat × Amnt ÷ BW
B18: Central | C18: =C7*C$16/C$11 -> 0.1078728127 | D18: mg/kg | E18: Eq
B19: Lower | C19: =C8*C$16/C$11 -> 0.1078728127 | D19: mg/kg | E19: Eq
B20: Upper | C20: =C9*C$16/C$11 -> 0.1078728127 | D20: mg/kg | E20: Eq

Sheet F08f
A1: Consumption of contaminated water by Bird, large, Peak Concentrations
A2: Short Title | B2: Peak Concentrations | E2: WatAlloV6
A3: Receptor | B3: Bird, large
A4: Duration | B4: Acute | E4: Scenario parameter
A5: Parameter/Assumption | B5: Code / Range | C5: Equation/ Value | D5: Units | E5: Reference/Designation
A6: Concentration in water | B6: ConcWat
B7: Central | C7: =B04a!Acute_C -> 0.4 | D7: mg/L | E7: ='B04a'!Acute_C
B8: Lower | C8: =B04a!Acute_L -> 0.4 | E8: ='B04a'!Acute_L
B9: Upper | C9: =B04a!Acute_U -> 0.4 | E9: ='B04a'!Acute_U
A10: Receptor
A11: Body weight | B11: BW | C11: =A02b!$C$15 -> 4 | D11: kg | E11: Default
A12: Allometric coefficients forwater consumption per day in liters and BW in kilograms
B13: alpha | C13: =A02b!$C$18 -> 0.059 | E13: U.S. EPA/ORD 1993
B14: beta | C14: =A02b!$C$19 -> 0.67 | E14: U.S. EPA/ORD 1993
A15: Amount of water consumed per day | C15: Amnt = alpha BW beta
B16: Amnt | C16: =C13*(C11^C14) -> 0.1493592781 | D16: liters | E16: Eq
A17: Absorbed Dose | B17: Dose | C17: ConcWat × Amnt ÷ BW
B18: Central | C18: =C7*C$16/C$11 -> 0.01493592781 | D18: mg/kg | E18: Eq
B19: Lower | C19: =C8*C$16/C$11 -> 0.01493592781 | D19: mg/kg | E19: Eq
B20: Upper | C20: =C9*C$16/C$11 -> 0.01493592781 | D20: mg/kg | E20: Eq

Sheet F11a
A1: Acute scenario for the consumption of Contaminated Fish (Peak) by Mammal, large carnivorous
A2: Short Title | B2: Fish consumption, accidental spill | E2: FishKcalV6
A3: Predator | B3: Mammal, large carnivorous
A4: Food Item (Prey) | B4: Fish
A5: Duration | B5: Acute | E5: Scenario parameter
A6: Parameter/Assumption | B6: Code / Range | C6: Equation/ Value | D6: Units | E6: Reference/Designation
A7: Water
A8: Concentration in water | B8: ConcWat
B9: Central | C9: =B04a!Acute_C -> 0.4 | D9: mg/L | E9: ='B04a'!Acute_C
B10: Lower | C10: =B04a!Acute_L -> 0.4 | E10: ='B04a'!Acute_L
B11: Upper | C11: =B04a!Acute_U -> 0.4 | E11: ='B04a'!Acute_U
A12: Fish
A13: Bioconcentration factor | B13: BCF
B14: Central | C14: ='B01'!$C$6 -> 22.4 | D14: L/kg | E14: EPA 2012
B15: Lower | C15: ='B01'!$C$6 -> 22.4 | E15: EPA 2012
B16: Upper | C16: ='B01'!$C$6 -> 22.4 | E16: EPA 2012
A17: Concentration in fish | B17: ConcFish | C17: ConcWat × BCF
B18: Central | C18: =C9*C14 -> 8.96 | D18: mg/kg | E18: Eq
B19: Lower | C19: =C10*C15 -> 8.96 | E19: Eq
B20: Upper | C20: =C11*C16 -> 8.96 | E20: Eq
A21: Receptor
A22: Body weight | B22: BW | C22: =A02b!$C$52 -> 70 | D22: kg | E22: Reid 2006
A23: Allometric coefficients for caloric requirement per day in kilocalories and BW in grams
B24: alpha | C24: =A02b!$C$53 -> 0.6167 | E24: U.S. EPA/ORD 1993
B25: beta | C25: =A02b!$C$54 -> 0.862 | E25: U.S. EPA/ORD 1993
A26: Caloric requirement per day | B26: KR | C26: =C24*(C22*1000)^C25 -> 9258.666883 | D26: kcal/day | E26: Eq
A27: Caloric content of commodity (dry weight) | B27: KCD | C27: ='A03'!$E$59 -> 4.47 | D27: kcal/gdw [Note 1] | E27: U.S. EPA/ORD 1993
A28: Food consumed per day (dry weight) | B28: AmntDry | C28: = KR ÷ KCD
C29: =C26/C27 -> 2071.29013 | D29: gdry/day | E29: Eq
A30: Water content of vegetation as a proportion | B30: PropWater | C30: ='A03'!$E$60 -> 0.7 | D30: gwater/gfood | E30: Ali et al. 2005
A31: Dry weight content of vegetation as a proportion | B31: PropDry | C31: = 1-PropWater
C32: =1-C30 -> 0.3 | D32: gdry/gfood | E32: Eq
A33: Amount of fish consumed per day, wet weight | B33: AmntFish | C33: = (AmntDry ÷ PropDry) ÷ (1000g/kg)
B34: Central | C34: =(C29/C32)/1000 -> 6.904300435 | D34: kgfood/day | E34: Eq
B35: Lower | C35: =C34*0.3 -> 2.07129013 | D35: Note 1 | E35: Eq
B36: Upper | C36: =C34*1.7 -> 11.73731074 | D36: Note 1 | E36: Eq
A37: Proportion of diet that is contaminated | B37: Prop
B38: Central | C38: 0.3 | D38: Unitless | E38: Scenario parameter
B39: Lower | C39: 0.1 | E39: Scenario parameter
B40: Upper | C40: 1 | E40: Scenario parameter
A41: Dose
A42: Toxic Equivalency Factor for formulation: (See risk assessment if this has a value other than 1.) | B42: TEF
B43: Central | C43: ='A01'!C$45 -> 1 | D43: Unitless | E43: Worksheet A01
B44: Lower | C44: ='A01'!C$46 -> 1 | D44: Note 2 | E44: Worksheet A01
B45: Upper | C45: ='A01'!C$47 -> 1 | D45: Note 2 | E45: Worksheet A01
A46: Dose | B46: Dose | C46: = ConcFish × AmntFish × Prop ÷ BW
B47: Central | C47: =C18*C34*C38/C$22 -> 0.2651251367 | D47: mg/kg | E47: Eq
B48: Lower | C48: =C19*C35*C39/C$22 -> 0.02651251367 | D48: mg/kg | E48: Eq
B49: Upper | C49: 1.502375775 | D49: mg/kg | E49: Eq
E50: FishKcalV6

Sheet F11b
A1: Acute scenario for the consumption of Contaminated Fish (Peak) by Mammal, carnivorous
A2: Short Title | B2: Fish consumption, accidental spill | E2: FishKcalV6
A3: Predator | B3: Mammal, carnivorous
A4: Food Item (Prey) | B4: Fish
A5: Duration | B5: Acute | E5: Scenario parameter
A6: Parameter/Assumption | B6: Code / Range | C6: Equation/ Value | D6: Units | E6: Reference/Designation
A7: Water
A8: Concentration in water | B8: ConcWat
B9: Central | C9: =B04a!Acute_C -> 0.4 | D9: mg/L | E9: ='B04a'!Acute_C
B10: Lower | C10: =B04a!Acute_L -> 0.4 | E10: ='B04a'!Acute_L
B11: Upper | C11: =B04a!Acute_U -> 0.4 | E11: ='B04a'!Acute_U
A12: Fish
A13: Bioconcentration factor | B13: BCF
B14: Central | C14: ='B01'!$C$6 -> 22.4 | D14: L/kg | E14: EPA 2012
B15: Lower | C15: ='B01'!$C$6 -> 22.4 | E15: EPA 2012
B16: Upper | C16: ='B01'!$C$6 -> 22.4 | E16: EPA 2012
A17: Concentration in fish | B17: ConcFish | C17: ConcWat × BCF
B18: Central | C18: =C9*C14 -> 8.96 | D18: mg/kg | E18: Eq
B19: Lower | C19: =C10*C15 -> 8.96 | E19: Eq
B20: Upper | C20: =C11*C16 -> 8.96 | E20: Eq
A21: Receptor
A22: Body weight | B22: BW | C22: =A02b!$C$47 -> 5 | D22: kg | E22: U.S. EPA/ORD 1993
A23: Allometric coefficients for caloric requirement per day in kilocalories and BW in grams
B24: alpha | C24: =A02b!$C$48 -> 0.6167 | E24: U.S. EPA/ORD 1993
B25: beta | C25: =A02b!$C$49 -> 0.862 | E25: U.S. EPA/ORD 1993
A26: Caloric requirement per day | B26: KR | C26: =C24*(C22*1000)^C25 -> 951.8885266 | D26: kcal/day | E26: Eq
A27: Caloric content of commodity (dry weight) | B27: KCD | C27: ='A03'!$E$59 -> 4.47 | D27: kcal/gdw [Note 1] | E27: U.S. EPA/ORD 1993
A28: Food consumed per day (dry weight) | B28: AmntDry | C28: = KR ÷ KCD
C29: =C26/C27 -> 212.9504534 | D29: gdry/day | E29: Eq
A30: Water content of vegetation as a proportion | B30: PropWater | C30: ='A03'!$E$60 -> 0.7 | D30: gwater/gfood | E30: Ali et al. 2005
A31: Dry weight content of vegetation as a proportion | B31: PropDry | C31: = 1-PropWater
C32: =1-C30 -> 0.3 | D32: gdry/gfood | E32: Eq
A33: Amount of fish consumed per day, wet weight | B33: AmntFish | C33: = (AmntDry ÷ PropDry) ÷ (1000g/kg)
B34: Central | C34: =(C29/C32)/1000 -> 0.7098348446 | D34: kgfood/day | E34: Eq
B35: Lower | C35: =C34*0.3 -> 0.2129504534 | D35: Note 1 | E35: Eq
B36: Upper | C36: =C34*1.7 -> 1.206719236 | D36: Note 1 | E36: Eq
A37: Proportion of diet that is contaminated | B37: Prop
B38: Central | C38: 0.3 | D38: Unitless | E38: Scenario parameter
B39: Lower | C39: 0.1 | E39: Scenario parameter
B40: Upper | C40: 1 | E40: Scenario parameter
A41: Dose
A42: Toxic Equivalency Factor for formulation: (See risk assessment if this has a value other than 1.) | B42: TEF
B43: Central | C43: ='A01'!C$45 -> 1 | D43: Unitless | E43: Worksheet A01
B44: Lower | C44: ='A01'!C$46 -> 1 | D44: Note 2 | E44: Worksheet A01
B45: Upper | C45: ='A01'!C$47 -> 1 | D45: Note 2 | E45: Worksheet A01
A46: Dose | B46: Dose | C46: = ConcFish × AmntFish × Prop ÷ BW
B47: Central | C47: =C18*C34*C38/C$22 -> 0.3816072124 | D47: mg/kg | E47: Eq
B48: Lower | C48: =C19*C35*C39/C$22 -> 0.03816072124 | D48: mg/kg | E48: Eq
B49: Upper | C49: 2.162440871 | D49: mg/kg | E49: Eq
E50: FishKcalV6

Sheet F11c
A1: Acute scenario for the consumption of Contaminated Fish (Peak) by Bird, piscivorous
A2: Short Title | B2: Fish consumption, accidental spill | E2: FishKcalV6
A3: Predator | B3: Bird, piscivorous
A4: Food Item (Prey) | B4: Fish
A5: Duration | B5: Acute | E5: Scenario parameter
A6: Parameter/Assumption | B6: Code / Range | C6: Equation/ Value | D6: Units | E6: Reference/Designation
A7: Water
A8: Concentration in water | B8: ConcWat
B9: Central | C9: =B04a!Acute_C -> 0.4 | D9: mg/L | E9: ='B04a'!Acute_C
B10: Lower | C10: =B04a!Acute_L -> 0.4 | E10: ='B04a'!Acute_L
B11: Upper | C11: =B04a!Acute_U -> 0.4 | E11: ='B04a'!Acute_U
A12: Fish
A13: Bioconcentration factor | B13: BCF
B14: Central | C14: ='B01'!$C$6 -> 22.4 | D14: L/kg | E14: EPA 2012
B15: Lower | C15: ='B01'!$C$6 -> 22.4 | E15: EPA 2012
B16: Upper | C16: ='B01'!$C$6 -> 22.4 | E16: EPA 2012
A17: Concentration in fish | B17: ConcFish | C17: ConcWat × BCF
B18: Central | C18: =C9*C14 -> 8.96 | D18: mg/kg | E18: Eq
B19: Lower | C19: =C10*C15 -> 8.96 | E19: Eq
B20: Upper | C20: =C11*C16 -> 8.96 | E20: Eq
A21: Receptor
A22: Body weight | B22: BW | C22: =A02b!$C$24 -> 2.4 | D22: kg | E22: Sibley 2000
A23: Allometric coefficients for caloric requirement per day in kilocalories and BW in grams
B24: alpha | C24: =A02b!$C$27 -> 1.916 | E24: U.S. EPA/ORD 1993
B25: beta | C25: =A02b!$C$28 -> 0.704 | E25: U.S. EPA/ORD 1993
A26: Caloric requirement per day | B26: KR | C26: =C24*(C22*1000)^C25 -> 459.2659192 | D26: kcal/day | E26: Eq
A27: Caloric content of commodity (dry weight) | B27: KCD | C27: ='A03'!$E$36 -> 3.87 | D27: kcal/gdw [Note 1] | E27: U.S. EPA/ORD 1993
A28: Food consumed per day (dry weight) | B28: AmntDry | C28: = KR ÷ KCD
C29: =C26/C27 -> 118.6733641 | D29: gdry/day | E29: Eq
A30: Water content of vegetation as a proportion | B30: PropWater | C30: ='A03'!$E$37 -> 0.7 | D30: gwater/gfood | E30: Ali et al. 2005
A31: Dry weight content of vegetation as a proportion | B31: PropDry | C31: = 1-PropWater
C32: =1-C30 -> 0.3 | D32: gdry/gfood | E32: Eq
A33: Amount of fish consumed per day, wet weight | B33: AmntFish | C33: = (AmntDry ÷ PropDry) ÷ (1000g/kg)
B34: Central | C34: =(C29/C32)/1000 -> 0.3955778805 | D34: kgfood/day | E34: Eq
B35: Lower | C35: =C34*0.3 -> 0.1186733641 | D35: Note 1 | E35: Eq
B36: Upper | C36: =C34*1.7 -> 0.6724823968 | D36: Note 1 | E36: Eq
A37: Proportion of diet that is contaminated | B37: Prop
B38: Central | C38: 0.3 | D38: Unitless | E38: Scenario parameter
B39: Lower | C39: 0.1 | E39: Scenario parameter
B40: Upper | C40: 1 | E40: Scenario parameter
A41: Dose
A42: Toxic Equivalency Factor for formulation: (See risk assessment if this has a value other than 1.) | B42: TEF
B43: Central | C43: ='A01'!C$45 -> 1 | D43: Unitless | E43: Worksheet A01
B44: Lower | C44: ='A01'!C$46 -> 1 | D44: Note 2 | E44: Worksheet A01
B45: Upper | C45: ='A01'!C$47 -> 1 | D45: Note 2 | E45: Worksheet A01
A46: Dose | B46: Dose | C46: = ConcFish × AmntFish × Prop ÷ BW
B47: Central | C47: =C18*C34*C38/C$22 -> 0.4430472261 | D47: mg/kg | E47: Eq
B48: Lower | C48: =C19*C35*C39/C$22 -> 0.04430472261 | D48: mg/kg | E48: Eq
B49: Upper | C49: 2.510600948 | D49: mg/kg | E49: Eq
E50: FishKcalV6

Sheet F16a
A1: Consumption of contaminated water by Mammal, small, Longer-term Concentrations
A2: Short Title | B2: Longer-term Concentrations | E2: WatAlloV6
A3: Receptor | B3: Mammal, small
A4: Duration | B4: Chronic | E4: Scenario parameter
A5: Parameter/Assumption | B5: Code / Range | C5: Equation/ Value | D5: Units | E5: Reference/Designation
A6: Concentration in water | B6: ConcWat
B7: Central | C7: =B04a!Chronic_C -> 0.0006155498841 | D7: mg/L | E7: ='B04a'!Chronic_C
B8: Lower | C8: =B04a!Chronic_L -> 8.335571347e-05 | E8: ='B04a'!Chronic_L
B9: Upper | C9: =B04a!Chronic_U -> 0.02693029789 | E9: ='B04a'!Chronic_U
A10: Receptor
A11: Body weight | B11: BW | C11: =A02b!$C$71 -> 0.02 | D11: kg | E11: Default
A12: Allometric coefficients forwater consumption per day in liters and BW in kilograms
B13: alpha | C13: =A02b!$C$79 -> 0.099 | E13: U.S. EPA/ORD 1993
B14: beta | C14: =A02b!$C$80 -> 0.9 | E14: U.S. EPA/ORD 1993
A15: Amount of water consumed per day | C15: Amnt = alpha BW beta
B16: Amnt | C16: =C13*(C11^C14) -> 0.002927940121 | D16: liters | E16: Eq
A17: Absorbed Dose | B17: Dose | C17: ConcWat × Amnt ÷ BW
B18: Central | C18: =C7*C$16/C$11 -> 9.011466009e-05 | D18: mg/kg | E18: Eq
B19: Lower | C19: =C8*C$16/C$11 -> 1.220302689e-05 | D19: mg/kg | E19: Eq
B20: Upper | C20: =C9*C$16/C$11 -> 0.003942514982 | D20: mg/kg | E20: Eq

Sheet F16b
A1: Consumption of contaminated water by Mammal, 400 g, Longer-term Concentrations
A2: Short Title | B2: Longer-term Concentrations | E2: WatAlloV6
A3: Receptor | B3: Mammal, 400 g
A4: Duration | B4: Chronic | E4: Scenario parameter
A5: Parameter/Assumption | B5: Code / Range | C5: Equation/ Value | D5: Units | E5: Reference/Designation
A6: Concentration in water | B6: ConcWat
B7: Central | C7: =B04a!Chronic_C -> 0.0006155498841 | D7: mg/L | E7: ='B04a'!Chronic_C
B8: Lower | C8: =B04a!Chronic_L -> 8.335571347e-05 | E8: ='B04a'!Chronic_L
B9: Upper | C9: =B04a!Chronic_U -> 0.02693029789 | E9: ='B04a'!Chronic_U
A10: Receptor
A11: Body weight | B11: BW | C11: =A02b!$C$40 -> 0.4 | D11: kg | E11: Default
A12: Allometric coefficients forwater consumption per day in liters and BW in kilograms
B13: alpha | C13: =A02b!$C$45 -> 0.099 | E13: U.S. EPA/ORD 1993
B14: beta | C14: =A02b!$C$46 -> 0.9 | E14: U.S. EPA/ORD 1993
A15: Amount of water consumed per day | C15: Amnt = alpha BW beta
B16: Amnt | C16: =C13*(C11^C14) -> 0.04339994576 | D16: liters | E16: Eq
A17: Absorbed Dose | B17: Dose | C17: ConcWat × Amnt ÷ BW
B18: Central | C18: =C7*C$16/C$11 -> 6.678707897e-05 | D18: mg/kg | E18: Eq
B19: Lower | C19: =C8*C$16/C$11 -> 9.04408361e-06 | D19: mg/kg | E19: Eq
B20: Upper | C20: =C9*C$16/C$11 -> 0.00292193367 | D20: mg/kg | E20: Eq

Sheet F16c
A1: Consumption of contaminated water by Mammal, carnivorous, Longer-term Concentrations
A2: Short Title | B2: Longer-term Concentrations | E2: WatAlloV6
A3: Receptor | B3: Mammal, carnivorous
A4: Duration | B4: Chronic | E4: Scenario parameter
A5: Parameter/Assumption | B5: Code / Range | C5: Equation/ Value | D5: Units | E5: Reference/Designation
A6: Concentration in water | B6: ConcWat
B7: Central | C7: =B04a!Chronic_C -> 0.0006155498841 | D7: mg/L | E7: ='B04a'!Chronic_C
B8: Lower | C8: =B04a!Chronic_L -> 8.335571347e-05 | E8: ='B04a'!Chronic_L
B9: Upper | C9: =B04a!Chronic_U -> 0.02693029789 | E9: ='B04a'!Chronic_U
A10: Receptor
A11: Body weight | B11: BW | C11: =A02b!$C$47 -> 5 | D11: kg | E11: U.S. EPA/ORD 1993
A12: Allometric coefficients forwater consumption per day in liters and BW in kilograms
B13: alpha | C13: =A02b!$C$50 -> 0.099 | E13: U.S. EPA/ORD 1993
B14: beta | C14: =A02b!$C$51 -> 0.9 | E14: U.S. EPA/ORD 1993
A15: Amount of water consumed per day | C15: Amnt = alpha BW beta
B16: Amnt | C16: =C13*(C11^C14) -> 0.4214132616 | D16: liters | E16: Eq
A17: Absorbed Dose | B17: Dose | C17: ConcWat × Amnt ÷ BW
B18: Central | C18: =C7*C$16/C$11 -> 5.188017687e-05 | D18: mg/kg | E18: Eq
B19: Lower | C19: =C8*C$16/C$11 -> 7.025440618e-06 | D19: mg/kg | E19: Eq
B20: Upper | C20: =C9*C$16/C$11 -> 0.002269756934 | D20: mg/kg | E20: Eq

Sheet F16d
A1: Consumption of contaminated water by Mammal, large, Longer-term Concentrations
A2: Short Title | B2: Longer-term Concentrations | E2: WatAlloV6
A3: Receptor | B3: Mammal, large
A4: Duration | B4: Chronic | E4: Scenario parameter
A5: Parameter/Assumption | B5: Code / Range | C5: Equation/ Value | D5: Units | E5: Reference/Designation
A6: Concentration in water | B6: ConcWat
B7: Central | C7: =B04a!Chronic_C -> 0.0006155498841 | D7: mg/L | E7: ='B04a'!Chronic_C
B8: Lower | C8: =B04a!Chronic_L -> 8.335571347e-05 | E8: ='B04a'!Chronic_L
B9: Upper | C9: =B04a!Chronic_U -> 0.02693029789 | E9: ='B04a'!Chronic_U
A10: Receptor
A11: Body weight | B11: BW | C11: =A02b!$C$61 -> 70 | D11: kg | E11: Default
A12: Allometric coefficients forwater consumption per day in liters and BW in kilograms
B13: alpha | C13: =A02b!$C$64 -> 0.099 | E13: U.S. EPA/ORD 1993
B14: beta | C14: =A02b!$C$65 -> 0.9 | E14: U.S. EPA/ORD 1993
A15: Amount of water consumed per day | C15: Amnt = alpha BW beta
B16: Amnt | C16: =C13*(C11^C14) -> 4.531306412 | D16: liters | E16: Eq
A17: Absorbed Dose | B17: Dose | C17: ConcWat × Amnt ÷ BW
B18: Central | C18: =C7*C$16/C$11 -> 3.984635909e-05 | D18: mg/kg | E18: Eq
B19: Lower | C19: =C8*C$16/C$11 -> 5.395861127e-06 | D19: mg/kg | E19: Eq
B20: Upper | C20: =C9*C$16/C$11 -> 0.001743277593 | D20: mg/kg | E20: Eq

Sheet F16e
A1: Consumption of contaminated water by Bird, small, Longer-term Concentrations
A2: Short Title | B2: Longer-term Concentrations | E2: WatAlloV6
A3: Receptor | B3: Bird, small
A4: Duration | B4: Chronic | E4: Scenario parameter
A5: Parameter/Assumption | B5: Code / Range | C5: Equation/ Value | D5: Units | E5: Reference/Designation
A6: Concentration in water | B6: ConcWat
B7: Central | C7: =B04a!Chronic_C -> 0.0006155498841 | D7: mg/L | E7: ='B04a'!Chronic_C
B8: Lower | C8: =B04a!Chronic_L -> 8.335571347e-05 | E8: ='B04a'!Chronic_L
B9: Upper | C9: =B04a!Chronic_U -> 0.02693029789 | E9: ='B04a'!Chronic_U
A10: Receptor
A11: Body weight | B11: BW | C11: =A02b!$C$31 -> 0.01 | D11: kg | E11: Default
A12: Allometric coefficients forwater consumption per day in liters and BW in kilograms
B13: alpha | C13: =A02b!$C$34 -> 0.059 | E13: U.S. EPA/ORD 1993
B14: beta | C14: =A02b!$C$35 -> 0.67 | E14: U.S. EPA/ORD 1993
A15: Amount of water consumed per day | C15: Amnt = alpha BW beta
B16: Amnt | C16: =C13*(C11^C14) -> 0.002696820319 | D16: liters | E16: Eq
A17: Absorbed Dose | B17: Dose | C17: ConcWat × Amnt ÷ BW
B18: Central | C18: =C7*C$16/C$11 -> 0.0001660027435 | D18: mg/kg | E18: Eq
B19: Lower | C19: =C8*C$16/C$11 -> 2.247953818e-05 | D19: mg/kg | E19: Eq
B20: Upper | C20: =C9*C$16/C$11 -> 0.007262617454 | D20: mg/kg | E20: Eq

Sheet F16f
A1: Consumption of contaminated water by Bird, large, Longer-term Concentrations
A2: Short Title | B2: Longer-term Concentrations | E2: WatAlloV6
A3: Receptor | B3: Bird, large
A4: Duration | B4: Chronic | E4: Scenario parameter
A5: Parameter/Assumption | B5: Code / Range | C5: Equation/ Value | D5: Units | E5: Reference/Designation
A6: Concentration in water | B6: ConcWat
B7: Central | C7: =B04a!Chronic_C -> 0.0006155498841 | D7: mg/L | E7: ='B04a'!Chronic_C
B8: Lower | C8: =B04a!Chronic_L -> 8.335571347e-05 | E8: ='B04a'!Chronic_L
B9: Upper | C9: =B04a!Chronic_U -> 0.02693029789 | E9: ='B04a'!Chronic_U
A10: Receptor
A11: Body weight | B11: BW | C11: =A02b!$C$15 -> 4 | D11: kg | E11: Default
A12: Allometric coefficients forwater consumption per day in liters and BW in kilograms
B13: alpha | C13: =A02b!$C$18 -> 0.059 | E13: U.S. EPA/ORD 1993
B14: beta | C14: =A02b!$C$19 -> 0.67 | E14: U.S. EPA/ORD 1993
A15: Amount of water consumed per day | C15: Amnt = alpha BW beta
B16: Amnt | C16: =C13*(C11^C14) -> 0.1493592781 | D16: liters | E16: Eq
A17: Absorbed Dose | B17: Dose | C17: ConcWat × Amnt ÷ BW
B18: Central | C18: =C7*C$16/C$11 -> 2.298452158e-05 | D18: mg/kg | E18: Eq
B19: Lower | C19: =C8*C$16/C$11 -> 3.112487297e-06 | D19: mg/kg | E19: Eq
B20: Upper | C20: =C9*C$16/C$11 -> 0.001005572463 | D20: mg/kg | E20: Eq

Sheet F17a
A1: Chronic scenario for the consumption of Contaminated Fish (Longer-term) by Mammal, large carnivorous
A2: Short Title | B2: Fish consumption, accidental spill | E2: FishKcalV6
A3: Predator | B3: Mammal, large carnivorous
A4: Food Item (Prey) | B4: Fish
A5: Duration | B5: Chronic | E5: Scenario parameter
A6: Parameter/Assumption | B6: Code / Range | C6: Equation/ Value | D6: Units | E6: Reference/Designation
A7: Water
A8: Concentration in water | B8: ConcWat
B9: Central | C9: =B04a!Chronic_C -> 0.0006155498841 | D9: mg/L | E9: ='B04a'!Chronic_C
B10: Lower | C10: =B04a!Chronic_L -> 8.335571347e-05 | E10: ='B04a'!Chronic_L
B11: Upper | C11: =B04a!Chronic_U -> 0.02693029789 | E11: ='B04a'!Chronic_U
A12: Fish
A13: Bioconcentration factor | B13: BCF
B14: Central | C14: ='B01'!$C$6 -> 22.4 | D14: L/kg | E14: EPA 2012
B15: Lower | C15: ='B01'!$C$6 -> 22.4 | E15: EPA 2012
B16: Upper | C16: ='B01'!$C$6 -> 22.4 | E16: EPA 2012
A17: Concentration in fish | B17: ConcFish | C17: ConcWat × BCF
B18: Central | C18: =C9*C14 -> 0.0137883174 | D18: mg/kg | E18: Eq
B19: Lower | C19: =C10*C15 -> 0.001867167982 | E19: Eq
B20: Upper | C20: =C11*C16 -> 0.6032386727 | E20: Eq
A21: Receptor
A22: Body weight | B22: BW | C22: =A02b!$C$52 -> 70 | D22: kg | E22: Reid 2006
A23: Allometric coefficients for caloric requirement per day in kilocalories and BW in grams
B24: alpha | C24: =A02b!$C$53 -> 0.6167 | E24: U.S. EPA/ORD 1993
B25: beta | C25: =A02b!$C$54 -> 0.862 | E25: U.S. EPA/ORD 1993
A26: Caloric requirement per day | B26: KR | C26: =C24*(C22*1000)^C25 -> 9258.666883 | D26: kcal/day | E26: Eq
A27: Caloric content of commodity (dry weight) | B27: KCD | C27: ='A03'!$E$59 -> 4.47 | D27: kcal/gdw [Note 1] | E27: U.S. EPA/ORD 1993
A28: Food consumed per day (dry weight) | B28: AmntDry | C28: = KR ÷ KCD
C29: =C26/C27 -> 2071.29013 | D29: gdry/day | E29: Eq
A30: Water content of vegetation as a proportion | B30: PropWater | C30: ='A03'!$E$60 -> 0.7 | D30: gwater/gfood | E30: Ali et al. 2005
A31: Dry weight content of vegetation as a proportion | B31: PropDry | C31: = 1-PropWater
C32: =1-C30 -> 0.3 | D32: gdry/gfood | E32: Eq
A33: Amount of fish consumed per day, wet weight | B33: AmntFish | C33: = (AmntDry ÷ PropDry) ÷ (1000g/kg)
B34: Central | C34: =(C29/C32)/1000 -> 6.904300435 | D34: kgfood/day | E34: Eq
B35: Lower | C35: =C34*0.3 -> 2.07129013 | D35: Note 1 | E35: Eq
B36: Upper | C36: =C34*1.7 -> 11.73731074 | D36: Note 1 | E36: Eq
A37: Proportion of diet that is contaminated | B37: Prop
B38: Central | C38: 0.3 | D38: Unitless | E38: Scenario parameter
B39: Lower | C39: 0.1 | E39: Scenario parameter
B40: Upper | C40: 1 | E40: Scenario parameter
A41: Dose
A42: Toxic Equivalency Factor for formulation: (See risk assessment if this has a value other than 1.) | B42: TEF
B43: Central | C43: ='A01'!C$45 -> 1 | D43: Unitless | E43: Worksheet A01
B44: Lower | C44: ='A01'!C$46 -> 1 | D44: Note 2 | E44: Worksheet A01
B45: Upper | C45: ='A01'!C$47 -> 1 | D45: Note 2 | E45: Worksheet A01
A46: Dose | B46: Dose | C46: = ConcFish × AmntFish × Prop ÷ BW
B47: Central | C47: =C18*C34*C38/C$22 -> 0.0004079943679 | D47: mg/kg | E47: Eq
B48: Lower | C48: =C19*C35*C39/C$22 -> 5.524923732e-06 | D48: mg/kg | E48: Eq
B49: Upper | C49: 0.1011485679 | D49: mg/kg | E49: Eq
E50: FishKcalV6

Sheet F17b
A1: Chronic scenario for the consumption of Contaminated Fish (Longer-term) by Mammal, carnivorous
A2: Short Title | B2: Fish consumption, accidental spill | E2: FishKcalV6
A3: Predator | B3: Mammal, carnivorous
A4: Food Item (Prey) | B4: Fish
A5: Duration | B5: Chronic | E5: Scenario parameter
A6: Parameter/Assumption | B6: Code / Range | C6: Equation/ Value | D6: Units | E6: Reference/Designation
A7: Water
A8: Concentration in water | B8: ConcWat
B9: Central | C9: =B04a!Chronic_C -> 0.0006155498841 | D9: mg/L | E9: ='B04a'!Chronic_C
B10: Lower | C10: =B04a!Chronic_L -> 8.335571347e-05 | E10: ='B04a'!Chronic_L
B11: Upper | C11: =B04a!Chronic_U -> 0.02693029789 | E11: ='B04a'!Chronic_U
A12: Fish
A13: Bioconcentration factor | B13: BCF
B14: Central | C14: ='B01'!$C$6 -> 22.4 | D14: L/kg | E14: EPA 2012
B15: Lower | C15: ='B01'!$C$6 -> 22.4 | E15: EPA 2012
B16: Upper | C16: ='B01'!$C$6 -> 22.4 | E16: EPA 2012
A17: Concentration in fish | B17: ConcFish | C17: ConcWat × BCF
B18: Central | C18: =C9*C14 -> 0.0137883174 | D18: mg/kg | E18: Eq
B19: Lower | C19: =C10*C15 -> 0.001867167982 | E19: Eq
B20: Upper | C20: =C11*C16 -> 0.6032386727 | E20: Eq
A21: Receptor
A22: Body weight | B22: BW | C22: =A02b!$C$47 -> 5 | D22: kg | E22: U.S. EPA/ORD 1993
A23: Allometric coefficients for caloric requirement per day in kilocalories and BW in grams
B24: alpha | C24: =A02b!$C$48 -> 0.6167 | E24: U.S. EPA/ORD 1993
B25: beta | C25: =A02b!$C$49 -> 0.862 | E25: U.S. EPA/ORD 1993
A26: Caloric requirement per day | B26: KR | C26: =C24*(C22*1000)^C25 -> 951.8885266 | D26: kcal/day | E26: Eq
A27: Caloric content of commodity (dry weight) | B27: KCD | C27: ='A03'!$E$59 -> 4.47 | D27: kcal/gdw [Note 1] | E27: U.S. EPA/ORD 1993
A28: Food consumed per day (dry weight) | B28: AmntDry | C28: = KR ÷ KCD
C29: =C26/C27 -> 212.9504534 | D29: gdry/day | E29: Eq
A30: Water content of vegetation as a proportion | B30: PropWater | C30: ='A03'!$E$60 -> 0.7 | D30: gwater/gfood | E30: Ali et al. 2005
A31: Dry weight content of vegetation as a proportion | B31: PropDry | C31: = 1-PropWater
C32: =1-C30 -> 0.3 | D32: gdry/gfood | E32: Eq
A33: Amount of fish consumed per day, wet weight | B33: AmntFish | C33: = (AmntDry ÷ PropDry) ÷ (1000g/kg)
B34: Central | C34: =(C29/C32)/1000 -> 0.7098348446 | D34: kgfood/day | E34: Eq
B35: Lower | C35: =C34*0.3 -> 0.2129504534 | D35: Note 1 | E35: Eq
B36: Upper | C36: =C34*1.7 -> 1.206719236 | D36: Note 1 | E36: Eq
A37: Proportion of diet that is contaminated | B37: Prop
B38: Central | C38: 0.3 | D38: Unitless | E38: Scenario parameter
B39: Lower | C39: 0.1 | E39: Scenario parameter
B40: Upper | C40: 1 | E40: Scenario parameter
A41: Dose
A42: Toxic Equivalency Factor for formulation: (See risk assessment if this has a value other than 1.) | B42: TEF
B43: Central | C43: ='A01'!C$45 -> 1 | D43: Unitless | E43: Worksheet A01
B44: Lower | C44: ='A01'!C$46 -> 1 | D44: Note 2 | E44: Worksheet A01
B45: Upper | C45: ='A01'!C$47 -> 1 | D45: Note 2 | E45: Worksheet A01
A46: Dose | B46: Dose | C46: = ConcFish × AmntFish × Prop ÷ BW
B47: Central | C47: =C18*C34*C38/C$22 -> 0.0005872456885 | D47: mg/kg | E47: Eq
B48: Lower | C48: =C19*C35*C39/C$22 -> 7.952285365e-06 | D48: mg/kg | E48: Eq
B49: Upper | C49: 0.145587942 | D49: mg/kg | E49: Eq
E50: FishKcalV6

Sheet F17c
A1: Chronic scenario for the consumption of Contaminated Fish (Longer-term) by Bird, piscivorous
A2: Short Title | B2: Fish consumption, accidental spill | E2: FishKcalV6
A3: Predator | B3: Bird, piscivorous
A4: Food Item (Prey) | B4: Fish
A5: Duration | B5: Chronic | E5: Scenario parameter
A6: Parameter/Assumption | B6: Code / Range | C6: Equation/ Value | D6: Units | E6: Reference/Designation
A7: Water
A8: Concentration in water | B8: ConcWat
B9: Central | C9: =B04a!Chronic_C -> 0.0006155498841 | D9: mg/L | E9: ='B04a'!Chronic_C
B10: Lower | C10: =B04a!Chronic_L -> 8.335571347e-05 | E10: ='B04a'!Chronic_L
B11: Upper | C11: =B04a!Chronic_U -> 0.02693029789 | E11: ='B04a'!Chronic_U
A12: Fish
A13: Bioconcentration factor | B13: BCF
B14: Central | C14: ='B01'!$C$6 -> 22.4 | D14: L/kg | E14: EPA 2012
B15: Lower | C15: ='B01'!$C$6 -> 22.4 | E15: EPA 2012
B16: Upper | C16: ='B01'!$C$6 -> 22.4 | E16: EPA 2012
A17: Concentration in fish | B17: ConcFish | C17: ConcWat × BCF
B18: Central | C18: =C9*C14 -> 0.0137883174 | D18: mg/kg | E18: Eq
B19: Lower | C19: =C10*C15 -> 0.001867167982 | E19: Eq
B20: Upper | C20: =C11*C16 -> 0.6032386727 | E20: Eq
A21: Receptor
A22: Body weight | B22: BW | C22: =A02b!$C$24 -> 2.4 | D22: kg | E22: Sibley 2000
A23: Allometric coefficients for caloric requirement per day in kilocalories and BW in grams
B24: alpha | C24: =A02b!$C$27 -> 1.916 | E24: U.S. EPA/ORD 1993
B25: beta | C25: =A02b!$C$28 -> 0.704 | E25: U.S. EPA/ORD 1993
A26: Caloric requirement per day | B26: KR | C26: =C24*(C22*1000)^C25 -> 459.2659192 | D26: kcal/day | E26: Eq
A27: Caloric content of commodity (dry weight) | B27: KCD | C27: ='A03'!$E$36 -> 3.87 | D27: kcal/gdw [Note 1] | E27: U.S. EPA/ORD 1993
A28: Food consumed per day (dry weight) | B28: AmntDry | C28: = KR ÷ KCD
C29: =C26/C27 -> 118.6733641 | D29: gdry/day | E29: Eq
A30: Water content of vegetation as a proportion | B30: PropWater | C30: ='A03'!$E$37 -> 0.7 | D30: gwater/gfood | E30: Ali et al. 2005
A31: Dry weight content of vegetation as a proportion | B31: PropDry | C31: = 1-PropWater
C32: =1-C30 -> 0.3 | D32: gdry/gfood | E32: Eq
A33: Amount of fish consumed per day, wet weight | B33: AmntFish | C33: = (AmntDry ÷ PropDry) ÷ (1000g/kg)
B34: Central | C34: =(C29/C32)/1000 -> 0.3955778805 | D34: kgfood/day | E34: Eq
B35: Lower | C35: =C34*0.3 -> 0.1186733641 | D35: Note 1 | E35: Eq
B36: Upper | C36: =C34*1.7 -> 0.6724823968 | D36: Note 1 | E36: Eq
A37: Proportion of diet that is contaminated | B37: Prop
B38: Central | C38: 0.3 | D38: Unitless | E38: Scenario parameter
B39: Lower | C39: 0.1 | E39: Scenario parameter
B40: Upper | C40: 1 | E40: Scenario parameter
A41: Dose
A42: Toxic Equivalency Factor for formulation: (See risk assessment if this has a value other than 1.) | B42: TEF
B43: Central | C43: ='A01'!C$45 -> 1 | D43: Unitless | E43: Worksheet A01
B44: Lower | C44: ='A01'!C$46 -> 1 | D44: Note 2 | E44: Worksheet A01
B45: Upper | C45: ='A01'!C$47 -> 1 | D45: Note 2 | E45: Worksheet A01
A46: Dose | B46: Dose | C46: = ConcFish × AmntFish × Prop ÷ BW
B47: Central | C47: =C18*C34*C38/C$22 -> 0.0006817941718 | D47: mg/kg | E47: Eq
B48: Lower | C48: =C19*C35*C39/C$22 -> 9.232629409e-06 | D48: mg/kg | E48: Eq
B49: Upper | C49: 0.1690280785 | D49: mg/kg | E49: Eq
E50: FishKcalV6

Sheet G01a
A1: Summary of Exposure Assessments for the Mammals | F1: G01V6Mam
A2: Application Rate: | B2: ='A01'!ApRt_C -> 0.4 | C2: ppm | F2: G01V6Mam
A3: Scenario | B3: Receptor | C3: mg/kg/day or mg/kg/event | F3: Detail Worksheet
C4: Central | D4: Lower | E4: Upper | K4: Lower | L4: Central | M4: Upper
A5: Accidental Acute Exposures
A6: Direct Spray | J6: SPRAY------------
A7: first-order absorption | B7: Small mammal (20g) | C7: No Exposure Assessment | J7: 1st-Order Abs | K7: =IF(D7>0, D7, "") ->  | L7: =IF(ISERROR(C7-K7), "", C7-K7) ->  | M7: =IF(ISERROR(E7-C7), "", E7-C7) ->  | N7: =E7-SUM(K7:M7) -> 0
A8: 100% absorption | B8: Small mammal (20g) | C8: No Exposure Assessment | J8: 100% Abs. | N8: =E8-SUM(K8:M8) -> 0
A9: Contaminated Water | J9: SPILL--------------
A10: Spill | B10: Small mammal (20g) | C10: =F02a!Dose_C -> 7.203464682 | D10: =F02a!Dose_L -> 1.440692936 | E10: =F02a!Dose_U -> 14.40692936 | F10: F02a | J10: Sm Mam | K10: =IF(D10>0, D10, "") -> 1.440692936 | L10: =IF(ISERROR(C10-K10), "", C10-K10) -> 5.762771745 | M10: =IF(ISERROR(E10-C10), "", E10-C10) -> 7.203464682 | N10: =E10-SUM(K10:M10) -> 0
A11: Spill | B11: Larger Mammal (400g) | C11: =F02b!Dose_C -> 5.338735828 | D11: =F02b!Dose_L -> 1.067747166 | E11: =F02b!Dose_U -> 10.67747166 | F11: F02b | J11: 400 g Mam | K11: 1.067747166 | L11: 4.270988663 | M11: 5.338735828 | N11: 0
A12: Spill | B12: Canid (5 kg) | C12: =F02c!Dose_C -> 4.147127908 | D12: =F02c!Dose_L -> 0.8294255816 | E12: =F02c!Dose_U -> 8.294255816 | F12: F02c | J12: Canid | K12: 0.8294255816 | L12: 3.317702326 | M12: 4.147127908 | N12: 0
A13: Spill | B13: Large Mammal (70 kg) | C13: =F02d!Dose_C -> 3.185184743 | D13: =F02d!Dose_L -> 0.6370369485 | E13: =F02d!Dose_U -> 6.370369485 | F13: F02d | J13: Lrg Mam | K13: 0.6370369485 | L13: 2.548147794 | M13: 3.185184743 | N13: 0
A14: Consumption of contaminated Fish | J14: FISH--------------
A15: Spill | B15: Large Mammalian Carnivore (70 kg) | C15: =F03a!Dose_C -> 32.61370588 | D15: =F03a!Dose_L -> 0.6522741175 | E15: =F03a!Dose_U -> 369.6219999 | F15: F03a | J15: Lrg Mam | K15: =IF(D15>0, D15, "") -> 0.6522741175 | L15: =IF(ISERROR(C15-K15), "", C15-K15) -> 31.96143176 | M15: =IF(ISERROR(E15-C15), "", E15-C15) -> 337.0082941 | N15: =E15-SUM(K15:M15) -> 0
A16: Spill | B16: Canid (5 kg) | C16: =F03b!Dose_C -> 46.94245722 | D16: =F03b!Dose_L -> 0.9388491444 | E16: =F03b!Dose_U -> 532.0145152 | F16: F03b | J16: Canid | K16: 0.9388491444 | L16: 46.00360808 | M16: 485.072058 | N16: 0
A17: Non-Accidental Acute Exposures
A18: Contaminated Fruit [Lowest Residue Rates] | J18: FRUIT-------------
B19: Small mammal (20g) | C19: No Exposure Assessment | J19: Sm Mam | K19: =IF(D19>0, D19, "") ->  | L19: =IF(ISERROR(C19-K19), "", C19-K19) ->  | M19: =IF(ISERROR(E19-C19), "", E19-C19) ->  | N19: =E19-SUM(K19:M19) -> 0
B20: Larger Mammal (400g) | C20: No Exposure Assessment | J20: 400g Mam | N20: 0
B21: Large Mammal (70 kg) | C21: No Exposure Assessment | J21: Lrg Mam | N21: 0
A22: Contaminated Broadleaf Foliage | J22: BROADLEAF-----
B23: Small mammal (20g) | C23: No Exposure Assessment | J23: Sm Mam | K23: =IF(D23>0, D23, "") ->  | L23: =IF(ISERROR(C23-K23), "", C23-K23) ->  | M23: =IF(ISERROR(E23-C23), "", E23-C23) ->  | N23: =E23-SUM(K23:M23) -> 0
B24: Larger Mammal (400g) | C24: No Exposure Assessment | J24: 400g Mam | N24: 0
B25: Large Mammal (70 kg) | C25: No Exposure Assessment | J25: Lrg Mam | N25: 0
A26: Contaminated Tall Grass | J26: TALL GRASS -----
B27: Small mammal (20g) | C27: No Exposure Assessment | J27: Sm Mam | K27: =IF(D27>0, D27, "") ->  | L27: =IF(ISERROR(C27-K27), "", C27-K27) ->  | M27: =IF(ISERROR(E27-C27), "", E27-C27) ->  | N27: =E27-SUM(K27:M27) -> 0
B28: Larger Mammal (400g) | C28: No Exposure Assessment | J28: 400g Mam | N28: 0
B29: Large Mammal (70 kg) | C29: No Exposure Assessment | J29: Lrg Mam | N29: 0
A30: Contaminated Short Grass [Highest Residue Rate] | J30: SHORT GRASS---
B31: Small mammal (20g) | C31: No Exposure Assessment | J31: Sm Mam | K31: =IF(D31>0, D31, "") ->  | L31: =IF(ISERROR(C31-K31), "", C31-K31) ->  | M31: =IF(ISERROR(E31-C31), "", E31-C31) ->  | N31: =E31-SUM(K31:M31) -> 0
B32: Larger Mammal (400g) | C32: No Exposure Assessment | J32: 400g Mam | N32: 0
B33: Large Mammal (70 kg) | C33: No Exposure Assessment | J33: Lrg Mam | N33: 0
A34: Contaminated Water | J34: WATER------------
B35: Small mammal (20g) | C35: =F08a!Dose_C -> 0.05855880241 | D35: =F08a!Dose_L -> 0.05855880241 | E35: =F08a!Dose_U -> 0.05855880241 | F35: F08a | J35: Sm Mam | K35: =IF(D35>0, D35, "") -> 0.05855880241 | L35: =IF(ISERROR(C35-K35), "", C35-K35) -> 0 | M35: =IF(ISERROR(E35-C35), "", E35-C35) -> 0 | N35: =E35-SUM(K35:M35) -> 0
B36: Larger Mammal (400g) | C36: =F08b!Dose_C -> 0.04339994576 | D36: =F08b!Dose_L -> 0.04339994576 | E36: =F08b!Dose_U -> 0.04339994576 | F36: F08b | J36: 400g Mam | K36: 0.04339994576 | L36: 0 | M36: 0 | N36: 0
B37: Canid (5 kg) | C37: =F08c!Dose_C -> 0.03371306093 | D37: =F08c!Dose_L -> 0.03371306093 | E37: =F08c!Dose_U -> 0.03371306093 | F37: F08c | J37: Canid | K37: 0.03371306093 | L37: 0 | M37: 0 | N37: 0
B38: Large Mammal (70 kg) | C38: =F08d!Dose_C -> 0.02589317949 | D38: =F08d!Dose_L -> 0.02589317949 | E38: =F08d!Dose_U -> 0.02589317949 | F38: F08d | J38: Lrg Mam | K38: 0.02589317949 | L38: 0 | M38: 0 | N38: 0
A39: Contaminated Insects | J39: INSECTS------------
B40: Small mammal (20g) | C40: No Exposure Assessment | J40: Sm Mam | K40: =IF(D40>0, D40, "") ->  | L40: =IF(ISERROR(C40-K40), "", C40-K40) ->  | M40: =IF(ISERROR(E40-C40), "", E40-C40) ->  | N40: =E40-SUM(K40:M40) -> 0
B41: Larger Mammal (400g) | C41: No Exposure Assessment | J41: Lrg Mam | N41: 0
A42: Consumption of small mammal (after direct spray) by predator | J42: SMALL MAMMAL-
B43: Canid (5 kg) | C43: No Exposure Assessment | J43: Canid | K43: =IF(D43>0, D43, "") ->  | L43: =IF(ISERROR(C43-K43), "", C43-K43) ->  | M43: =IF(ISERROR(E43-C43), "", E43-C43) ->  | N43: =E43-SUM(K43:M43) -> 0
A44: Consumption of contaminated Fish | J44: FISH----------------
B45: Large Mammalian Carnivore (70 kg) | C45: =F11a!Dose_C -> 0.2651251367 | D45: =F11a!Dose_L -> 0.02651251367 | E45: =F11a!Dose_U -> 1.502375775 | F45: F11a | J45: Lrg Mam | K45: =IF(D45>0, D45, "") -> 0.02651251367 | L45: =IF(ISERROR(C45-K45), "", C45-K45) -> 0.238612623 | M45: =IF(ISERROR(E45-C45), "", E45-C45) -> 1.237250638 | N45: =E45-SUM(K45:M45) -> 0
B46: Canid (5 kg) | C46: =F11b!Dose_C -> 0.3816072124 | D46: =F11b!Dose_L -> 0.03816072124 | E46: =F11b!Dose_U -> 2.162440871 | F46: F11b | J46: Canid | K46: 0.03816072124 | L46: 0.3434464912 | M46: 1.780833658 | N46: 0
A47: Chronic/Longer Term Exposures
A48: Contaminated Fruit [Lowest Residue Rates] | J48: FRUIT-------------
B49: Small mammal (20g) | C49: No Exposure Assessment | J49: Sm Mam | K49: =IF(D49>0, D49, "") ->  | L49: =IF(ISERROR(C49-K49), "", C49-K49) ->  | M49: =IF(ISERROR(E49-C49), "", E49-C49) ->  | N49: =E49-SUM(K49:M49) -> 0
B50: Larger Mammal (400g) | C50: No Exposure Assessment | J50: 400g Mam | N50: 0
B51: Large Mammal (70 kg) | C51: No Exposure Assessment | J51: Lrg Mam | N51: 0
A52: Contaminated Broadleaf Foliage | J52: BROADLEAF-----
B53: Small mammal (20g) | C53: No Exposure Assessment | J53: Sm Mam | K53: =IF(D53>0, D53, "") ->  | L53: =IF(ISERROR(C53-K53), "", C53-K53) ->  | M53: =IF(ISERROR(E53-C53), "", E53-C53) ->  | N53: =E53-SUM(K53:M53) -> 0
B54: Larger Mammal (400g) | C54: No Exposure Assessment | J54: 400g Mam | N54: 0
B55: Large Mammal (70 kg) | C55: No Exposure Assessment | J55: Lrg Mam | N55: 0
A56: Contaminated Tall Grass | J56: TALL GRASS -----
B57: Small mammal (20g) | C57: No Exposure Assessment | J57: Sm Mam | K57: =IF(D57>0, D57, "") ->  | L57: =IF(ISERROR(C57-K57), "", C57-K57) ->  | M57: =IF(ISERROR(E57-C57), "", E57-C57) ->  | N57: =E57-SUM(K57:M57) -> 0
B58: Larger Mammal (400g) | C58: No Exposure Assessment | J58: 400g Mam | N58: 0
B59: Large Mammal (70 kg) | C59: No Exposure Assessment | J59: Lrg Mam | N59: 0
A60: Contaminated Short Grass [Highest Residue Rate] | J60: SHORT GRASS---
B61: Small mammal (20g) | C61: No Exposure Assessment | J61: Sm Mam | K61: =IF(D61>0, D61, "") ->  | L61: =IF(ISERROR(C61-K61), "", C61-K61) ->  | M61: =IF(ISERROR(E61-C61), "", E61-C61) ->  | N61: =E61-SUM(K61:M61) -> 0
B62: Larger Mammal (400g) | C62: No Exposure Assessment | J62: 400g Mam | N62: 0
B63: Large Mammal (70 kg) | C63: No Exposure Assessment | J63: Lrg Mam | N63: 0
A64: Contaminated Water | J64: WATER------------
B65: Small mammal (20g) | C65: =F16a!Dose_C -> 9.011466009e-05 | D65: =F16a!Dose_L -> 1.220302689e-05 | E65: =F16a!Dose_U -> 0.003942514982 | F65: F16a | J65: Sm Mam | K65: =IF(D65>0, D65, "") -> 1.220302689e-05 | L65: =IF(ISERROR(C65-K65), "", C65-K65) -> 7.791163321e-05 | M65: =IF(ISERROR(E65-C65), "", E65-C65) -> 0.003852400322 | N65: =E65-SUM(K65:M65) -> 0
B66: Larger Mammal (400g) | C66: =F16b!Dose_C -> 6.678707897e-05 | D66: =F16b!Dose_L -> 9.04408361e-06 | E66: =F16b!Dose_U -> 0.00292193367 | F66: F16b | J66: 400g Mam | K66: 9.04408361e-06 | L66: 5.774299536e-05 | M66: 0.002855146591 | N66: 0
B67: Canid (5 kg) | C67: =F16c!Dose_C -> 5.188017687e-05 | D67: =F16c!Dose_L -> 7.025440618e-06 | E67: =F16c!Dose_U -> 0.002269756934 | F67: F16c | J67: Canid | K67: 7.025440618e-06 | L67: 4.485473626e-05 | M67: 0.002217876757 | N67: 0
B68: Large Mammal (70 kg) | C68: =F16d!Dose_C -> 3.984635909e-05 | D68: =F16d!Dose_L -> 5.395861127e-06 | E68: =F16d!Dose_U -> 0.001743277593 | F68: F16d | J68: Lrg Mam | K68: 5.395861127e-06 | L68: 3.445049797e-05 | M68: 0.001703431234 | N68: 0
A69: Consumption of contaminated Fish | J69: FISH----------------
B70: Large Mammalian Carnivore (70 kg) | C70: =F17a!Dose_C -> 0.0004079943679 | D70: =F17a!Dose_L -> 5.524923732e-06 | E70: =F17a!Dose_U -> 0.1011485679 | F70: F17a | J70: Lrg Mam | K70: =IF(D70>0, D70, "") -> 5.524923732e-06 | L70: =IF(ISERROR(C70-K70), "", C70-K70) -> 0.0004024694442 | M70: =IF(ISERROR(E70-C70), "", E70-C70) -> 0.1007405735 | N70: =E70-SUM(K70:M70) -> 0
B71: Canid (5 kg) | C71: =F17b!Dose_C -> 0.0005872456885 | D71: =F17b!Dose_L -> 7.952285365e-06 | E71: =F17b!Dose_U -> 0.145587942 | F71: F17b | J71: Canid | K71: =IF(D71>0, D71, "") -> 7.952285365e-06 | L71: =IF(ISERROR(C71-K71), "", C71-K71) -> 0.0005792934031 | M71: =IF(ISERROR(E71-C71), "", E71-C71) -> 0.1450006963 | N71: 0

Sheet G01b
A1: Summary of Exposure Assessments for the Birds | F1: G01V6Brd
A2: Application Rate: | B2: ='A01'!ApRt_C -> 0.4 | C2: ppm | F2: G01V6Brd
A3: Scenario | B3: Receptor | C3: mg/kg/day or mg/kg/event | F3: Detail Worksheet
C4: Central | D4: Lower | E4: Upper
A5: Accidental Acute Exposures | K5: Lower | L5: Central | M5: Upper | N5: Check
A6: Contaminated Water | J6: SPILL----
A7: Spill | B7: Small bird (10g) | C7: =F02e!Dose_C -> 13.26970438 | D7: =F02e!Dose_L -> 2.653940876 | E7: =F02e!Dose_U -> 26.53940876 | F7: F02e | J7: Sm Brd | K7: =IF(D7>0, D7, "") -> 2.653940876 | L7: =IF(ISERROR(C7-K7), "", C7-K7) -> 10.6157635 | M7: =IF(ISERROR(E7-C7), "", E7-C7) -> 13.26970438 | N7: =E7-SUM(K7:M7) -> 0
A8: Spill | B8: Large Bird (4 kg) | C8: =F02f!Dose_C -> 1.83730582 | D8: =F02f!Dose_L -> 0.3674611639 | E8: =F02f!Dose_U -> 3.674611639 | F8: F02f | J8: Lrg Brd | K8: 0.3674611639 | L8: 1.469844656 | M8: 1.83730582 | N8: =E8-SUM(K8:M8) -> 0
A9: Consumption of contaminated Fish | J9: FISH------
A10: Spill | B10: Fish-eating bird (2.4 kg) | C10: =F03c!Dose_C -> 54.50034691 | D10: =F03c!Dose_L -> 1.090006938 | E10: =F03c!Dose_U -> 617.6705983 | F10: F03c | J10: Pisc Brd | K10: =IF(D10>0, D10, "") -> 1.090006938 | L10: =IF(ISERROR(C10-K10), "", C10-K10) -> 53.41033997 | M10: =IF(ISERROR(E10-C10), "", E10-C10) -> 563.1702514 | N10: =E10-SUM(K10:M10) -> 0
A11: Non-Accidental Acute Exposures
A12: Contaminated Fruit [Lowest Residue Rates] | J12: FRUIT-------------
B13: Small bird (10g) | C13: No Exposure Assessment | J13: Sm Brd | K13: =IF(D13>0, D13, "") ->  | L13: =IF(ISERROR(C13-K13), "", C13-K13) ->  | M13: =IF(ISERROR(E13-C13), "", E13-C13) ->  | N13: =E13-SUM(K13:M13) -> 0
B14: Large Bird (4 kg) | C14: No Exposure Assessment | J14: Lrg Brd | N14: 0
A15: Contaminated Broadleaf Foliage | J15: BROADLEAF-----
B16: Small bird (10g) | C16: No Exposure Assessment | J16: Sm Brd | K16: =IF(D16>0, D16, "") ->  | L16: =IF(ISERROR(C16-K16), "", C16-K16) ->  | M16: =IF(ISERROR(E16-C16), "", E16-C16) ->  | N16: =E16-SUM(K16:M16) -> 0
B17: Large Bird (4 kg) | C17: No Exposure Assessment | J17: Lrg Brd | N17: 0
A18: Contaminated Tall Grass | J18: TALL GRASS -----
B19: Small bird (10g) | C19: No Exposure Assessment | J19: Sm Brd | K19: =IF(D19>0, D19, "") ->  | L19: =IF(ISERROR(C19-K19), "", C19-K19) ->  | M19: =IF(ISERROR(E19-C19), "", E19-C19) ->  | N19: =E19-SUM(K19:M19) -> 0
B20: Large Bird (4 kg) | C20: No Exposure Assessment | J20: Lrg Brd | N20: 0
A21: Contaminated Short Grass [Highest Residue Rate] | J21: SHORT GRASS---
B22: Small bird (10g) | C22: No Exposure Assessment | J22: Sm Brd | K22: =IF(D22>0, D22, "") ->  | L22: =IF(ISERROR(C22-K22), "", C22-K22) ->  | M22: =IF(ISERROR(E22-C22), "", E22-C22) ->  | N22: =E22-SUM(K22:M22) -> 0
B23: Large Bird (4 kg) | C23: No Exposure Assessment | J23: Lrg Brd | N23: 0
A24: Contaminated Water | J24: WATER------------
B25: Small bird (10g) | C25: =F08e!Dose_C -> 0.1078728127 | D25: =F08e!Dose_L -> 0.1078728127 | E25: =F08e!Dose_U -> 0.1078728127 | F25: F08e | J25: Sm Brd | K25: =IF(D25>0, D25, "") -> 0.1078728127 | L25: =IF(ISERROR(C25-K25), "", C25-K25) -> 0 | M25: =IF(ISERROR(E25-C25), "", E25-C25) -> 0 | N25: =E25-SUM(K25:M25) -> 0
B26: Large Bird (4 kg) | C26: =F08f!Dose_C -> 0.01493592781 | D26: =F08f!Dose_L -> 0.01493592781 | E26: =F08f!Dose_U -> 0.01493592781 | F26: F08f | J26: Lrg Brd | K26: 0.01493592781 | L26: 0 | M26: 0 | N26: 0
A27: Contaminated Insects | J27: INSECTS------------
B28: Small bird (10g) | C28: No Exposure Assessment | J28: Sm Brd | K28: =IF(D28>0, D28, "") ->  | L28: =IF(ISERROR(C28-K28), "", C28-K28) ->  | M28: =IF(ISERROR(E28-C28), "", E28-C28) ->  | N28: =E28-SUM(K28:M28) -> 0
A29: Consumption of small mammal (after direct spray) by predator | J29: SMALL MAMMAL-
B30: Carnivorous bird (640 g) | C30: No Exposure Assessment | J30: Crn Brd | K30: =IF(D30>0, D30, "") ->  | L30: =IF(ISERROR(C30-K30), "", C30-K30) ->  | M30: =IF(ISERROR(E30-C30), "", E30-C30) ->  | N30: =E30-SUM(K30:M30) -> 0
A31: Consumption of contaminated Fish | J31: FISH----------------
B32: Fish-eating bird (2.4 kg) | C32: =F11c!Dose_C -> 0.4430472261 | D32: =F11c!Dose_L -> 0.04430472261 | E32: =F11c!Dose_U -> 2.510600948 | F32: F11c | J32: Psc Brd | K32: =IF(D32>0, D32, "") -> 0.04430472261 | L32: =IF(ISERROR(C32-K32), "", C32-K32) -> 0.3987425035 | M32: =IF(ISERROR(E32-C32), "", E32-C32) -> 2.067553722 | N32: =E32-SUM(K32:M32) -> 0
A33: Chronic/Longer Term Exposures
A34: Contaminated Fruit (Lowest Residue Rate) | J34: FRUIT-------------
B35: Small bird (10g) | C35: No Exposure Assessment | J35: Sm Brd | K35: =IF(D35>0, D35, "") ->  | L35: =IF(ISERROR(C35-K35), "", C35-K35) ->  | M35: =IF(ISERROR(E35-C35), "", E35-C35) ->  | N35: =E35-SUM(K35:M35) -> 0
B36: Large Bird (4 kg) | C36: No Exposure Assessment | J36: Lrg Brd | N36: 0
A37: Contaminated Broadleaf Foliage | J37: BROADLEAF-----
B38: Small bird (10g) | C38: No Exposure Assessment | J38: Sm Brd | K38: =IF(D38>0, D38, "") ->  | L38: =IF(ISERROR(C38-K38), "", C38-K38) ->  | M38: =IF(ISERROR(E38-C38), "", E38-C38) ->  | N38: =E38-SUM(K38:M38) -> 0
B39: Large Bird (4 kg) | C39: No Exposure Assessment | J39: Lrg Brd | K39: =IF(D39>0, D39, "") ->  | L39: =IF(ISERROR(C39-K39), "", C39-K39) ->  | M39: =IF(ISERROR(E39-C39), "", E39-C39) ->  | N39: 0
A40: Contaminated Tall Grass | J40: TALL GRASS -----
B41: Small bird (10g) | C41: No Exposure Assessment | J41: Sm Brd | K41: =IF(D41>0, D41, "") ->  | L41: =IF(ISERROR(C41-K41), "", C41-K41) ->  | M41: =IF(ISERROR(E41-C41), "", E41-C41) ->  | N41: =E41-SUM(K41:M41) -> 0
B42: Large Bird (4 kg) | C42: No Exposure Assessment | J42: Lrg Brd | N42: 0
A43: Contaminated Vegetation (Short Grass - Highest Residue Rate) | J43: SHORT GRASS---
B44: Small bird (10g) | C44: No Exposure Assessment | J44: Sm Brd | K44: =IF(D44>0, D44, "") ->  | L44: =IF(ISERROR(C44-K44), "", C44-K44) ->  | M44: =IF(ISERROR(E44-C44), "", E44-C44) ->  | N44: =E44-SUM(K44:M44) -> 0
B45: Large Bird (4 kg) | C45: No Exposure Assessment | J45: Lrg Brd | N45: 0
A46: Contaminated Water | J46: WATER------------
B47: Small bird (10g) | C47: =F16e!Dose_C -> 0.0001660027435 | D47: =F16e!Dose_L -> 2.247953818e-05 | E47: =F16e!Dose_U -> 0.007262617454 | F47: F16e | J47: Sm Brd | K47: =IF(D47>0, D47, "") -> 2.247953818e-05 | L47: =IF(ISERROR(C47-K47), "", C47-K47) -> 0.0001435232053 | M47: =IF(ISERROR(E47-C47), "", E47-C47) -> 0.00709661471 | N47: =E47-SUM(K47:M47) -> 0
B48: Large Bird (4 kg) | C48: =F16f!Dose_C -> 2.298452158e-05 | D48: =F16f!Dose_L -> 3.112487297e-06 | E48: =F16f!Dose_U -> 0.001005572463 | F48: F16f | J48: Lrg Brd | K48: 3.112487297e-06 | L48: 1.987203428e-05 | M48: 0.0009825879413 | N48: 0
A49: Consumption of contaminated Fish | J49: FISH----------------
B50: Fish-eating bird (2.4 kg) | C50: =F17c!Dose_C -> 0.0006817941718 | D50: =F17c!Dose_L -> 9.232629409e-06 | E50: =F17c!Dose_U -> 0.1690280785 | F50: F17c | J50: Psc Brd | K50: =IF(D50>0, D50, "") -> 9.232629409e-06 | L50: =IF(ISERROR(C50-K50), "", C50-K50) -> 0.0006725615424 | M50: =IF(ISERROR(E50-C50), "", E50-C50) -> 0.1683462844 | N50: =E50-SUM(K50:M50) -> 0

Sheet G02a
A1: Summary of Hazard Quotients (Toxicity) for the Mammals | F1: G01V6Mam
A2: Application Rate: | B2: ='A01'!ApRt_C -> 0.4 | C2: ppm | F2: G01V6Mam
A3: Scenario | B3: Receptor | C3: Hazard Quotients | F3: Toxicity Value
C4: Central | D4: Lower | E4: Upper | K4: Lower | L4: Central | M4: Upper
A5: Accidental Acute Exposures
A6: Direct Spray | J6: SPRAY------------
A7: first-order absorption | B7: Small mammal (20g) | C7: No exposure assessment. | J7: 1st-Order Abs | K7: =IF(D7>0, D7, "") ->  | L7: =IF(ISERROR(C7-K7), "", C7-K7) ->  | M7: =IF(ISERROR(E7-C7), "", E7-C7) ->  | N7: =E7-SUM(K7:M7) -> 0
A8: 100% absorption | B8: Small mammal (20g) | C8: No exposure assessment. | J8: 100% Abs. | N8: =E8-SUM(K8:M8) -> 0
A9: Contaminated Water | J9: SPILL--------------
A10: Spill | B10: Small mammal (20g) | C10: =F02a!$C$18/$F$10 -> 2.401154894 | D10: =F02a!$C$19/$F$10 -> 0.4802309788 | E10: =F02a!$C$20/$F$10 -> 4.802309788 | F10: ='B02'!$E$7 -> 3 | G10: NOAEL | J10: Sm Mam | K10: =IF(D10>0, D10, "") -> 0.4802309788 | L10: =IF(ISERROR(C10-K10), "", C10-K10) -> 1.920923915 | M10: =IF(ISERROR(E10-C10), "", E10-C10) -> 2.401154894 | N10: =E10-SUM(K10:M10) -> 0
A11: Spill | B11: Larger Mammal (400g) | C11: =F02b!$C$18/$F$11 -> 1.779578609 | D11: =F02b!$C$19/$F$11 -> 0.3559157219 | E11: =F02b!$C$20/$F$11 -> 3.559157219 | F11: ='B02'!$E$7 -> 3 | G11: NOAEL | J11: 400 g Mam | K11: 0.3559157219 | L11: 1.423662888 | M11: 1.779578609 | N11: 0
A12: Spill | B12: Canid (5 kg) | C12: =F02c!$C$18/$F$12 -> 1.382375969 | D12: =F02c!$C$19/$F$12 -> 0.2764751939 | E12: =F02c!$C$20/$F$12 -> 2.764751939 | F12: ='B02'!$E$7 -> 3 | G12: NOAEL | J12: Canid | K12: 0.2764751939 | L12: 1.105900775 | M12: 1.382375969 | N12: 0
A13: Spill | B13: Large Mammal (70 kg) | C13: =F02d!$C$18/$F$13 -> 1.061728248 | D13: =F02d!$C$19/$F$13 -> 0.2123456495 | E13: =F02d!$C$20/$F$13 -> 2.123456495 | F13: ='B02'!$E$7 -> 3 | G13: NOAEL | J13: Lrg Mam | K13: 0.2123456495 | L13: 0.849382598 | M13: 1.061728248 | N13: 0
A14: Consumption of contaminated Fish | J14: FISH--------------
A15: Spill | B15: Large Mammalian Carnivore (70 kg) | C15: =F03a!$C$47/$F$15 -> 10.87123529 | D15: =F03a!$C$48/$F$15 -> 0.2174247058 | E15: =F03a!$C$49/$F$15 -> 123.2073333 | F15: ='B02'!$E$7 -> 3 | G15: NOAEL | J15: Lrg Mam | K15: =IF(D15>0, D15, "") -> 0.2174247058 | L15: =IF(ISERROR(C15-K15), "", C15-K15) -> 10.65381059 | M15: =IF(ISERROR(E15-C15), "", E15-C15) -> 112.336098 | N15: =E15-SUM(K15:M15) -> 0
A16: Spill | B16: Canid (5 kg) | C16: =F03b!$C$47/$F$16 -> 15.64748574 | D16: =F03b!$C$48/$F$16 -> 0.3129497148 | E16: =F03b!$C$49/$F$16 -> 177.3381717 | F16: ='B02'!$E$7 -> 3 | G16: NOAEL | J16: Canid | K16: 0.3129497148 | L16: 15.33453603 | M16: 161.690686 | N16: 0
A17: Non-Accidental Acute Exposures
A18: Contaminated Fruit [Lowest Residue Rates] | J18: FRUIT-------------
B19: Small mammal (20g) | C19: No exposure assessment. | J19: Sm Mam | K19: =IF(D19>0, D19, "") ->  | L19: =IF(ISERROR(C19-K19), "", C19-K19) ->  | M19: =IF(ISERROR(E19-C19), "", E19-C19) ->  | N19: =E19-SUM(K19:M19) -> 0
B20: Larger Mammal (400g) | C20: No exposure assessment. | J20: 400g Mam | N20: 0
B21: Large Mammal (70 kg) | C21: No exposure assessment. | J21: Lrg Mam | N21: 0
A22: Contaminated Broadleaf Foliage | J22: BROADLEAF-----
B23: Small mammal (20g) | C23: No exposure assessment. | J23: Sm Mam | K23: =IF(D23>0, D23, "") ->  | L23: =IF(ISERROR(C23-K23), "", C23-K23) ->  | M23: =IF(ISERROR(E23-C23), "", E23-C23) ->  | N23: =E23-SUM(K23:M23) -> 0
B24: Larger Mammal (400g) | C24: No exposure assessment. | J24: 400g Mam | N24: 0
B25: Large Mammal (70 kg) | C25: No exposure assessment. | J25: Lrg Mam | N25: 0
A26: Contaminated Tall Grass | J26: TALL GRASS -----
B27: Small mammal (20g) | C27: No exposure assessment. | J27: Sm Mam | K27: =IF(D27>0, D27, "") ->  | L27: =IF(ISERROR(C27-K27), "", C27-K27) ->  | M27: =IF(ISERROR(E27-C27), "", E27-C27) ->  | N27: =E27-SUM(K27:M27) -> 0
B28: Larger Mammal (400g) | C28: No exposure assessment. | J28: 400g Mam | N28: 0
B29: Large Mammal (70 kg) | C29: No exposure assessment. | J29: Lrg Mam | N29: 0
A30: Contaminated Short Grass [Highest Residue Rate] | J30: SHORT GRASS---
B31: Small mammal (20g) | C31: No exposure assessment. | J31: Sm Mam | K31: =IF(D31>0, D31, "") ->  | L31: =IF(ISERROR(C31-K31), "", C31-K31) ->  | M31: =IF(ISERROR(E31-C31), "", E31-C31) ->  | N31: =E31-SUM(K31:M31) -> 0
B32: Larger Mammal (400g) | C32: No exposure assessment. | J32: 400g Mam | N32: 0
B33: Large Mammal (70 kg) | C33: No exposure assessment. | J33: Lrg Mam | N33: 0
A34: Contaminated Water | J34: WATER------------
B35: Small mammal (20g) | C35: =F08a!$C$18/$F$35 -> 0.0195196008 | D35: =F08a!$C$19/$F$35 -> 0.0195196008 | E35: =F08a!$C$20/$F$35 -> 0.0195196008 | F35: ='B02'!$E$7 -> 3 | G35: NOAEL | J35: Sm Mam | K35: =IF(D35>0, D35, "") -> 0.0195196008 | L35: =IF(ISERROR(C35-K35), "", C35-K35) -> 0 | M35: =IF(ISERROR(E35-C35), "", E35-C35) -> 0 | N35: =E35-SUM(K35:M35) -> 0
B36: Larger Mammal (400g) | C36: =F08b!$C$18/$F$36 -> 0.01446664859 | D36: =F08b!$C$19/$F$36 -> 0.01446664859 | E36: =F08b!$C$20/$F$36 -> 0.01446664859 | F36: ='B02'!$E$7 -> 3 | G36: NOAEL | J36: 400g Mam | K36: 0.01446664859 | L36: 0 | M36: 0 | N36: 0
B37: Canid (5 kg) | C37: =F08c!$C$18/$F$37 -> 0.01123768698 | D37: =F08c!$C$19/$F$37 -> 0.01123768698 | E37: =F08c!$C$20/$F$37 -> 0.01123768698 | F37: ='B02'!$E$7 -> 3 | G37: NOAEL | J37: Canid | K37: 0.01123768698 | L37: 0 | M37: 0 | N37: 0
B38: Large Mammal (70 kg) | C38: =F08d!$C$18/$F$38 -> 0.008631059832 | D38: =F08d!$C$19/$F$38 -> 0.008631059832 | E38: =F08d!$C$20/$F$38 -> 0.008631059832 | F38: ='B02'!$E$7 -> 3 | G38: NOAEL | J38: Lrg Mam | K38: 0.008631059832 | L38: 0 | M38: 0 | N38: 0
A39: Contaminated Insects | J39: INSECTS------------
B40: Small mammal (20g) | C40: No exposure assessment. | J40: Sm Mam | K40: =IF(D40>0, D40, "") ->  | L40: =IF(ISERROR(C40-K40), "", C40-K40) ->  | M40: =IF(ISERROR(E40-C40), "", E40-C40) ->  | N40: =E40-SUM(K40:M40) -> 0
B41: Larger Mammal (400g) | C41: No exposure assessment. | J41: Lrg Mam | N41: 0
A42: Consumption of small mammal (after direct spray) by predator | J42: SMALL MAMMAL-
B43: Canid (5 kg) | C43: No exposure assessment. | J43: Canid | K43: =IF(D43>0, D43, "") ->  | L43: =IF(ISERROR(C43-K43), "", C43-K43) ->  | M43: =IF(ISERROR(E43-C43), "", E43-C43) ->  | N43: =E43-SUM(K43:M43) -> 0
A44: Consumption of contaminated Fish | J44: FISH----------------
B45: Large Mammalian Carnivore (70 kg) | C45: =F11a!$C$47/$F$45 -> 0.08837504556 | D45: =F11a!$C$48/$F$45 -> 0.008837504556 | E45: =F11a!$C$49/$F$45 -> 0.5007919249 | F45: ='B02'!$E$7 -> 3 | G45: NOAEL | J45: Lrg Mam | K45: =IF(D45>0, D45, "") -> 0.008837504556 | L45: =IF(ISERROR(C45-K45), "", C45-K45) -> 0.07953754101 | M45: =IF(ISERROR(E45-C45), "", E45-C45) -> 0.4124168793 | N45: =E45-SUM(K45:M45) -> 0
B46: Canid (5 kg) | C46: =F11b!$C$47/$F$46 -> 0.1272024041 | D46: =F11b!$C$48/$F$46 -> 0.01272024041 | E46: =F11b!$C$49/$F$46 -> 0.7208136235 | F46: ='B02'!$E$7 -> 3 | G46: NOAEL | J46: Canid | K46: 0.01272024041 | L46: 0.1144821637 | M46: 0.5936112194 | N46: 0
A47: Chronic/Longer Term Exposures
A48: Contaminated Fruit [Lowest Residue Rates] | J48: FRUIT-------------
B49: Small mammal (20g) | C49: No exposure assessment. | J49: Sm Mam | K49: =IF(D49>0, D49, "") ->  | L49: =IF(ISERROR(C49-K49), "", C49-K49) ->  | M49: =IF(ISERROR(E49-C49), "", E49-C49) ->  | N49: =E49-SUM(K49:M49) -> 0
B50: Larger Mammal (400g) | C50: No exposure assessment. | J50: 400g Mam | N50: 0
B51: Large Mammal (70 kg) | C51: No exposure assessment. | J51: Lrg Mam | N51: 0
A52: Contaminated Broadleaf Foliage | J52: BROADLEAF-----
B53: Small mammal (20g) | C53: No exposure assessment. | J53: Sm Mam | K53: =IF(D53>0, D53, "") ->  | L53: =IF(ISERROR(C53-K53), "", C53-K53) ->  | M53: =IF(ISERROR(E53-C53), "", E53-C53) ->  | N53: =E53-SUM(K53:M53) -> 0
B54: Larger Mammal (400g) | C54: No exposure assessment. | J54: 400g Mam | N54: 0
B55: Large Mammal (70 kg) | C55: No exposure assessment. | J55: Lrg Mam | N55: 0
A56: Contaminated Tall Grass | J56: TALL GRASS -----
B57: Small mammal (20g) | C57: No exposure assessment. | J57: Sm Mam | K57: =IF(D57>0, D57, "") ->  | L57: =IF(ISERROR(C57-K57), "", C57-K57) ->  | M57: =IF(ISERROR(E57-C57), "", E57-C57) ->  | N57: =E57-SUM(K57:M57) -> 0
B58: Larger Mammal (400g) | C58: No exposure assessment. | J58: 400g Mam | N58: 0
B59: Large Mammal (70 kg) | C59: No exposure assessment. | J59: Lrg Mam | N59: 0
A60: Contaminated Short Grass [Highest Residue Rate] | J60: SHORT GRASS---
B61: Small mammal (20g) | C61: No exposure assessment. | J61: Sm Mam | K61: =IF(D61>0, D61, "") ->  | L61: =IF(ISERROR(C61-K61), "", C61-K61) ->  | M61: =IF(ISERROR(E61-C61), "", E61-C61) ->  | N61: =E61-SUM(K61:M61) -> 0
B62: Larger Mammal (400g) | C62: No exposure assessment. | J62: 400g Mam | N62: 0
B63: Large Mammal (70 kg) | C63: No exposure assessment. | J63: Lrg Mam | N63: 0
A64: Contaminated Water | J64: WATER------------
B65: Small mammal (20g) | C65: =F16a!$C$18/$F$65 -> 5.006370005e-05 | D65: =F16a!$C$19/$F$65 -> 6.779459382e-06 | E65: =F16a!$C$20/$F$65 -> 0.002190286101 | F65: ='B02'!$E$8 -> 1.8 | G65: NOAEL | J65: Sm Mam | K65: =IF(D65>0, D65, "") -> 6.779459382e-06 | L65: =IF(ISERROR(C65-K65), "", C65-K65) -> 4.328424067e-05 | M65: =IF(ISERROR(E65-C65), "", E65-C65) -> 0.002140222401 | N65: =E65-SUM(K65:M65) -> 0
B66: Larger Mammal (400g) | C66: =F16b!$C$18/$F$66 -> 3.710393276e-05 | D66: =F16b!$C$19/$F$66 -> 5.024490894e-06 | E66: =F16b!$C$20/$F$66 -> 0.001623296483 | F66: ='B02'!$E$8 -> 1.8 | G66: NOAEL | J66: 400g Mam | K66: 5.024490894e-06 | L66: 3.207944186e-05 | M66: 0.00158619255 | N66: 0
B67: Canid (5 kg) | C67: =F16c!$C$18/$F$67 -> 2.882232049e-05 | D67: =F16c!$C$19/$F$67 -> 3.903022566e-06 | E67: =F16c!$C$20/$F$67 -> 0.001260976074 | F67: ='B02'!$E$8 -> 1.8 | G67: NOAEL | J67: Canid | K67: 3.903022566e-06 | L67: 2.491929792e-05 | M67: 0.001232153754 | N67: 0
B68: Large Mammal (70 kg) | C68: =F16d!$C$18/$F$68 -> 2.213686616e-05 | D68: =F16d!$C$19/$F$68 -> 2.997700626e-06 | E68: =F16d!$C$20/$F$68 -> 0.0009684875515 | F68: ='B02'!$E$8 -> 1.8 | G68: NOAEL | J68: Lrg Mam | K68: 2.997700626e-06 | L68: 1.913916554e-05 | M68: 0.0009463506853 | N68: 0
A69: Consumption of contaminated Fish | J69: FISH----------------
B70: Large Mammalian Carnivore (70 kg) | C70: =F17a!$C$47/$F$70 -> 0.0002266635377 | D70: =F17a!$C$48/$F$70 -> 3.069402073e-06 | E70: =F17a!$C$49/$F$70 -> 0.05619364882 | F70: ='B02'!$E$8 -> 1.8 | G70: NOAEL | J70: Lrg Mam | K70: =IF(D70>0, D70, "") -> 3.069402073e-06 | L70: =IF(ISERROR(C70-K70), "", C70-K70) -> 0.0002235941357 | M70: =IF(ISERROR(E70-C70), "", E70-C70) -> 0.05596698528 | N70: =E70-SUM(K70:M70) -> 0
B71: Canid (5 kg) | C71: =F17b!$C$47/$F$71 -> 0.0003262476047 | D71: =F17b!$C$48/$F$71 -> 4.417936314e-06 | E71: =F17b!$C$49/$F$71 -> 0.08088219001 | F71: ='B02'!$E$8 -> 1.8 | G71: NOAEL | J71: Canid | K71: =IF(D71>0, D71, "") -> 4.417936314e-06 | L71: =IF(ISERROR(C71-K71), "", C71-K71) -> 0.0003218296684 | M71: =IF(ISERROR(E71-C71), "", E71-C71) -> 0.08055594241 | N71: 0

Sheet G02b
A1: Summary of Hazard Quotients (Toxicity) for the Birds | F1: G01V6Brd
A2: Application Rate: | B2: ='A01'!ApRt_C -> 0.4 | C2: ppm | F2: G01V6Brd
A3: Scenario | B3: Receptor | C3: Hazard Quotients | F3: Toxicity Value
C4: Central | D4: Lower | E4: Upper
A5: Accidental Acute Exposures | K5: Lower | L5: Central | M5: Upper | N5: Check
A6: Contaminated Water | J6: SPILL----
A7: Spill | B7: Small bird (10g) | C7: =F02e!$C$18/$F$7 -> 0.007679227071 | D7: =F02e!$C$19/$F$7 -> 0.001535845414 | E7: =F02e!$C$20/$F$7 -> 0.01535845414 | F7: ='B02'!$E$9 -> 1728 | G7: NOAEL | J7: Sm Brd | K7: =IF(D7>0, D7, "") -> 0.001535845414 | L7: =IF(ISERROR(C7-K7), "", C7-K7) -> 0.006143381657 | M7: =IF(ISERROR(E7-C7), "", E7-C7) -> 0.007679227071 | N7: =E7-SUM(K7:M7) -> 0
A8: Spill | B8: Large Bird (4 kg) | C8: =F02f!$C$18/$F$8 -> 0.001063255683 | D8: =F02f!$C$19/$F$8 -> 0.0002126511365 | E8: =F02f!$C$20/$F$8 -> 0.002126511365 | F8: ='B02'!$E$9 -> 1728 | G8: NOAEL | J8: Lrg Brd | K8: 0.0002126511365 | L8: 0.0008506045461 | M8: 0.001063255683 | N8: =E8-SUM(K8:M8) -> 0
A9: Consumption of contaminated Fish | J9: FISH------
A10: Spill | B10: Fish-eating bird (2.4 kg) | C10: =F03c!$C$47/$F$10 -> 0.03153955261 | D10: =F03c!$C$48/$F$10 -> 0.0006307910521 | E10: =F03c!$C$49/$F$10 -> 0.3574482629 | F10: ='B02'!$E$9 -> 1728 | G10: NOAEL | J10: Pisc Brd | K10: =IF(D10>0, D10, "") -> 0.0006307910521 | L10: =IF(ISERROR(C10-K10), "", C10-K10) -> 0.03090876156 | M10: =IF(ISERROR(E10-C10), "", E10-C10) -> 0.3259087103 | N10: =E10-SUM(K10:M10) -> 0
A11: Non-Accidental Acute Exposures
A12: Contaminated Fruit [Lowest Residue Rates] | J12: FRUIT-------------
B13: Small bird (10g) | C13: No exposure assessment. | J13: Sm Brd | K13: =IF(D13>0, D13, "") ->  | L13: =IF(ISERROR(C13-K13), "", C13-K13) ->  | M13: =IF(ISERROR(E13-C13), "", E13-C13) ->  | N13: =E13-SUM(K13:M13) -> 0
B14: Large Bird (4 kg) | C14: No exposure assessment. | J14: Lrg Brd | N14: 0
A15: Contaminated Broadleaf Foliage | J15: BROADLEAF-----
B16: Small bird (10g) | C16: No exposure assessment. | J16: Sm Brd | K16: =IF(D16>0, D16, "") ->  | L16: =IF(ISERROR(C16-K16), "", C16-K16) ->  | M16: =IF(ISERROR(E16-C16), "", E16-C16) ->  | N16: =E16-SUM(K16:M16) -> 0
B17: Large Bird (4 kg) | C17: No exposure assessment. | J17: Lrg Brd | N17: 0
A18: Contaminated Tall Grass | J18: TALL GRASS -----
B19: Small bird (10g) | C19: No exposure assessment. | J19: Sm Brd | K19: =IF(D19>0, D19, "") ->  | L19: =IF(ISERROR(C19-K19), "", C19-K19) ->  | M19: =IF(ISERROR(E19-C19), "", E19-C19) ->  | N19: =E19-SUM(K19:M19) -> 0
B20: Large Bird (4 kg) | C20: No exposure assessment. | J20: Lrg Brd | N20: 0
A21: Contaminated Short Grass [Highest Residue Rate] | J21: SHORT GRASS---
B22: Small bird (10g) | C22: No exposure assessment. | J22: Sm Brd | K22: =IF(D22>0, D22, "") ->  | L22: =IF(ISERROR(C22-K22), "", C22-K22) ->  | M22: =IF(ISERROR(E22-C22), "", E22-C22) ->  | N22: =E22-SUM(K22:M22) -> 0
B23: Large Bird (4 kg) | C23: No exposure assessment. | J23: Lrg Brd | N23: 0
A24: Contaminated Water | J24: WATER------------
B25: Small bird (10g) | C25: =F08e!$C$18/$F$25 -> 6.242639627e-05 | D25: =F08e!$C$19/$F$25 -> 6.242639627e-05 | E25: =F08e!$C$20/$F$25 -> 6.242639627e-05 | F25: ='B02'!$E$9 -> 1728 | G25: NOAEL | J25: Sm Brd | K25: =IF(D25>0, D25, "") -> 6.242639627e-05 | L25: =IF(ISERROR(C25-K25), "", C25-K25) -> 0 | M25: =IF(ISERROR(E25-C25), "", E25-C25) -> 0 | N25: =E25-SUM(K25:M25) -> 0
B26: Large Bird (4 kg) | C26: =F08f!$C$18/$F$26 -> 8.643476741e-06 | D26: =F08f!$C$19/$F$26 -> 8.643476741e-06 | E26: =F08f!$C$20/$F$26 -> 8.643476741e-06 | F26: ='B02'!$E$9 -> 1728 | G26: NOAEL | J26: Lrg Brd | K26: 8.643476741e-06 | L26: 0 | M26: 0 | N26: 0
A27: Contaminated Insects | J27: INSECTS------------
B28: Small bird (10g) | C28: No exposure assessment. | J28: Sm Brd | K28: =IF(D28>0, D28, "") ->  | L28: =IF(ISERROR(C28-K28), "", C28-K28) ->  | M28: =IF(ISERROR(E28-C28), "", E28-C28) ->  | N28: =E28-SUM(K28:M28) -> 0
A29: Consumption of small mammal (after direct spray) by predator | J29: SMALL MAMMAL-
B30: Carnivorous bird (640 g) | C30: No exposure assessment. | J30: Crn Brd | K30: =IF(D30>0, D30, "") ->  | L30: =IF(ISERROR(C30-K30), "", C30-K30) ->  | M30: =IF(ISERROR(E30-C30), "", E30-C30) ->  | N30: =E30-SUM(K30:M30) -> 0
A31: Consumption of contaminated Fish | J31: FISH----------------
B32: Fish-eating bird (2.4 kg) | C32: =F11c!$C$47/$F$32 -> 0.0002563930707 | D32: =F11c!$C$48/$F$32 -> 2.563930707e-05 | E32: =F11c!$C$49/$F$32 -> 0.001452894067 | F32: ='B02'!$E$9 -> 1728 | G32: NOAEL | J32: Psc Brd | K32: =IF(D32>0, D32, "") -> 2.563930707e-05 | L32: =IF(ISERROR(C32-K32), "", C32-K32) -> 0.0002307537636 | M32: =IF(ISERROR(E32-C32), "", E32-C32) -> 0.001196500997 | N32: =E32-SUM(K32:M32) -> 0
A33: Chronic/Longer Term Exposures
A34: Contaminated Fruit (Lowest Residue Rate) | J34: FRUIT-------------
B35: Small bird (10g) | C35: No exposure assessment. | J35: Sm Brd | K35: =IF(D35>0, D35, "") ->  | L35: =IF(ISERROR(C35-K35), "", C35-K35) ->  | M35: =IF(ISERROR(E35-C35), "", E35-C35) ->  | N35: =E35-SUM(K35:M35) -> 0
B36: Large Bird (4 kg) | C36: No exposure assessment. | J36: Lrg Brd | N36: 0
A37: Contaminated Broadleaf Foliage | J37: BROADLEAF-----
B38: Small bird (10g) | C38: No exposure assessment. | J38: Sm Brd | K38: =IF(D38>0, D38, "") ->  | L38: =IF(ISERROR(C38-K38), "", C38-K38) ->  | M38: =IF(ISERROR(E38-C38), "", E38-C38) ->  | N38: =E38-SUM(K38:M38) -> 0
B39: Large Bird (4 kg) | C39: No exposure assessment. | J39: Lrg Brd | K39: =IF(D39>0, D39, "") ->  | L39: =IF(ISERROR(C39-K39), "", C39-K39) ->  | M39: =IF(ISERROR(E39-C39), "", E39-C39) ->  | N39: 0
A40: Contaminated Tall Grass | J40: TALL GRASS -----
B41: Small bird (10g) | C41: No exposure assessment. | J41: Sm Brd | K41: =IF(D41>0, D41, "") ->  | L41: =IF(ISERROR(C41-K41), "", C41-K41) ->  | M41: =IF(ISERROR(E41-C41), "", E41-C41) ->  | N41: =E41-SUM(K41:M41) -> 0
B42: Large Bird (4 kg) | C42: No exposure assessment. | J42: Lrg Brd | N42: 0
A43: Contaminated Vegetation (Short Grass - Highest Residue Rate) | J43: SHORT GRASS---
B44: Small bird (10g) | C44: No exposure assessment. | J44: Sm Brd | K44: =IF(D44>0, D44, "") ->  | L44: =IF(ISERROR(C44-K44), "", C44-K44) ->  | M44: =IF(ISERROR(E44-C44), "", E44-C44) ->  | N44: =E44-SUM(K44:M44) -> 0
B45: Large Bird (4 kg) | C45: No exposure assessment. | J45: Lrg Brd | N45: 0
A46: Contaminated Water | J46: WATER------------
B47: Small bird (10g) | C47: =F16e!$C$18/$F$47 -> 5.061059252e-06 | D47: =F16e!$C$19/$F$47 -> 6.853517737e-07 | E47: =F16e!$C$20/$F$47 -> 0.0002214212638 | F47: ='B02'!$E$10 -> 32.8 | G47: NOAEL | J47: Sm Brd | K47: =IF(D47>0, D47, "") -> 6.853517737e-07 | L47: =IF(ISERROR(C47-K47), "", C47-K47) -> 4.375707478e-06 | M47: =IF(ISERROR(E47-C47), "", E47-C47) -> 0.0002163602046 | N47: =E47-SUM(K47:M47) -> 0
B48: Large Bird (4 kg) | C48: =F16f!$C$18/$F$48 -> 7.007476091e-07 | D48: =F16f!$C$19/$F$48 -> 9.48929054e-08 | E48: =F16f!$C$20/$F$48 -> 3.065769704e-05 | F48: ='B02'!$E$10 -> 32.8 | G48: NOAEL | J48: Lrg Brd | K48: 9.48929054e-08 | L48: 6.058547037e-07 | M48: 2.995694943e-05 | N48: 0
A49: Consumption of contaminated Fish | J49: FISH----------------
B50: Fish-eating bird (2.4 kg) | C50: =F17c!$C$47/$F$50 -> 2.078640768e-05 | D50: =F17c!$C$48/$F$50 -> 2.814826039e-07 | E50: =F17c!$C$49/$F$50 -> 0.005153295077 | F50: ='B02'!$E$10 -> 32.8 | G50: NOAEL | J50: Psc Brd | K50: =IF(D50>0, D50, "") -> 2.814826039e-07 | L50: =IF(ISERROR(C50-K50), "", C50-K50) -> 2.050492507e-05 | M50: =IF(ISERROR(E50-C50), "", E50-C50) -> 0.00513250867 | N50: =E50-SUM(K50:M50) -> 0

Sheet G03
A1: Worksheet G03: Summary of Hazard Quotients for Aquatic Species
A2: Application Rate: | B2: 0.4 | C2: ppm | F2: AqToxSumV6
A3: Exposures | C3: Concentrations (mg/L)
B4: Scenario | C4: Central | D4: Lower | E4: Upper | F4: Worksheet
B5: Accidental Spill | C5: =B04b!Acute_C -> 49.205 | D5: =B04b!Acute_L -> 9.841 | E5: =B04b!Acute_U -> 98.41 | F5: B04b
B6: Peak EEC | C6: =B04a!Acute_C -> 0.4 | D6: =B04a!Acute_L -> 0.4 | E6: =B04a!Acute_U -> 0.4 | F6: B04a
B7: Chronic | C7: =B04a!Chronic_C -> 0.0006155498841 | D7: =B04a!Chronic_L -> 8.335571347e-05 | E7: =B04a!Chronic_U -> 0.02693029789 | F7: B04a
A8: Receptor | B8: Type | C8: Hazard Quotients | F8: Toxicity Value | G8: Toxicity Endpoint
C9: Central | D9: Lower | E9: Upper
A10: Accidental Acute Exposures | K10: Lower | L10: Central | M10: Upper | N10: Check
A11: Fish | B11: Sensitive | C11: =C$5/$F11 -> 53.48369565 | D11: =D$5/$F11 -> 10.69673913 | E11: =E$5/$F11 -> 106.9673913 | F11: ='B02'!$E$20 -> 0.92 | G11: NOAEC | J11: Fish Sn | K11: =IF(D11>0, D11, "") -> 10.69673913 | L11: =IF(ISERROR(C11-K11), "", C11-K11) -> 42.78695652 | M11: =IF(ISERROR(E11-C11), "", E11-C11) -> 53.48369565 | N11: =E11-SUM(K11:M11) -> 0
B12: Tolerant | C12: =C$5/$F12 -> 10.46914894 | D12: 2.093829787 | E12: 20.93829787 | F12: ='B02'!$E$21 -> 4.7 | G12: NOAEC | J12: Fish Tl | K12: 2.093829787 | L12: 8.375319149 | M12: 10.46914894 | N12: =E12-SUM(K12:M12) -> 0
A13: Amphibian | B13: Sensitive | C13: No toxicity data. | F13: N/A | J13: Amph Sn | N13: =E13-SUM(K13:M13) -> 0
B14: Tolerant | C14: No toxicity data. | F14: N/A | J14: Amph To | N14: 0
A15: Invertebrate | B15: Sensitive | C15: 4920.5 | D15: 984.1 | E15: 9841 | F15: ='B02'!$E$16 -> 0.01 | G15: NOAEC | J15: Invt Sn | K15: 984.1 | L15: 3936.4 | M15: 4920.5 | N15: 0
B16: Tolerant | C16: 182.2407407 | D16: 36.44814815 | E16: 364.4814815 | F16: ='B02'!$E$17 -> 0.27 | G16: NOAEC | J16: Invt Tl | K16: 36.44814815 | L16: 145.7925926 | M16: 182.2407407 | N16: 0
A17: Macrophyte | B17: Sensitive | C17: 223659.0909 | D17: 44731.81818 | E17: 447318.1818 | F17: ='B02'!$E$26 -> 0.00022 | G17: NOAEC | J17: Plant Sn | K17: 44731.81818 | L17: 178927.2727 | M17: 223659.0909 | N17: 0
B18: Tolerant | C18: No toxicity data. | F18: N/A | J18: Plant Tl | N18: 0
A19: Algae | B19: Sensitive | C19: 2236590.909 | D19: 447318.1818 | E19: 4473181.818 | F19: ='B02'!$E$24 -> 2.2e-05 | G19: NOAEC | J19: Algae Sn | K19: 447318.1818 | L19: 1789272.727 | M19: 2236590.909 | N19: 0
B20: Tolerant | C20: 25897.36842 | D20: 5179.473684 | E20: 51794.73684 | F20: ='B02'!$E$25 -> 0.0019 | G20: NOAEC | J20: Algae Tl | K20: 5179.473684 | L20: 20717.89474 | M20: 25897.36842 | N20: 0
A21: Non-Accidental Acute Exposures
A22: Fish | B22: Sensitive | C22: =C$6/$F22 -> 0.4347826087 | D22: =D$6/$F22 -> 0.4347826087 | E22: 0.4347826087 | F22: ='B02'!$E$20 -> 0.92 | G22: NOAEC | J22: Fish Sn | K22: =IF(D22>0, D22, "") -> 0.4347826087 | L22: =IF(ISERROR(C22-K22), "", C22-K22) -> 0 | M22: =IF(ISERROR(E22-C22), "", E22-C22) -> 0 | N22: 0
B23: Tolerant | C23: =C$6/$F23 -> 0.08510638298 | D23: 0.08510638298 | E23: 0.08510638298 | F23: ='B02'!$E$21 -> 4.7 | G23: NOAEC | J23: Fish Tl | K23: 0.08510638298 | L23: 0 | M23: 0 | N23: 0
A24: Amphibian | B24: Sensitive | C24: No toxicity data. | F24: N/A | J24: Amph Sn | N24: 0
B25: Tolerant | C25: No toxicity data. | F25: N/A | J25: Amph To | N25: 0
A26: Invertebrate | B26: Sensitive | C26: 40 | D26: 40 | E26: 40 | F26: ='B02'!$E$16 -> 0.01 | G26: NOAEC | J26: Invt Sn | K26: 40 | L26: 0 | M26: 0 | N26: 0
B27: Tolerant | C27: 1.481481481 | D27: 1.481481481 | E27: 1.481481481 | F27: ='B02'!$E$17 -> 0.27 | G27: NOAEC | J27: Invt Tl | K27: 1.481481481 | L27: 0 | M27: 0 | N27: 0
A28: Macrophyte | B28: Sensitive | C28: 1818.181818 | D28: 1818.181818 | E28: 1818.181818 | F28: ='B02'!$E$26 -> 0.00022 | G28: NOAEC | J28: Plant Sn | K28: 1818.181818 | L28: 0 | M28: 0 | N28: 0
B29: Tolerant | C29: No toxicity data. | F29: N/A | J29: Plant Tl | N29: 0
A30: Algae | B30: Sensitive | C30: 18181.81818 | D30: 18181.81818 | E30: 18181.81818 | F30: ='B02'!$E$24 -> 2.2e-05 | G30: NOAEC | J30: Algae Sn | K30: 18181.81818 | L30: 0 | M30: 0 | N30: 0
B31: Tolerant | C31: 210.5263158 | D31: 210.5263158 | E31: 210.5263158 | F31: ='B02'!$E$25 -> 0.0019 | G31: NOAEC | J31: Algae Tl | K31: 210.5263158 | L31: 0 | M31: 0 | N31: 0
A32: Chronic/Longer Term Exposures
A33: Fish | B33: Sensitive | C33: =C$7/$F33 -> 1.206960557 | D33: =D$7/$F33 -> 0.1634425754 | E33: 52.80450566 | F33: ='B02'!$E$22 -> 0.00051 | G33: NOAEC | J33: Fish Sn | K33: =IF(D33>0, D33, "") -> 0.1634425754 | L33: =IF(ISERROR(C33-K33), "", C33-K33) -> 1.043517982 | M33: =IF(ISERROR(E33-C33), "", E33-C33) -> 51.59754511 | N33: 0
B34: Tolerant | C34: =C$7/$F34 -> 0.07994154339 | D34: 0.01082541733 | E34: 3.497441284 | F34: ='B02'!$E$23 -> 0.0077 | G34: NOAEC | J34: Fish Tl | K34: 0.01082541733 | L34: 0.06911612606 | M34: 3.417499741 | N34: 0
A35: Amphibian | B35: Sensitive | C35: No toxicity data. | F35: N/A | J35: Amph Sn | N35: 0
B36: Tolerant | C36: No toxicity data. | F36: N/A | J36: Amph To | N36: 0
A37: Invertebrate | B37: Sensitive | C37: 0.04103665894 | D37: 0.005557047565 | E37: 1.795353193 | F37: ='B02'!$E$18 -> 0.015 | G37: NOAEC | J37: Invt Sn | K37: 0.005557047565 | L37: 0.03547961138 | M37: 1.754316534 | N37: 0
B38: Tolerant | C38: 0.02198392443 | D38: 0.002976989767 | E38: 0.9617963532 | F38: ='B02'!$E$19 -> 0.028 | G38: NOAEC | J38: Invt Tl | K38: 0.002976989767 | L38: 0.01900693467 | M38: 0.9398124287 | N38: 0
A39: Macrophyte | B39: Sensitive | C39: 2.797954019 | D39: 0.3788896067 | E39: 122.4104449 | F39: ='B02'!$E$26 -> 0.00022 | G39: NOAEC | J39: Plant Sn | K39: 0.3788896067 | L39: 2.419064412 | M39: 119.6124909 | N39: 0
B40: Tolerant | C40: No toxicity data. | F40: N/A | J40: Plant Tl | N40: 0
A41: Algae | B41: Sensitive | C41: 27.97954019 | D41: 3.788896067 | E41: 1224.104449 | F41: ='B02'!$E$24 -> 2.2e-05 | G41: NOAEC | J41: Algae Sn | K41: 3.788896067 | L41: 24.19064412 | M41: 1196.124909 | N41: 0
B42: Tolerant | C42: 0.3239736232 | D42: 0.04387142814 | E42: 14.17384099 | F42: ='B02'!$E$25 -> 0.0019 | G42: NOAEC | J42: Algae Tl | K42: =IF(D42>0, D42, "") -> 0.04387142814 | L42: =IF(ISERROR(C42-K42), "", C42-K42) -> 0.2801021951 | M42: =IF(ISERROR(E42-C42), "", E42-C42) -> 13.84986737 | N42: 0

Sheet G06a
A1: Potential exposure of non-target plants through the use of contaminated irrigation water based on estimates concentrations in ambient water.
A2: Short Title | B2: Irrigation Water | E2: PlntWatIrrgAq
A3: Receptor | B3: Non-target plants
A4: Duration | B4: acute
A5: Parameter/Assumption | B5: Code / Range | C5: Equation/ Value | D5: Units | E5: Reference/Designation
A6: Toxicity Values (Post-emergence in lb/ac)
A7: Sensitive species | B7: NOAEL | C7: ='B02'!$E$12 -> 5e-05 | D7: lb/acre | E7: MRID 44295030
A8: Tolerant species | B8: NOAEL | C8: ='B02'!$E$13 -> 0.006 | D8: lb/acre | E8: MRID 44295030
A9: Concentration in irrigation water | B9: ConcWat
B10: Central | C10: =B04a!Acute_C -> 0.4 | D10: mg/L | E10: Worksheet B04a
B11: Lower | C11: =B04a!Acute_L -> 0.4 | E11: Worksheet B04a
B12: Upper | C12: =B04a!Acute_U -> 0.4 | E12: Worksheet B04a
A13: Amount of irrigation water applied | B13: IrrigAmnt
B14: Central | C14: 1 | D14: inches | E14: Scenario parameter
B15: Lower | C15: 0.25 | E15: Scenario parameter
B16: Upper | C16: 2 | E16: Scenario parameter
A17: Liters of water applied per acre per inch of irrigation water | B17: LpApI | C17: 10279 | D17: Liters/inch
A18: Liters of water applied per acre | B18: LPA | C18: IrrigAmnt × LpApl
B19: Central | C19: =C14*C$17 -> 10279 | D19: liters | E19: Eq
B20: Lower | C20: =C15*C$17 -> 2569.75 | E20: Eq
B21: Upper | C21: =C16*C$17 -> 20558 | E21: Eq
A22: Application Rate (mg/acre) | B22: ApRmg/a | C22: ConcWat × LPA
B23: Central | C23: =C10*C19 -> 4111.6 | D23: mg/acre | E23: Eq
B24: Lower | C24: =C11*C20 -> 1027.9 | E24: Eq
B25: Upper | C25: =C12*C21 -> 8223.2 | E25: Eq
A26: Conversion factor for mg to lb | B26: Conv | C26: =A02d!$C$9 -> 2.204e-06 | E26: Budavari 1989
A27: Functional application rate (lb/acre) | B27: FncApR | C27: ApRmg/a × Conv
B28: Central | C28: =C23*C$26 -> 0.0090619664 | D28: lb/acre | E28: Eq
B29: Lower | C29: =C24*C$26 -> 0.0022654916 | E29: Eq
B30: Upper | C30: =C25*C$26 -> 0.0181239328 | E30: Eq
A31: Hazard Quotients (Sensitive Species) | B31: HISens | C31: = FncApRt / ToxValSens
B32: Central | C32: =IF(ISNUMBER($C$7), C28/$C$7, "N/A") -> 181.239328
B33: Lower | C33: =IF(ISNUMBER($C$7), C29/$C$7, "N/A") -> 45.309832
B34: Upper | C34: 362.478656
A35: Hazard Quotients (Tolerant Species) | B35: HITol | C35: = FncApRt / ToxValTol
B36: Central | C36: =IF( ISNUMBER($C$8), C28/$C$8, "N/A") -> 1.510327733
B37: Lower | C37: =IF( ISNUMBER($C$8), C29/$C$8, "N/A") -> 0.3775819333
B38: Upper | C38: 3.020655467

Sheet References
A1: References cited in workbook
A2: Citation | B2: Full Reference
A3: Ali et al. 2005 | B3: Ali M; Iqbat F; Salam A; Iram S; Athar M. 2005. Comparative study of body composition of different fish species from brackish water pond. Int J Environ Sci Tech. 2(3): 229-232.
A4: Boxenbaum and D’Souza 1990 | B4: Boxenbaum J; D'Souza R. 1990. Interspecies pharmacokinetic scaling, biological design and neoteny. Adv. Drug Res. 19: 139-195.
A5: Budavari 1989 | B5: Budavari S. (Ed). 1989. The Merck Index: An Encyclopedia of Chemicals, Drugs,and Biologicals, 11th ed. Merck & Co., Inc., Rahway, New Jersey.
A6: Burnmaster 1998 | B6: Burnmaster DE. 1998. Lognormal distribution for total water intake and tap water intake by pregnant and lactating women in the United States. Risk Analysis. 18(5): 215-219
A7: Chapman 1998 | B7: Chapman P. 1998. The Insects: Structure and Function. 4th Edition. Cambridge University Press, Cambridge, UK. 788 pp.
A8: Default | B8: These are plausible default values that are typically used in SERA risk assessments.
A9: Dunning 1993 | B9: Dunning JB. 1993. CRC Handbook of Avian Body Masses. CRC Press, Boca Raton FL, 371 pp.
A10: Durkin et al. 1995 | B10: Durkin PR; Rubin L; Withey J; Meylan W. 1995. Methods of assessing dermal absorption with emphasis on uptake from contaminated vegetation. Toxicol. Indust. Health. 11(1): 63-79.
A11: Fletcher et al. 1994 | B11: Fletcher JS; Nellessen JE; Pfleeger TG. 1994. Literature review and evaluation of the EPA food-chain (Kenega) nomogram, an instrument for estimating pesticide residues on plants. Environ. Toxicol. Chem. 13(9):1383-1391.
A12: Harris and Solomon 1992 | B12: Harris SA; Solomon KR. 1992. Human exposure to 2,4-D following controlled activities on recently sprayed turf. J. Environ. Sci. Health. B27(1): 9-22.
A13: Hoerger and Kenaga 1972 | B13: Hoerger F; Kenaga EE. 1972. Pesticide residues on plants: Correlation of representative data as a basis for estimation of their magnitude in the environment. In: Environmental Quality and Safety, Volume I: Global Aspects of Toxicology and Technology as Applied to the Environment. F. Coulston and F. Kerte (eds.). Academic Press, New York, NY. pp. 9-28.
A14: Humphery and Dykes 2008 | B14: Humphrey JAC; Dykes ES. 2008. Thermal energy conduction in a honey bee comb due to cell-heating bees. J Theoretical Biology. 250 (1): 194-208.
A15: ICRP 1975 | B15: ICRP (International Commission on Radiologic Protection). 1975. Report of the Task Group on Reference Man. Recommendations of the International Commission on Radiological Protection (ICRP) Publ. No. 23. Pergamon Press, New York, NY.
A16: Knisel et al. 1992 | B16: Knisel WG; Davis FM; Leonard RA. 1992. GLEAMS Version 2.0 User Manual. U.S. Department of Agriculture, Agricultural Research Service, Southeast Watershed Research Laboratory, Tifton, GA. 202pp
A17: Manugistics 1995 | B17: Manugistics. 1995. Statgraphics Plus for Windows. Version 3. Available from Manugistics, Inc. Rockville, Maryland.
A18: Mason and Johnson 1987 | B18: Mason RW; Johnson BL. 1987. Ergonomic factors in chemical hazard control. In: Handbook of Human Factors. Salveny, G; ed. John Wiley and Sons, New York, NY. pp. 772-741.
A19: Mendenhall and Scheaffer 1973 | B19: Mendenhall W; Scheaffer RF. 1973. Mathematical Statistics with Applications. Duxbury Press, North Scituate, Massachusetts. 461 pp. plus appendices.
A20: N/A | B20: Not applicable
A21: Nagy 2005 | B21: Nagy KA. 2005. Field metabolic rate and body size. Journal of Experimental Biology. 208: 1621-1625.
A22: Ratnapalan et al. 2003 | B22: Ratnapalan S; Potylitsina Y; Tan LH; Roifman M; Koren G. 2003. Measuring a toddler's mouthful: toxicologic considerations. J Pediatr. 142(6):729-30.
A23: Reichle et al. 1973 | B23: Reichle DE, Goldstein RA; Van Hook RI; Dodson DJ. 1973. Analysis of Insect Consumption in a Forest Canopy. Ecology. 54: 1076-1084.
A24: Reid 2006 | B24: Reid FA. 2006. A Field Guide to Mammals of North America North of Mexico. Fourth Edition. The Peterson Field Guide Series. Houghton Mifflin Company, Boston MA. 570 pp.
A25: Ruffle et al. 1994 | B25: Ruffle B; Burmaster DE; Anderson PD; Gordon HD. 1994. Lognormal distributions for fish consumption by the general U.S. population. Risk Analy. 14(4): 395-404.
A26: SERA 1997 | B26: SERA (Syracuse Environmental Research Associates, Inc.). 1997. Reevaluation of Methods for Assessing Worker Exposure to Pesticides, SERA TR 96-21-08-01, draft dated December 31, 1997. Prepared under USDA/FS Contract 53-3187-5-12. Syracuse Environmental Research Associates, Inc., Fayetteville, NY.
A27: SERA 2005 | B27: SERA (Syracuse Environmental Research Associates, Inc.). 2005. Hexazinone - Human Health and Ecological Risk Assessment– Final Report, SERA SERA TR 05-43-20-03d, Final Report dated October 25, 2005. Available at: http://www.fs.fed.us/foresthealth/pesticide/risk.shtml.
A28: SERA 2007 | B28: SERA (Syracuse Environmental Research Associates, Inc.). 2007. Preparation of Environmental Documentation and Risk Assessments, SERA MD 2007-01a, draft dated July 2001. Syracuse Environmental Research Associates, Inc., Fayetteville, NY. Available at www.sera-inc.com.
A29: SERA 2010 | B29: SERA (Syracuse Environmental Research Associates, Inc.). 2010. Strychnine Human Health and Ecological Risk Assessment, SERA TR-052-17-02a, draft dated February 22, 2010. Syracuse Environmental Research Associates, Inc., Manlius, NY. Available at www.sera-inc.com.
A30: SERA 2014 | B30: SERA (Syracuse Environmental Research Associates, Inc.). 2014. Preparation of Environmental Documentation and Risk Assessments for the USDA/Forest Service, SERA MD 2014-02b. Report dated November 17, 2014. Prepared under USDA/FS Contract 53-3187-5-12.Syracuse Environmental Research Associates, Inc., Fayetteville, NY. Available at: https://www.fs.fed.us/foresthealth/pesticide/pdfs/PrepEnvirmentalDoc_11-2014.pdf.
A31: Sibley 2000 | B31: Sibley DA. 2000. The Sibley Guide to Birds. National Audubon Society, Chanticleer Press Edition. Alfred A. Knopf Inc., New York. 545 pp.
A32: Teske et al. 2001 | B32: Teske ME; Bird SL; Esterly DM; Ray SL; Perry SG. 2001. A User’s Guide for AgDRIFT 2.0: A Tiered Approach for the Assesment of Spray Drift. Continuum Dynamics, Inc. Public Use Version. C.D.I. Report No. 01-01. Available, with executable model at: http://www.agdrift.com
A33: U.S. EPA/OPP 1999 | B33: U.S. EPA/OPP ((U.S. Environmental Protection Agency/Office of Pesticide Programs). 1999. ECOFRAM: Terrestrial ECOFRAM Terrestrial Draft Report. Ecological Committee on FIFRA Risk Assessment Methods(ECOFRAM). Report dated May 10, 1999. Available at: http://www.epa.gov/oppefed1/ ecorisk/terrreport.pdf.
A34: U.S. EPA/OPP 2012 | B34: U.S. EPA/OPP (U.S. Environmental Protection Agency/Office of Pesticide Programs). 2012. Standard Operating Procedure for Residential Exposure and Risk Assessment for Pesticide. Report dated October 2012. Available at: https://www.epa.gov/sites/production/files/2015-08/documents/usepa-opp-hed_residential_sops_oct2012.pdf.
A35: U.S. EPA/ORD 1985 | B35: U.S. EPA/ORD (U.S. Environmental Protection Agency/Office of Research and Development). 1985. Development of Statistical Distributions or Ranges of Standard Factors Used in Exposure Assessments, Report prepared by GCA Corp., Chapel Hill. Available from NTIS: PB85-242667.
A36: U.S. EPA/ORD 1992 | B36: U.S. EPA/ORD (U.S. Environmental Protection Agency/Office of Research and Development). 1992. Dermal Exposure Assessment: Principles and Applications. EPA/600/8-91/011B. Interim Report. Exposure Assessment Group, Office of Health and Environmental Assessment, Washington, DC.
A37: U.S. EPA/ORD 1993 | B37: U.S. EPA/ORD (U.S. Environmental Protection Agency/Office of Research and Development). 1993. Wildlife Exposure Factors Handbook. Volumes 1 and 2. EPA/600/R-93/187a,b. Pagination not continuous. Available NTIS: PB94-174778 and PB94-174779.
A38: U.S. EPA/ORD 1996 | B38: U.S. EPA (U.S. Environmental Protection Agency/Office of Research and Development). 1996. Exposure Factors Handbook. National Center for Environmental Assessment, U.S. EPA, Washington, DC. EPA/600/P-95/002Ba-c. Avail. NTIS: PB97-117683, 97-117691, PB97-117709.
A39: U.S. EPA/ORD 1997 | B39: U.S. EPA (U.S. Environmental Protection Agency/Office of Research and Development). 1997. Exposure Factors Handbook. National Center for Environmental Assessment, U.S. EPA, Washington, DC. EPA/600/P-95/002Fa. Available at: http://rais.ornl.gov/homepage/EFH_Final_1997_EPA600P95002Fa.pdf
A40: U.S. EPA/ORD 2011 | B40: U.S. EPA (U.S. Environmental Protection Agency/Office of Research and Development). 2011. Exposure Factors Handbook (Chapter 7). National Center for Environmental Assessment, U.S. EPA, Washington, DC. EPA/600/R-090/052F. Available at: https://www.epa.gov/sites/production/files/2015-09/documents/efh-chapter07.pdf
A41: USDA 1989a | B41: USDA (U.S. Department of Agriculture/Forest Service). 1989a. Final Environmental Impact Statement: Vegetation Management in the Coastal Plain/Piedmont, Management Bulletin R8-MB-23, dated January, 1989. 1213 pp.
A42: USDA 1989b | B42: USDA (U.S. Department of Agriculture/Forest Service). 1989b. Draft Environmental Impact Statement: Vegetation Management in the Ozark/Ouachita Mountains, Management Bulletin R8-MB-23, dated June, 1989. 499 pp.
A43: USDA 1989c | B43: USDA (U.S. Department of Agriculture/Forest Service). 1989c. Final Environmental Impact Statement: Vegetation Management in the Appalachian Mountains, Management Bulletin R8-MB-38, dated July, 1989. 1104 pp.
A44: Waldbauer 1968 | B44: Waldbauer GP. 1968. The consumption and utilization of food by insects. Advan Insect Physiol. 5: 229-288
A45: Winston 1987 | B45: Winston ML. 1987. The Biology of the Honey Bee. Harvard University Press, Cambridge, MA. ISBN 0-674-07409-2 280 pp.
A46: Wolfram Research 1997 | B46: Wolfram Research. 1997. Mathematica Version 3.0.1. Available from Wolfram Research, Inc. Champaign, IL.

Sheet PlntRunoV5 (hidden)
A1: Summary of Exposure Assessment and Risk Characterization for Terrestrial Plants from Runoff
A2: Short Title | B2: Runoff to terrestrial plants
A3: Receptor | B3: Terrestrial vegetation
A4: Duration | B4: Acute
A5: User-Specified Gleams-Driver File | B5: None
A6: Parameter/Assumption | B6: Code / Range | C6: Value | D6: Units | E6: Reference
A7: Worksheet Application Rate | B7: ApRtWB | C7: 0.2 | D7: lb/acre | E7: Prog!ApRt
A8: Offsite Application Rates Inputs
A9: Run ID: | B9: See Risk Assessment
A10: Application Rate Used in Run: | B10: ApRtRun | C10: 1 | D10: lb/acre
A11: Functional Off-site Application Rate | B11: ApRtOffsite
B12: Central | C12: 0.027 | D12: lb/acre
B13: Lower | C13: 0.0095
B14: Upper | C14: 0.057
A15: Calculated Values
A16: Normalized Off-site Functional Application Rate | B16: NormApRtOffsite | C16: ApRtOffsite / ApRtRun
B17: Central | C17: =C12/C$10 -> 0.027 | D17: Unitless | E17: Eq
B18: Lower | C18: =C13/C$10 -> 0.0095 | E18: Eq
B19: Upper | C19: =C14/C$10 -> 0.057 | E19: Eq
A20: Off-site Application Rate at Workbook Application Rate | B20: ApRtWB | C20: ApRtWB x NormApRtOffsite
B21: Central | C21: =C17*C$7 -> 0.0054 | D21: lb/acre | E21: Eq
B22: Lower | C22: =C18*C$7 -> 0.0019 | E22: Eq
B23: Upper | C23: =C19*C$7 -> 0.0114 | E23: Eq
A24: Toxicity Values (seedling emergence) in units of lbs/acre
C25: Sensitive | D25: Tolerant
B26: Endpoint
C27: 0.0037 | D27: 0.37
A28: Hazard Quotients
B29: Central | C29: =IF(ISNUMBER(C$27), $C21/C$27, "N/A") -> 1.459459459 | D29: 0.01459459459
B30: Lower | C30: 0.5135135135 | D30: 0.005135135135
B31: Upper | C31: 3.081081081 | D31: 0.03081081081
